Workbook

Sheet Benutzerhinweise
C5: Arbeitshilfe zum BNB_LN Version 2020
C8: EINFÜHRUNG

Sheet Zielvereinbarung
B1: ='BNB-System'!B1 -> Projekt: | C1: Projektbezeichnung | E1: Datum: | G1: 2020-12-02
B2: ='BNB-System'!B2 -> Bewertungssystem Nachhaltiges Bauen (BNB)
B3: ='BNB-System'!B3 -> Systemvariante Laborgebäude, Modul Neubau (BNB_LN) - Version 2020
B4: Nachhaltigkeitskriterien | D4: maximale Punktzahl | E4: Gewichtung Gesamt-bewertung | F4: Zielwert der Ziel-vereinbarung | H4: Kommentar | I4: erforderliche Leistungen, Maßnahmen, Methoden | J4: erforderliche Dokumente/ Nachweise | K4: Termin | L4: Zuständigkeit | N4: Zielwert | O4: Gesamt-bewertung gemäß End-bewertung
F5: Soll | G5: Punkt- zahl
B7: Gesamterfüllungsgrad | G7: =IF(SUM(O13:O229)>100%,100%,SUM(O13:O229)) -> 0
M8: qwertz
B10: ='BNB-System'!B6 -> Ökologische Qualität | E10: ='BNB-System'!G6 -> 0.225 | G10: =G13*(E13/100)+G14*(E14/100)+G15*(E15/100)+G16*(E16/100)+G17*(E17/100)+G18*(E18/100)+G19*(E19/100)+G21*(E21/100)+G25*(E25/100)+G26*(E26/100) -> 0 | N10: ='BNB-System'!H6 -> 1600
N11: ='BNB-System'!H7 -> 0
C12: Wirkungen auf die globale und lokale Umwelt | N12: ='BNB-System'!H8 -> 0
B13: ='BNB-System'!B9 -> 1.1.1 | C13: ='BNB-System'!C9 -> Treibhauspotenzial (GWP) | D13: ='BNB-System'!D9 -> 100 | E13: ='BNB-System'!G9 -> 0.0421875 | N13: ='BNB-System'!H9 -> 300 | O13: =IF(ISNUMBER(E13*G13/100),E13*G13/100,0) -> 0
B14: ='BNB-System'!B10 -> 1.1.2 | C14: ='BNB-System'!C10 -> Ozonschichtabbaupotenzial (ODP) | D14: ='BNB-System'!D10 -> 100 | E14: ='BNB-System'!G10 -> 0.0140625 | N14: ='BNB-System'!H10 -> 100 | O14: =IF(ISNUMBER(E14*G14/100),E14*G14/100,0) -> 0
B15: ='BNB-System'!B11 -> 1.1.3 | C15: ='BNB-System'!C11 -> Ozonbildungspotenzial (POCP) | D15: ='BNB-System'!D11 -> 100 | E15: ='BNB-System'!G11 -> 0.0140625 | N15: ='BNB-System'!H11 -> 100 | O15: 0
B16: ='BNB-System'!B12 -> 1.1.4 | C16: ='BNB-System'!C12 -> Versauerungspotenzial (AP) | D16: ='BNB-System'!D12 -> 100 | E16: ='BNB-System'!G12 -> 0.0140625 | N16: ='BNB-System'!H12 -> 100 | O16: 0
B17: ='BNB-System'!B13 -> 1.1.5 | C17: ='BNB-System'!C13 -> Überdüngungspotenzial (EP) | D17: ='BNB-System'!D13 -> 100 | E17: ='BNB-System'!G13 -> 0.0140625 | N17: ='BNB-System'!H13 -> 100 | O17: 0
B18: ='BNB-System'!B14 -> 1.1.6 | C18: ='BNB-System'!C14 -> Risiken für die lokale Umwelt | D18: ='BNB-System'!D14 -> 100 | E18: ='BNB-System'!G14 -> 0.0421875 | N18: ='BNB-System'!H14 -> 300 | O18: 0
B19: ='BNB-System'!B15 -> 1.1.7 | C19: ='BNB-System'!C15 -> Nachhaltige Materialgewinnung / Biodiversität | D19: ='BNB-System'!D15 -> 100 | E19: ='BNB-System'!G15 -> 0.0140625 | N19: ='BNB-System'!H15 -> 100 | O19: 0
C20: ='BNB-System'!C16 -> Ressourceninanspruchnahme | N20: ='BNB-System'!H16 -> 0
B21: ='BNB-System'!B17 -> 1.2.1 | C21: ='BNB-System'!C17 -> Primärenergiebedarf | D21: ='BNB-System'!D17 -> 100 | E21: ='BNB-System'!G17 -> 0.0421875 | G21: =IF(SUM(G22:G24)>100,100,SUM(G22:G24)) -> 0 | N21: ='BNB-System'!H17 -> 300 | O21: 0
C22: ='BNB-System'!C18 -> Primärenergiebedarf nicht erneuerbar (PEne) | D22: ='BNB-System'!D18 -> 60 | N22: ='BNB-System'!H18 -> 0
C23: ='BNB-System'!C19 -> Gesamtprimärenergiebedarf (PEges) | D23: ='BNB-System'!D19 -> 40 | N23: ='BNB-System'!H19 -> 0
C24: ='BNB-System'!C20 -> Anteil erneuerbarer Primärenergie | D24: ='BNB-System'!D20 -> 20 | N24: ='BNB-System'!H20 -> 0
B25: ='BNB-System'!B21 -> 1.2.3 | C25: ='BNB-System'!C21 -> Trinkwasserbedarf und Abwasseraufkommen | D25: ='BNB-System'!D21 -> 100 | E25: ='BNB-System'!G21 -> 0.0140625 | N25: ='BNB-System'!H21 -> 100 | O25: =IF(ISNUMBER(E25*G25/100),E25*G25/100,0) -> 0
B26: ='BNB-System'!B22 -> 1.2.4 | C26: ='BNB-System'!C22 -> Flächeninanspruchnahme | D26: ='BNB-System'!D22 -> 100 | E26: ='BNB-System'!G22 -> 0.0140625 | N26: ='BNB-System'!H22 -> 100 | O26: 0
N27: ='BNB-System'!H23 -> 0
B28: ='BNB-System'!B24 -> Ökonomische Qualität | E28: ='BNB-System'!G24 -> 0.225 | G28: =G31*(E31/100)+G33*(E33/100)+G34*(E34/100) -> 0 | N28: ='BNB-System'!H24 -> 600
B29: ='BNB-System'!B25 -> 0 | N29: ='BNB-System'!H25 -> 0
C30: ='BNB-System'!C26 -> Lebenszykluskosten | N30: ='BNB-System'!H26 -> 0
B31: ='BNB-System'!B27 -> 2.1.1 | C31: ='BNB-System'!C27 -> Gebäudebezogene Kosten im Lebenszyklus | D31: ='BNB-System'!D27 -> 100 | E31: ='BNB-System'!G27 -> 0.1125 | N31: ='BNB-System'!H27 -> 300 | O31: =IF(ISNUMBER(E31*G31/100),E31*G31/100,0) -> 0
C32: ='BNB-System'!C28 -> Wirtschaftlichkeit und Wertstabilität | N32: ='BNB-System'!H28 -> 0
B33: ='BNB-System'!B29 -> 2.2.1 | C33: ='BNB-System'!C29 -> Flächeneffizienz | D33: ='BNB-System'!D29 -> 100 | E33: ='BNB-System'!G29 -> 0.0375 | N33: ='BNB-System'!H29 -> 100 | O33: =IF(ISNUMBER(E33*G33/100),E33*G33/100,0) -> 0
B34: ='BNB-System'!B30 -> 2.2.2 | C34: ='BNB-System'!C30 -> Anpassungsfähigkeit | D34: ='BNB-System'!D30 -> 100 | E34: ='BNB-System'!G30 -> 0.075 | F34: o | G34: =SUM(G35:G46) -> 0 | N34: ='BNB-System'!H30 -> 200 | O34: 0
C35: ='BNB-System'!C31 -> Raumhöhe | D35: ='BNB-System'!D31 -> 8 | N35: ='BNB-System'!H31 -> 0
C36: ='BNB-System'!C32 -> Grundrissorganisation | N36: ='BNB-System'!H32 -> 0
C37: ='BNB-System'!C33 -> Positionierung der Erschließung | D37: ='BNB-System'!D33 -> 5 | N37: ='BNB-System'!H33 -> 0
C38: ='BNB-System'!C34 -> Rettungswege | D38: ='BNB-System'!D34 -> 2 | N38: ='BNB-System'!H34 -> 0
C39: ='BNB-System'!C35 -> sanitäre Anlagen | D39: ='BNB-System'!D35 -> 2 | N39: ='BNB-System'!H35 -> 0
C40: ='BNB-System'!C36 -> Konstruktion | N40: ='BNB-System'!H36 -> 0
C41: ='BNB-System'!C37 -> Anteil nicht tragender Innenwände | D41: ='BNB-System'!D37 -> 5 | N41: ='BNB-System'!H37 -> 0
C42: ='BNB-System'!C38 -> Anschluss von Trennwänden an der Fassadenachse | D42: ='BNB-System'!D38 -> 1 | N42: ='BNB-System'!H38 -> 0
C43: ='BNB-System'!C39 -> kein Eingriff von Trennwänden in Fußboden, Decke, Abhangdecke | D43: ='BNB-System'!D39 -> 1 | N43: ='BNB-System'!H39 -> 0
C44: ='BNB-System'!C40 -> zulässige Nutzlasten | D44: ='BNB-System'!D40 -> 1 | N44: ='BNB-System'!H40 -> 0
C45: ='BNB-System'!C41 -> Technische Ausstattung | N45: ='BNB-System'!H41 -> 0
C46: ='BNB-System'!C42 -> Technische Ausstattung | D46: ='BNB-System'!D42 -> 75 | N46: ='BNB-System'!H42 -> 0
N47: ='BNB-System'!H43 -> 0
B48: ='BNB-System'!B44 -> Soziokulturelle und funktionale Qualität | E48: ='BNB-System'!G44 -> 0.225 | G48: =G51*(E51/100)+G62*(E62/100)+G65*(E65/100)+G73*(E73/100)+G81*(E81/100)+G90*(E90/100)+G104*(E104/100)+G114*(E114/100)+G115*(E115/100)+G119*(E119/100)+G140*(E140/100)+G148*(E148/100) -> 0 | N48: ='BNB-System'!H44 -> 1800
N49: ='BNB-System'!H45 -> 0
C50: ='BNB-System'!C46 -> Gesundheit, Behaglichkeit und Nutzerzufriedenheit | N50: ='BNB-System'!H46 -> 0
B51: ='BNB-System'!B47 -> 3.1.1 | C51: ='BNB-System'!C47 -> Thermischer Komfort | D51: ='BNB-System'!D47 -> 100 | E51: ='BNB-System'!G47 -> 0.025 | G51: =SUM(G52:G61) -> 0 | N51: ='BNB-System'!H47 -> 200 | O51: =IF(ISNUMBER(E51*G51/100),E51*G51/100,0) -> 0
C52: ='BNB-System'!C48 -> Winter | N52: ='BNB-System'!H48 -> 0
C53: ='BNB-System'!C49 -> Operative Temperatur | D53: ='BNB-System'!D49 -> 10 | N53: ='BNB-System'!H49 -> 0
C54: ='BNB-System'!C50 -> Zugluft | D54: ='BNB-System'!D50 -> 10 | N54: ='BNB-System'!H50 -> 0
C55: ='BNB-System'!C51 -> Stahlungstemperaturasymmetrie und Fußbodentemperatur | D55: ='BNB-System'!D51 -> 10 | N55: ='BNB-System'!H51 -> 0
C56: ='BNB-System'!C52 -> Luftfeuchte | D56: ='BNB-System'!D52 -> 10 | N56: ='BNB-System'!H52 -> 0
C57: ='BNB-System'!C53 -> Sommer | N57: ='BNB-System'!H53 -> 0
C58: ='BNB-System'!C54 -> Operative Temperatur | D58: ='BNB-System'!D54 -> 30 | N58: ='BNB-System'!H54 -> 0
C59: ='BNB-System'!C55 -> Zugluft | D59: ='BNB-System'!D55 -> 10 | N59: ='BNB-System'!H55 -> 0
C60: ='BNB-System'!C56 -> Stahlungstemperaturasymmetrie und Fußbodentemperatur | D60: ='BNB-System'!D56 -> 10 | N60: ='BNB-System'!H56 -> 0
C61: ='BNB-System'!C57 -> Luftfeuchte | D61: ='BNB-System'!D57 -> 10 | N61: ='BNB-System'!H57 -> 0
B62: ='BNB-System'!B58 -> 3.1.3 | C62: ='BNB-System'!C58 -> Innenraumlufthygiene | D62: ='BNB-System'!D58 -> 100 | E62: ='BNB-System'!G58 -> 0.025 | G62: =SUM(G63:G64) -> 0 | N62: ='BNB-System'!H58 -> 200 | O62: =IF(ISNUMBER(E62*G62/100),E62*G62/100,0) -> 0
C63: ='BNB-System'!C59 -> Flüchtige organische Stoffe (VOC) und Formaldehyd | D63: ='BNB-System'!D59 -> 50 | N63: ='BNB-System'!H59 -> 0
C64: ='BNB-System'!C60 -> Kohlendioxidgehalt | D64: ='BNB-System'!D60 -> 50 | N64: ='BNB-System'!H60 -> 0
B65: ='BNB-System'!B61 -> 3.1.4 | C65: ='BNB-System'!C61 -> Akustischer Komfort | D65: ='BNB-System'!D61 -> 100 | E65: ='BNB-System'!G61 -> 0.0125 | G65: =(IF(IF((ISNUMBER(ROUND(G67/(G67+G69+G71)*G67+G69/(G67+G69+G71)*G68+G71/(G67+G69+G71)*G70,1))),ROUND(G67/(G67+G69+G71)*G66+G69/(G67+G69+G71)*G68+G71/(G67+G69+G71)*G70,1),0)>100,100,IF(ISNUMBER(ROUND(G67/(G67+G69+G71)*G66+G69/(G67+G69+G71)*G68+G71/(G67+G69+G71)*G70,1)),ROUND(G67/(G67+G69+G71)*G66+G69/(G67+G69+G71)*G68+G71/(G67+G69+G71)*G70,1),0)))-G72 -> 0 | N65: ='BNB-System'!H61 -> 100 | O65: =IF(ISNUMBER(E65*G65/100),E65*G65/100,0) -> 0
C66: ='BNB-System'!C62 -> Einzel- und Mehrpersonenbüros bis 100 m² | N66: ='BNB-System'!H62 -> 0
C67: ='BNB-System'!C63 -> NF Einzel- und Mehrpersonenbüros bis 100 m² | N67: ='BNB-System'!H63 -> 0
C68: ='BNB-System'!C64 -> Mehrpersonenbüros über 100 m² | N68: ='BNB-System'!H64 -> 0
C69: ='BNB-System'!C65 -> NF Mehrpersonenbüros über 100m² | N69: ='BNB-System'!H65 -> 0
C70: ='BNB-System'!C66 -> Weitere Räume über geringere (Gesprächs-)Entfernung (außer Büros) | N70: ='BNB-System'!H66 -> 0
C71: ='BNB-System'!C67 -> NF weiterer Räume | N71: ='BNB-System'!H67 -> 0
C72: ='BNB-System'!C68 -> Punktabzug | N72: ='BNB-System'!H68 -> 0
B73: ='BNB-System'!B69 -> 3.1.5 | C73: ='BNB-System'!C69 -> Visueller Komfort | D73: ='BNB-System'!D69 -> 100 | E73: ='BNB-System'!G69 -> 0.025 | G73: =SUM(G74:G80) -> 0 | N73: ='BNB-System'!H69 -> 200 | O73: =IF(ISNUMBER(E73*G73/100),E73*G73/100,0) -> 0
C74: ='BNB-System'!C70 -> Tageslichtverfügbarkeit Gesamtgebäude | D74: ='BNB-System'!D70 -> 15 | N74: ='BNB-System'!H70 -> 0
C75: ='BNB-System'!C71 -> Tageslichtverfügbarkeit ständige Arbeitsplätze | D75: ='BNB-System'!D71 -> 15 | N75: ='BNB-System'!H71 -> 0
C76: ='BNB-System'!C72 -> Nachweis der Sichtverbindung nach außen | D76: ='BNB-System'!D72 -> 25 | N76: ='BNB-System'!H72 -> 0
C77: ='BNB-System'!C73 -> Blendfreiheit Tageslicht | D77: ='BNB-System'!D73 -> 12 | N77: ='BNB-System'!H73 -> 0
C78: ='BNB-System'!C74 -> Blendfreiheit Kunstlicht | D78: ='BNB-System'!D74 -> 9 | N78: ='BNB-System'!H74 -> 0
C79: ='BNB-System'!C75 -> Lichtverteilung | D79: ='BNB-System'!D75 -> 12 | N79: ='BNB-System'!H75 -> 0
C80: ='BNB-System'!C76 -> Farbwiedergabe | D80: ='BNB-System'!D76 -> 12 | N80: ='BNB-System'!H76 -> 0
B81: ='BNB-System'!B77 -> 3.1.6 | C81: ='BNB-System'!C77 -> Einflussnahmemöglichkeiten durch Nutzer | D81: ='BNB-System'!D77 -> 100 | E81: ='BNB-System'!G77 -> 0.0125 | G81: =SUM(G82:G89) -> 0 | N81: ='BNB-System'!H77 -> 100 | O81: =IF(ISNUMBER(E81*G81/100),E81*G81/100,0) -> 0
C82: ='BNB-System'!C78 -> Lüftung | D82: ='BNB-System'!D78 -> 10 | N82: ='BNB-System'!H78 -> 0
C83: ='BNB-System'!C79 -> Sonnenschutz | D83: ='BNB-System'!D79 -> 10 | N83: ='BNB-System'!H79 -> 0
C84: ='BNB-System'!C80 -> Blendschutz | D84: ='BNB-System'!D80 -> 10 | N84: ='BNB-System'!H80 -> 0
C85: ='BNB-System'!C81 -> Temperaturen während der Heizperiode | D85: ='BNB-System'!D81 -> 10 | N85: ='BNB-System'!H81 -> 0
C86: ='BNB-System'!C82 -> Temperaturen außerhalb der Heizperiode | D86: ='BNB-System'!D82 -> 15 | N86: ='BNB-System'!H82 -> 0
C87: ='BNB-System'!C83 -> Steuerung von Tageslicht | D87: ='BNB-System'!D83 -> 15 | N87: ='BNB-System'!H83 -> 0
C88: ='BNB-System'!C84 -> Steuerung von Kunstlicht | D88: ='BNB-System'!D84 -> 15 | N88: ='BNB-System'!H84 -> 0
C89: ='BNB-System'!C85 -> Bedienfreundlichkeit | D89: ='BNB-System'!D85 -> 15 | N89: ='BNB-System'!H85 -> 0
B90: ='BNB-System'!B86 -> 3.1.7 | C90: ='BNB-System'!C86 -> Aufenthaltsqualitäten | D90: ='BNB-System'!D86 -> 100 | E90: ='BNB-System'!G86 -> 0.0125 | G90: =SUM(G91:G103) -> 0 | N90: ='BNB-System'!H86 -> 100 | O90: =IF(ISNUMBER(E90*G90/100),E90*G90/100,0) -> 0
C91: ='BNB-System'!C87 -> Anzahl der Aufenthaltsbereiche im Gebäude | D91: ='BNB-System'!D87 -> 10 | N91: ='BNB-System'!H87 -> 0
C92: ='BNB-System'!C88 -> Anzahl der Aufenthaltsbereiche im Außenraum | D92: ='BNB-System'!D88 -> 10 | N92: ='BNB-System'!H88 -> 0
C93: ='BNB-System'!C89 -> Anzahl der Sitzmöglichkeiten in diesen Bereichen | D93: ='BNB-System'!D89 -> 40 | N93: ='BNB-System'!H89 -> 0
C94: ='BNB-System'!C90 -> uneingeschränkte Nutzbarkeit der Erschließungsflächen als Aufenthaltsflächen | D94: ='BNB-System'!D90 -> 10 | N94: ='BNB-System'!H90 -> 0
C95: ='BNB-System'!C91 -> Sichtbeziehungen | D95: ='BNB-System'!D91 -> 10 | N95: ='BNB-System'!H91 -> 0
C96: ='BNB-System'!C92 -> Außenbezug | D96: ='BNB-System'!D92 -> 10 | N96: ='BNB-System'!H92 -> 0
C97: ='BNB-System'!C93 -> Ausstattungsqualität der Aufenthaltsbereiche im Außenraum | N97: ='BNB-System'!H93 -> 0
C98: ='BNB-System'!C94 -> Beleuchtung | D98: ='BNB-System'!D94 -> 2 | N98: ='BNB-System'!H94 -> 0
C99: ='BNB-System'!C95 -> Windschutz | D99: ='BNB-System'!D95 -> 2 | N99: ='BNB-System'!H95 -> 0
C100: ='BNB-System'!C96 -> Überdachung / Regenschutz | D100: ='BNB-System'!D96 -> 2 | N100: ='BNB-System'!H96 -> 0
C101: ='BNB-System'!C97 -> Sonnenschutz | D101: ='BNB-System'!D97 -> 2 | N101: ='BNB-System'!H97 -> 0
C102: ='BNB-System'!C98 -> Stromversorgung für Außenarbeitsplätze | D102: ='BNB-System'!D98 -> 1 | N102: ='BNB-System'!H98 -> 0
C103: ='BNB-System'!C99 -> Bepflanzung / Begrünung | D103: ='BNB-System'!D99 -> 1 | N103: ='BNB-System'!H99 -> 0
B104: ='BNB-System'!B100 -> 3.1.8 | C104: ='BNB-System'!C100 -> Sicherheit | D104: ='BNB-System'!D100 -> 100 | E104: ='BNB-System'!G100 -> 0.025 | G104: =SUM(G105:G112) -> 0 | N104: ='BNB-System'!H100 -> 200 | O104: =IF(ISNUMBER(E104*G104/100),E104*G104/100,0) -> 0
C105: ='BNB-System'!C101 -> Übersichtliche Wegführungen | D105: ='BNB-System'!D101 -> 40 | N105: ='BNB-System'!H101 -> 0
C106: ='BNB-System'!C102 -> Stellplätze | D106: ='BNB-System'!D102 -> 8 | N106: ='BNB-System'!H102 -> 0
C107: ='BNB-System'!C103 -> Sicherheitsbereiche | D107: ='BNB-System'!D103 -> 8 | N107: ='BNB-System'!H103 -> 0
C108: ='BNB-System'!C104 -> Beleuchtung Wege | D108: ='BNB-System'!D104 -> 12 | N108: ='BNB-System'!H104 -> 0
C109: ='BNB-System'!C105 -> Beleuchtung Stellplätze | D109: ='BNB-System'!D105 -> 8 | N109: ='BNB-System'!H105 -> 0
C110: ='BNB-System'!C106 -> Beleuchtung Sicherheits- und Gefahrenbereiche | D110: ='BNB-System'!D106 -> 8 | N110: ='BNB-System'!H106 -> 0
C111: ='BNB-System'!C107 -> Technische Sicherheitseinrichtungen | D111: ='BNB-System'!D107 -> 8 | N111: ='BNB-System'!H107 -> 0
C112: ='BNB-System'!C108 -> Reduktion von Brandgasrisiken | D112: ='BNB-System'!D108 -> 8 | N112: ='BNB-System'!H108 -> 0
C113: ='BNB-System'!C109 -> Funktionalität | N113: ='BNB-System'!H109 -> 0
B114: ='BNB-System'!B110 -> 3.2.1 | C114: ='BNB-System'!C110 -> Barrierefreiheit | D114: ='BNB-System'!D110 -> 100 | E114: ='BNB-System'!G110 -> 0.025 | N114: ='BNB-System'!H110 -> 200 | O114: =IF(ISNUMBER(E114*G114/100),E114*G114/100,0) -> 0
B115: ='BNB-System'!B111 -> 3.2.4 | C115: ='BNB-System'!C111 -> Zugänglichkeit | D115: ='BNB-System'!D111 -> 100 | E115: ='BNB-System'!G111 -> 0.0125 | G115: =SUM(G116:G118) -> 0 | N115: ='BNB-System'!H111 -> 100 | O115: 0
C116: ='BNB-System'!C112 -> Grundsätzliche Zugänglichkeit des Gebäudes | D116: ='BNB-System'!D112 -> 35 | N116: ='BNB-System'!H112 -> 0
C117: ='BNB-System'!C113 -> Öffnung der Außenanlagen für die Öffentlichkeit | D117: ='BNB-System'!D113 -> 35 | N117: ='BNB-System'!H113 -> 0
C118: ='BNB-System'!C114 -> Öffnung gebäudeinterner Einrichtungen für die Öffentlichkeit | D118: ='BNB-System'!D114 -> 30 | N118: ='BNB-System'!H114 -> 0
B119: ='BNB-System'!B115 -> 3.2.5 | C119: ='BNB-System'!C115 -> Mobilitätsinfrastruktur | D119: ='BNB-System'!D115 -> 100 | E119: ='BNB-System'!G115 -> 0.0125 | G119: =IF(SUM(G120:G138)>100,100,SUM(G120:G138)) -> 0 | N119: ='BNB-System'!H115 -> 100 | O119: =IF(ISNUMBER(E119*G119/100),E119*G119/100,0) -> 0
C120: ='BNB-System'!C116 -> Anzahl der Fahrradstellplätze | N120: ='BNB-System'!H116 -> 0
C121: ='BNB-System'!C117 -> 1 Fahrradstellplatz / 40 m²NF oder 1 Fahrradstellplatz / 3 Nutzer | D121: ='BNB-System'!D117 -> 40 | N121: ='BNB-System'!H117 -> 0
C122: ='BNB-System'!C118 -> 1 Fahrradstellplatz / 80m²NF oder 1 Fahrradstellplatz / 6 Nutzer | D122: ='BNB-System'!D118 -> 30 | N122: ='BNB-System'!H118 -> 0
C123: ='BNB-System'!C119 -> 1 Fahrradstellplatz / 120m²NF oder 1 Fahrradstellplatz / 9 Nutzer | D123: ='BNB-System'!D119 -> 20 | N123: ='BNB-System'!H119 -> 0
C124: ='BNB-System'!C120 -> 1 Fahrradstellplatz / 160m²NF oder 1 Fahrradstellplatz / 12 Nutzer | D124: ='BNB-System'!D120 -> 10 | N124: ='BNB-System'!H120 -> 0
C125: ='BNB-System'!C121 -> Anzahl der Lademöglichkeiten und Carsharing-Stellplätze | N125: ='BNB-System'!H121 -> 0
C126: ='BNB-System'!C122 -> Lademögl. für E-Räder für 10 % der Rad-Stellplätze (mind. 2) vorhanden | D126: ='BNB-System'!D122 -> 10 | N126: ='BNB-System'!H122 -> 0
C127: ='BNB-System'!C123 -> Lademögl. für E-Pkw für 5 % der Pkw-Stellplätze (mind. 1) vorhanden | D127: ='BNB-System'!D123 -> 5 | N127: ='BNB-System'!H123 -> 0
C128: ='BNB-System'!C124 -> Carsharing-Stellplatz ist öffentlich zugänglich auf Grundstück vorhanden | D128: ='BNB-System'!D124 -> 5 | N128: ='BNB-System'!H124 -> 0
C129: ='BNB-System'!C125 -> Qualitative Anforderungen an Fahrradstellplätze | N129: ='BNB-System'!H125 -> 0
C130: ='BNB-System'!C126 -> Anordnungsprinzipien und Abstände | D130: ='BNB-System'!D126 -> 10 | N130: ='BNB-System'!H126 -> 0
C131: ='BNB-System'!C127 -> Position der Fahrradstellplätze für Besucher | D131: ='BNB-System'!D127 -> 5 | N131: ='BNB-System'!H127 -> 0
C132: ='BNB-System'!C128 -> Position der Fahrradstellplätze für Nutzer | D132: ='BNB-System'!D128 -> 5 | N132: ='BNB-System'!H128 -> 0
C133: ='BNB-System'!C129 -> Witterungsgeschutz | D133: ='BNB-System'!D129 -> 10 | N133: ='BNB-System'!H129 -> 0
C134: ='BNB-System'!C130 -> Beleuchtung | D134: ='BNB-System'!D130 -> 10 | N134: ='BNB-System'!H130 -> 0
C135: ='BNB-System'!C131 -> Diebstahlgesicherter Bereich | D135: ='BNB-System'!D131 -> 5 | N135: ='BNB-System'!H131 -> 0
C136: ='BNB-System'!C132 -> Fläche mit Ausstattung für Wartungsarbeiten | D136: ='BNB-System'!D132 -> 5 | N136: ='BNB-System'!H132 -> 0
C137: ='BNB-System'!C133 -> Duschen und Umkleiden | D137: ='BNB-System'!D133 -> 5 | N137: ='BNB-System'!H133 -> 0
C138: ='BNB-System'!C134 -> Trocknungsmöglichkeiten | D138: ='BNB-System'!D134 -> 5 | N138: ='BNB-System'!H134 -> 0
C139: ='BNB-System'!C135 -> Sicherung der Gestaltungsqualität | N139: ='BNB-System'!H135 -> 0
B140: ='BNB-System'!B136 -> 3.3.1 | C140: ='BNB-System'!C136 -> Gestalterische und städtebauliche Qualität | D140: ='BNB-System'!D136 -> 100 | E140: ='BNB-System'!G136 -> 0.025 | G140: =IF(AND(G141>0,G145<=G146),SUM(G141:G144),IF(AND(G141>0,G146<=G145),SUM(G141:G144),IF(G145>0,G145,IF(G146>0,G146,G147)))) -> 0 | N140: ='BNB-System'!H136 -> 200 | O140: =IF(ISNUMBER(E140*G140/100),E140*G140/100,0) -> 0
C141: ='BNB-System'!C137 -> Durchführung von Planungswettbewerben | D141: ='BNB-System'!D137 -> 20 | N141: ='BNB-System'!H137 -> 0
C142: ='BNB-System'!C138 -> Wettbewerbsverfahren | D142: ='BNB-System'!D138 -> 40 | N142: ='BNB-System'!H138 -> 0
C143: ='BNB-System'!C139 -> Ausführung des Entwurfs eines der Preisträger | D143: ='BNB-System'!D139 -> 30 | N143: ='BNB-System'!H139 -> 0
C144: ='BNB-System'!C140 -> Beauftragung des Planungsteams | D144: ='BNB-System'!D140 -> 10 | N144: ='BNB-System'!H140 -> 0
C145: ='BNB-System'!C141 -> Auszeichnung mit einem Architekturpreis | D145: ='BNB-System'!D141 -> 60 | N145: ='BNB-System'!H141 -> 0
C146: ='BNB-System'!C142 -> Unabhängiges Expertengremium | D146: ='BNB-System'!D142 -> 40 | N146: ='BNB-System'!H142 -> 0
C147: ='BNB-System'!C143 -> Sonderfall Mindestanforderung | D147: ='BNB-System'!D143 -> 10 | N147: ='BNB-System'!H143 -> 0
B148: ='BNB-System'!B144 -> 3.3.2 | C148: ='BNB-System'!C144 -> Kunst am Bau | D148: ='BNB-System'!D144 -> 100 | E148: ='BNB-System'!G144 -> 0.0125 | G148: =SUM(G149:G152) -> 0 | N148: ='BNB-System'!H144 -> 100 | O148: =IF(ISNUMBER(E148*G148/100),E148*G148/100,0) -> 0
C149: ='BNB-System'!C145 -> Mindestanforderung | D149: ='BNB-System'!D145 -> 10 | N149: ='BNB-System'!H145 -> 0
C150: ='BNB-System'!C146 -> Bereitstellung von Mitteln im Rahmen der Bauaufgabe | D150: ='BNB-System'!D146 -> 30 | N150: ='BNB-System'!H146 -> 0
C151: ='BNB-System'!C147 -> Umsetzung des BMVBS-Leitfadens Kunst am Bau | D151: ='BNB-System'!D147 -> 40 | N151: ='BNB-System'!H147 -> 0
C152: ='BNB-System'!C148 -> Öffentlichkeitsarbeit, Rezeption der Kunst am Bau | D152: ='BNB-System'!D148 -> 20 | N152: ='BNB-System'!H148 -> 0
N153: ='BNB-System'!H149 -> 0
B154: ='BNB-System'!B150 -> Technische Qualität | E154: ='BNB-System'!G150 -> 0.225 | G154: =G157*(E157/100)+G162*(E162/100)+G169*(E169/100)+G179*(E179/100)+G180*(E180/100)+G181*(E181/100)+G182*(E182/100) -> 0 | N154: ='BNB-System'!H150 -> 1100
N155: ='BNB-System'!H151 -> 0
C156: ='BNB-System'!C152 -> technische Ausführung | N156: ='BNB-System'!H152 -> 0
B157: ='BNB-System'!B153 -> 4.1.1 | C157: ='BNB-System'!C153 -> Schallschutz | D157: ='BNB-System'!D153 -> 100 | E157: ='BNB-System'!G153 -> 0.02045454545 | G157: =SUM(G158:G161) -> 0 | N157: ='BNB-System'!H153 -> 100 | O157: =IF(ISNUMBER(E157*G157/100),E157*G157/100,0) -> 0
C158: ='BNB-System'!C154 -> Luftschallschutz gegen Außenlärm | D158: ='BNB-System'!D154 -> 20 | N158: ='BNB-System'!H154 -> 0
C159: ='BNB-System'!C155 -> Luftschallschutz im Gebäudeinneren | D159: ='BNB-System'!D155 -> 30 | N159: ='BNB-System'!H155 -> 0
C160: ='BNB-System'!C156 -> Trittschallschutz gegenüber fremden und eigenen Arbeitsbereichen | D160: ='BNB-System'!D156 -> 30 | N160: ='BNB-System'!H156 -> 0
C161: ='BNB-System'!C157 -> Schallschutz gegenüber haustechnischen Anlagen | D161: ='BNB-System'!D157 -> 20 | N161: ='BNB-System'!H157 -> 0
B162: ='BNB-System'!B158 -> 4.1.2 | C162: ='BNB-System'!C158 -> Wärme- und Tauwasserschutz | D162: ='BNB-System'!D158 -> 100 | E162: ='BNB-System'!G158 -> 0.02045454545 | G162: =SUM(G163:G168) -> 0 | N162: ='BNB-System'!H158 -> 100 | O162: =IF(ISNUMBER(E162*G162/100),E162*G162/100,0) -> 0
C163: ='BNB-System'!C159 -> Mittlere Wärmeduchgangskoeffizienten | D163: ='BNB-System'!D159 -> 30 | N163: ='BNB-System'!H159 -> 0
C164: ='BNB-System'!C160 -> Wärmebrückenzuschlag | D164: ='BNB-System'!D160 -> 15 | N164: ='BNB-System'!H160 -> 0
C165: ='BNB-System'!C161 -> Klassen der Luftdurchlässigkeit (Fugendurchlässigkeit) | D165: ='BNB-System'!D161 -> 15 | N165: ='BNB-System'!H161 -> 0
C166: ='BNB-System'!C162 -> Tauwasserbildung | D166: ='BNB-System'!D162 -> 10 | N166: ='BNB-System'!H162 -> 0
C167: ='BNB-System'!C163 -> Luftwechsel | D167: ='BNB-System'!D163 -> 15 | N167: ='BNB-System'!H163 -> 0
C168: ='BNB-System'!C164 -> Sonneneintragswert | D168: ='BNB-System'!D164 -> 15 | N168: ='BNB-System'!H164 -> 0
B169: ='BNB-System'!B165 -> 4.1.3 | C169: ='BNB-System'!C165 -> Reinigungs- und Instandhaltungsfreundlichkeit | D169: ='BNB-System'!D165 -> 100 | E169: ='BNB-System'!G165 -> 0.04090909091 | G169: =SUM(G170:G178) -> 0 | N169: ='BNB-System'!H165 -> 200 | O169: =IF(ISNUMBER(E169*G169/100),E169*G169/100,0) -> 0
C170: ='BNB-System'!C166 -> Tragkonstruktion | D170: ='BNB-System'!D166 -> 15 | N170: ='BNB-System'!H166 -> 0
C171: ='BNB-System'!C167 -> Zugänglichkeit der Außenglasflächen | D171: ='BNB-System'!D167 -> 15 | N171: ='BNB-System'!H167 -> 0
C172: ='BNB-System'!C168 -> Außenbauteile | D172: ='BNB-System'!D168 -> 9 | N172: ='BNB-System'!H168 -> 0
C173: ='BNB-System'!C169 -> Bodenbelag | D173: ='BNB-System'!D169 -> 9 | N173: ='BNB-System'!H169 -> 0
C174: ='BNB-System'!C170 -> Schmutzfangzone | D174: ='BNB-System'!D170 -> 9 | N174: ='BNB-System'!H170 -> 0
C175: ='BNB-System'!C171 -> Fußbodenleisten | D175: ='BNB-System'!D171 -> 9 | N175: ='BNB-System'!H171 -> 0
C176: ='BNB-System'!C172 -> Hindernisfreie Grundrissgestaltung | D176: ='BNB-System'!D172 -> 9 | N176: ='BNB-System'!H172 -> 0
C177: ='BNB-System'!C173 -> Einbauten | D177: ='BNB-System'!D173 -> 10 | N177: ='BNB-System'!H173 -> 0
C178: ='BNB-System'!C174 -> Zugänglichkeit der Innenglasflächen | D178: ='BNB-System'!D174 -> 15 | N178: ='BNB-System'!H174 -> 0
B179: ='BNB-System'!B175 -> 4.1.4 | C179: ='BNB-System'!C175 -> Rückbau, Trennung und Verwertung | D179: ='BNB-System'!D175 -> 100 | E179: ='BNB-System'!G175 -> 0.02045454545 | N179: ='BNB-System'!H175 -> 100 | O179: =IF(ISNUMBER(E179*G179/100),E179*G179/100,0) -> 0
B180: ='BNB-System'!B176 -> 4.1.5 | C180: ='BNB-System'!C176 -> Widerstandsfähigkeit gegen Naturgefahren | D180: ='BNB-System'!D176 -> 100 | E180: ='BNB-System'!G176 -> 0.02045454545 | N180: ='BNB-System'!H176 -> 100 | O180: 0
B181: ='BNB-System'!B177 -> 4.1.6 | C181: ='BNB-System'!C177 -> Bedienungs- und Instandhaltungsfreundlichkeit der TGA | D181: ='BNB-System'!D177 -> 100 | E181: ='BNB-System'!G177 -> 0.04090909091 | N181: ='BNB-System'!H177 -> 200 | O181: =IF(ISNUMBER(E181*G181/100),E181*G181/100,0) -> 0
B182: ='BNB-System'!B178 -> 4.1.7 | C182: ='BNB-System'!C178 -> Systemqualität der TGA | D182: ='BNB-System'!D178 -> 100 | E182: ='BNB-System'!G178 -> 0.06136363636 | N182: ='BNB-System'!H178 -> 300 | O182: =IF(ISNUMBER(E182*G182/100),E182*G182/100,0) -> 0
N183: ='BNB-System'!H179 -> 0
B184: ='BNB-System'!B180 -> Prozessqualität | E184: ='BNB-System'!G180 -> 0.1 | G184: =G187*(E187/100)+G191*(E191/100)+G197*(E197/100)+G213*(E213/100)+G214*(E214/100)+G221*(E221/100)+G226*(E226/100)+G229*(E229/100) -> 0 | N184: ='BNB-System'!H180 -> 2100
N185: ='BNB-System'!H181 -> 0
C186: ='BNB-System'!C182 -> Planung | N186: ='BNB-System'!H182 -> 0
B187: ='BNB-System'!B183 -> 5.1.1 | C187: ='BNB-System'!C183 -> Projektvorbereitung | D187: ='BNB-System'!D183 -> 100 | E187: ='BNB-System'!G183 -> 0.01428571429 | G187: =SUM(G188:G190) -> 0 | N187: ='BNB-System'!H183 -> 300 | O187: =IF(ISNUMBER(E187*G187/100),E187*G187/100,0) -> 0
C188: ='BNB-System'!C184 -> Bedarfsplanung oder vergleichbare Planung | D188: ='BNB-System'!D184 -> 35 | N188: ='BNB-System'!H184 -> 0
C189: ='BNB-System'!C185 -> Zielvereinbarung | D189: ='BNB-System'!D185 -> 35 | N189: ='BNB-System'!H185 -> 0
C190: ='BNB-System'!C186 -> Architektenwettbewerb | D190: ='BNB-System'!D186 -> 30 | N190: ='BNB-System'!H186 -> 0
B191: ='BNB-System'!B187 -> 5.1.2 | C191: ='BNB-System'!C187 -> Integrale Planung | D191: ='BNB-System'!D187 -> 100 | E191: ='BNB-System'!G187 -> 0.01428571429 | G191: =SUM(G192:G196) -> 0 | N191: ='BNB-System'!H187 -> 300 | O191: =IF(ISNUMBER(E191*G191/100),E191*G191/100,0) -> 0
C192: ='BNB-System'!C188 -> Interdisziplinäres Projektteam | D192: ='BNB-System'!D188 -> 30 | N192: ='BNB-System'!H188 -> 0
C193: ='BNB-System'!C189 -> Qualifikation des Projektteams | D193: ='BNB-System'!D189 -> 20 | N193: ='BNB-System'!H189 -> 0
C194: ='BNB-System'!C190 -> Integraler Planungsprozess | D194: ='BNB-System'!D190 -> 20 | N194: ='BNB-System'!H190 -> 0
C195: ='BNB-System'!C191 -> Nutzerbeteiligung | D195: ='BNB-System'!D191 -> 20 | N195: ='BNB-System'!H191 -> 0
C196: ='BNB-System'!C192 -> Öffentlichkeitsbeteiligung | D196: ='BNB-System'!D192 -> 10 | N196: ='BNB-System'!H192 -> 0
B197: ='BNB-System'!B193 -> 5.1.3 | C197: ='BNB-System'!C193 -> Komplexität und Optimierung der Planung | D197: ='BNB-System'!D193 -> 100 | E197: ='BNB-System'!G193 -> 0.01428571429 | G197: =IF(SUM(G198:G212)>100,100,SUM(G198:G212)) -> 0 | N197: ='BNB-System'!H193 -> 300 | O197: =IF(ISNUMBER(E197*G197/100),E197*G197/100,0) -> 0
C198: ='BNB-System'!C194 -> SiGe-Plan | D198: ='BNB-System'!D194 -> 10 | N198: ='BNB-System'!H194 -> 0
C199: ='BNB-System'!C195 -> Ver- und Entsiegelungskonzept | D199: ='BNB-System'!D195 -> 10 | N199: ='BNB-System'!H195 -> 0
C200: ='BNB-System'!C196 -> Energiekonzept | D200: ='BNB-System'!D196 -> 15 | N200: ='BNB-System'!H196 -> 0
C201: ='BNB-System'!C197 -> Mess- und Monitoringkonzept | D201: ='BNB-System'!D197 -> 15 | N201: ='BNB-System'!H197 -> 0
C202: ='BNB-System'!C198 -> Wasserkonzept | D202: ='BNB-System'!D198 -> 20 | N202: ='BNB-System'!H198 -> 0
... 69 more rows

Sheet Bewertung durch Anwender
B1: ='BNB-System'!B1 -> Projekt: | C1: =Zielvereinbarung!C1 -> Projektbezeichnung | N1: =Zielvereinbarung!$G$1 -> 2020-12-02
B2: ='BNB-System'!B2 -> Bewertungssystem Nachhaltiges Bauen (BNB)
B3: ='BNB-System'!B3 -> Systemvariante Laborgebäude, Modul Neubau (BNB_LN) - Version 2020
B4: Nachhaltigkeitskriterien | D4: maximale Punktzahl | E4: Gewichtung Gesamt-bewertung | F4: Zielwert aus der Ziel-vereinbarung | G4: Zielwert der Ziel-vereinbarung | H4: Zielwert der Ziel-vereinbarung | I4: 1. Korrektur Zielwert | J4: Kommentar | K4: 2. Korrektur Zielwert | L4: Kommentar | M4: Zwischen-bewertung | N4: Endbewertung | P4: Zielwert | Q4: Gesamt-bewertung gemäß End-bewertung
G5: Soll | H5: aus Registerkarte "Zielvereinbarung" | I5: =TODAY() -> 2021-01-14 | J5: Eintrag erforderlich für Zielwertkorrektur | K5: 2015-02-22 | L5: Eintrag erforderlich für Zielwertkorrektur | M5: =TODAY() -> 2021-01-14
B7: Gesamterfüllungsgrad | G7: =G10+G28+G48+G154+G184 -> 0 | H7: =Zielvereinbarung!G7 -> 0 | M7: =M10+M28+M48+M154+M184 -> 0 | N7: =N10+N28+N48+N154+N184 -> 0
M8: to_copy_zb | N8: to_insert_zb | O8: qwertz
B10: ='BNB-System'!B6 -> Ökologische Qualität | E10: 0.225 | G10: =G13*($E$13/100)+G14*($E$14/100)+G15*($E$15/100)+G16*($E$16/100)+G17*($E$17/100)+G18*($E$18/100)+G19*($E$19/100)+G21*($E$21/100)+G25*($E$25/100)+G26*($E$26/100) -> 0 | H10: =Zielvereinbarung!G10 -> 0 | M10: =M13*($E$13/100)+M14*($E$14/100)+M15*($E$15/100)+M16*($E$16/100)+M17*($E$17/100)+M18*($E$18/100)+M19*($E$19/100)+M21*($E$21/100)+M25*($E$25/100)+M26*($E$26/100) -> 0 | N10: =N13*($E$13/100)+N14*($E$14/100)+N15*($E$15/100)+N16*($E$16/100)+N17*($E$17/100)+N18*($E$18/100)+N19*($E$19/100)+N21*($E$21/100)+N25*($E$25/100)+N26*($E$26/100) -> 0 | P10: ='BNB-System'!H6 -> 1600
P11: ='BNB-System'!H7 -> 0
C12: Wirkungen auf die globale und lokale Umwelt | P12: ='BNB-System'!H8 -> 0
B13: ='BNB-System'!B9 -> 1.1.1 | C13: ='BNB-System'!C9 -> Treibhauspotenzial (GWP) | D13: ='BNB-System'!D9 -> 100 | E13: ='BNB-System'!G9 -> 0.0421875 | G13: =IF(AND(NOT(ISBLANK(K13)),NOT(ISBLANK(L13))),('Bewertung durch Anwender'!K13),IF(AND(NOT(ISBLANK(J13)),NOT(ISBLANK(I13))),('Bewertung durch Anwender'!I13),(Zielvereinbarung!G13))) -> 0 | H13: =Zielvereinbarung!G13 -> 0 | P13: ='BNB-System'!H9 -> 300 | Q13: =IF(ISNUMBER(E13*N13/100),E13*N13/100,0) -> 0
B14: ='BNB-System'!B10 -> 1.1.2 | C14: ='BNB-System'!C10 -> Ozonschichtabbaupotenzial (ODP) | D14: ='BNB-System'!D10 -> 100 | E14: ='BNB-System'!G10 -> 0.0140625 | G14: =IF(AND(NOT(ISBLANK(K14)),NOT(ISBLANK(L14))),('Bewertung durch Anwender'!K14),IF(AND(NOT(ISBLANK(J14)),NOT(ISBLANK(I14))),('Bewertung durch Anwender'!I14),(Zielvereinbarung!G14))) -> 0 | H14: =Zielvereinbarung!G14 -> 0 | P14: ='BNB-System'!H10 -> 100 | Q14: 0
B15: ='BNB-System'!B11 -> 1.1.3 | C15: ='BNB-System'!C11 -> Ozonbildungspotenzial (POCP) | D15: ='BNB-System'!D11 -> 100 | E15: ='BNB-System'!G11 -> 0.0140625 | G15: =IF(AND(NOT(ISBLANK(K15)),NOT(ISBLANK(L15))),('Bewertung durch Anwender'!K15),IF(AND(NOT(ISBLANK(J15)),NOT(ISBLANK(I15))),('Bewertung durch Anwender'!I15),(Zielvereinbarung!G15))) -> 0 | H15: =Zielvereinbarung!G15 -> 0 | P15: ='BNB-System'!H11 -> 100 | Q15: 0
B16: ='BNB-System'!B12 -> 1.1.4 | C16: ='BNB-System'!C12 -> Versauerungspotenzial (AP) | D16: ='BNB-System'!D12 -> 100 | E16: ='BNB-System'!G12 -> 0.0140625 | G16: =IF(AND(NOT(ISBLANK(K16)),NOT(ISBLANK(L16))),('Bewertung durch Anwender'!K16),IF(AND(NOT(ISBLANK(J16)),NOT(ISBLANK(I16))),('Bewertung durch Anwender'!I16),(Zielvereinbarung!G16))) -> 0 | H16: =Zielvereinbarung!G16 -> 0 | P16: ='BNB-System'!H12 -> 100 | Q16: 0
B17: ='BNB-System'!B13 -> 1.1.5 | C17: ='BNB-System'!C13 -> Überdüngungspotenzial (EP) | D17: ='BNB-System'!D13 -> 100 | E17: ='BNB-System'!G13 -> 0.0140625 | G17: =IF(AND(NOT(ISBLANK(K17)),NOT(ISBLANK(L17))),('Bewertung durch Anwender'!K17),IF(AND(NOT(ISBLANK(J17)),NOT(ISBLANK(I17))),('Bewertung durch Anwender'!I17),(Zielvereinbarung!G17))) -> 0 | H17: =Zielvereinbarung!G17 -> 0 | P17: ='BNB-System'!H13 -> 100 | Q17: 0
B18: ='BNB-System'!B14 -> 1.1.6 | C18: ='BNB-System'!C14 -> Risiken für die lokale Umwelt | D18: ='BNB-System'!D14 -> 100 | E18: ='BNB-System'!G14 -> 0.0421875 | G18: =IF(AND(NOT(ISBLANK(K18)),NOT(ISBLANK(L18))),('Bewertung durch Anwender'!K18),IF(AND(NOT(ISBLANK(J18)),NOT(ISBLANK(I18))),('Bewertung durch Anwender'!I18),(Zielvereinbarung!G18))) -> 0 | H18: =Zielvereinbarung!G18 -> 0 | P18: ='BNB-System'!H14 -> 300 | Q18: 0
B19: ='BNB-System'!B15 -> 1.1.7 | C19: ='BNB-System'!C15 -> Nachhaltige Materialgewinnung / Biodiversität | D19: ='BNB-System'!D15 -> 100 | E19: ='BNB-System'!G15 -> 0.0140625 | G19: =IF(AND(NOT(ISBLANK(K19)),NOT(ISBLANK(L19))),('Bewertung durch Anwender'!K19),IF(AND(NOT(ISBLANK(J19)),NOT(ISBLANK(I19))),('Bewertung durch Anwender'!I19),(Zielvereinbarung!G19))) -> 0 | H19: =Zielvereinbarung!G19 -> 0 | P19: ='BNB-System'!H15 -> 100 | Q19: 0
C20: ='BNB-System'!C16 -> Ressourceninanspruchnahme | P20: ='BNB-System'!H16 -> 0
B21: ='BNB-System'!B17 -> 1.2.1 | C21: ='BNB-System'!C17 -> Primärenergiebedarf | D21: ='BNB-System'!D17 -> 100 | E21: ='BNB-System'!G17 -> 0.0421875 | G21: =IF(AND(NOT(ISBLANK(K21)),NOT(ISBLANK(L21))),('Bewertung durch Anwender'!K21),IF(AND(NOT(ISBLANK(J21)),NOT(ISBLANK(I21))),('Bewertung durch Anwender'!I21),(Zielvereinbarung!G21))) -> 0 | H21: =Zielvereinbarung!G21 -> 0 | M21: =IF(SUM(M22:M24)>100,100,SUM(M22:M24)) -> 0 | N21: =IF(SUM(N22:N24)>100,100,SUM(N22:N24)) -> 0 | P21: ='BNB-System'!H17 -> 300 | Q21: =IF(ISNUMBER(E21*N21/100),E21*N21/100,0) -> 0
C22: ='BNB-System'!C18 -> Primärenergiebedarf nicht erneuerbar (PEne) | D22: ='BNB-System'!D18 -> 60 | G22: =IF(AND(NOT(ISBLANK(K22)),NOT(ISBLANK(L22))),('Bewertung durch Anwender'!K22),IF(AND(NOT(ISBLANK(J22)),NOT(ISBLANK(I22))),('Bewertung durch Anwender'!I22),(Zielvereinbarung!G22))) -> 0 | H22: =Zielvereinbarung!G22 -> 0 | P22: ='BNB-System'!H18 -> 0
C23: ='BNB-System'!C19 -> Gesamtprimärenergiebedarf (PEges) | D23: ='BNB-System'!D19 -> 40 | G23: =IF(AND(NOT(ISBLANK(K23)),NOT(ISBLANK(L23))),('Bewertung durch Anwender'!K23),IF(AND(NOT(ISBLANK(J23)),NOT(ISBLANK(I23))),('Bewertung durch Anwender'!I23),(Zielvereinbarung!G23))) -> 0 | H23: =Zielvereinbarung!G23 -> 0 | P23: ='BNB-System'!H19 -> 0
C24: ='BNB-System'!C20 -> Anteil erneuerbarer Primärenergie | D24: ='BNB-System'!D20 -> 20 | G24: =IF(AND(NOT(ISBLANK(K24)),NOT(ISBLANK(L24))),('Bewertung durch Anwender'!K24),IF(AND(NOT(ISBLANK(J24)),NOT(ISBLANK(I24))),('Bewertung durch Anwender'!I24),(Zielvereinbarung!G24))) -> 0 | H24: =Zielvereinbarung!G24 -> 0 | P24: ='BNB-System'!H20 -> 0
B25: ='BNB-System'!B21 -> 1.2.3 | C25: ='BNB-System'!C21 -> Trinkwasserbedarf und Abwasseraufkommen | D25: ='BNB-System'!D21 -> 100 | E25: ='BNB-System'!G21 -> 0.0140625 | G25: =IF(AND(NOT(ISBLANK(K25)),NOT(ISBLANK(L25))),('Bewertung durch Anwender'!K25),IF(AND(NOT(ISBLANK(J25)),NOT(ISBLANK(I25))),('Bewertung durch Anwender'!I25),(Zielvereinbarung!G25))) -> 0 | H25: =Zielvereinbarung!G25 -> 0 | P25: ='BNB-System'!H21 -> 100 | Q25: =IF(ISNUMBER(E25*N25/100),E25*N25/100,0) -> 0
B26: ='BNB-System'!B22 -> 1.2.4 | C26: ='BNB-System'!C22 -> Flächeninanspruchnahme | D26: ='BNB-System'!D22 -> 100 | E26: ='BNB-System'!G22 -> 0.0140625 | G26: =IF(AND(NOT(ISBLANK(K26)),NOT(ISBLANK(L26))),('Bewertung durch Anwender'!K26),IF(AND(NOT(ISBLANK(J26)),NOT(ISBLANK(I26))),('Bewertung durch Anwender'!I26),(Zielvereinbarung!G26))) -> 0 | H26: =Zielvereinbarung!G26 -> 0 | P26: ='BNB-System'!H22 -> 100 | Q26: =IF(ISNUMBER(E26*N26/100),E26*N26/100,0) -> 0
P27: ='BNB-System'!H23 -> 0
B28: ='BNB-System'!B24 -> Ökonomische Qualität | E28: ='BNB-System'!G24 -> 0.225 | G28: =IF(AND(NOT(ISBLANK(K28)),NOT(ISBLANK(L28))),('Bewertung durch Anwender'!K28),IF(AND(NOT(ISBLANK(J28)),NOT(ISBLANK(I28))),('Bewertung durch Anwender'!I28),(Zielvereinbarung!G28))) -> 0 | H28: =Zielvereinbarung!G28 -> 0 | M28: =M31*($E$31/100)+M33*($E$33/100)+M34*($E$34/100) -> 0 | N28: =N31*($E$31/100)+N33*($E$33/100)+N34*($E$34/100) -> 0 | P28: ='BNB-System'!H24 -> 600
B29: ='BNB-System'!B25 -> 0 | P29: ='BNB-System'!H25 -> 0
C30: ='BNB-System'!C26 -> Lebenszykluskosten | P30: ='BNB-System'!H26 -> 0
B31: ='BNB-System'!B27 -> 2.1.1 | C31: ='BNB-System'!C27 -> Gebäudebezogene Kosten im Lebenszyklus | D31: ='BNB-System'!D27 -> 100 | E31: ='BNB-System'!G27 -> 0.1125 | G31: =IF(AND(NOT(ISBLANK(K31)),NOT(ISBLANK(L31))),('Bewertung durch Anwender'!K31),IF(AND(NOT(ISBLANK(J31)),NOT(ISBLANK(I31))),('Bewertung durch Anwender'!I31),(Zielvereinbarung!G31))) -> 0 | H31: =Zielvereinbarung!G31 -> 0 | P31: ='BNB-System'!H27 -> 300 | Q31: =IF(ISNUMBER(E31*N31/100),E31*N31/100,0) -> 0
C32: ='BNB-System'!C28 -> Wirtschaftlichkeit und Wertstabilität | P32: ='BNB-System'!H28 -> 0
B33: ='BNB-System'!B29 -> 2.2.1 | C33: ='BNB-System'!C29 -> Flächeneffizienz | D33: ='BNB-System'!D29 -> 100 | E33: ='BNB-System'!G29 -> 0.0375 | G33: =IF(AND(NOT(ISBLANK(K33)),NOT(ISBLANK(L33))),('Bewertung durch Anwender'!K33),IF(AND(NOT(ISBLANK(J33)),NOT(ISBLANK(I33))),('Bewertung durch Anwender'!I33),(Zielvereinbarung!G33))) -> 0 | H33: =Zielvereinbarung!G33 -> 0 | P33: ='BNB-System'!H29 -> 100 | Q33: =IF(ISNUMBER(E33*N33/100),E33*N33/100,0) -> 0
B34: ='BNB-System'!B30 -> 2.2.2 | C34: ='BNB-System'!C30 -> Anpassungsfähigkeit | D34: ='BNB-System'!D30 -> 100 | E34: ='BNB-System'!G30 -> 0.075 | G34: =IF(AND(NOT(ISBLANK(K34)),NOT(ISBLANK(L34))),('Bewertung durch Anwender'!K34),IF(AND(NOT(ISBLANK(J34)),NOT(ISBLANK(I34))),('Bewertung durch Anwender'!I34),(Zielvereinbarung!G34))) -> 0 | H34: =Zielvereinbarung!G34 -> 0 | P34: ='BNB-System'!H30 -> 200 | Q34: =IF(ISNUMBER(E34*N34/100),E34*N34/100,0) -> 0
C35: ='BNB-System'!C31 -> Raumhöhe | D35: ='BNB-System'!D31 -> 8 | G35: =IF(AND(NOT(ISBLANK(K35)),NOT(ISBLANK(L35))),('Bewertung durch Anwender'!K35),IF(AND(NOT(ISBLANK(J35)),NOT(ISBLANK(I35))),('Bewertung durch Anwender'!I35),(Zielvereinbarung!G35))) -> 0 | H35: =Zielvereinbarung!G35 -> 0 | P35: ='BNB-System'!H31 -> 0
C36: ='BNB-System'!C32 -> Grundrissorganisation | H36: =Zielvereinbarung!G36 -> 0 | P36: ='BNB-System'!H32 -> 0
C37: ='BNB-System'!C33 -> Positionierung der Erschließung | D37: ='BNB-System'!D33 -> 5 | G37: =IF(AND(NOT(ISBLANK(K37)),NOT(ISBLANK(L37))),('Bewertung durch Anwender'!K37),IF(AND(NOT(ISBLANK(J37)),NOT(ISBLANK(I37))),('Bewertung durch Anwender'!I37),(Zielvereinbarung!G37))) -> 0 | H37: =Zielvereinbarung!G37 -> 0 | P37: ='BNB-System'!H33 -> 0
C38: ='BNB-System'!C34 -> Rettungswege | D38: ='BNB-System'!D34 -> 2 | G38: =IF(AND(NOT(ISBLANK(K38)),NOT(ISBLANK(L38))),('Bewertung durch Anwender'!K38),IF(AND(NOT(ISBLANK(J38)),NOT(ISBLANK(I38))),('Bewertung durch Anwender'!I38),(Zielvereinbarung!G38))) -> 0 | H38: =Zielvereinbarung!G38 -> 0 | P38: ='BNB-System'!H34 -> 0
C39: ='BNB-System'!C35 -> sanitäre Anlagen | D39: ='BNB-System'!D35 -> 2 | G39: =IF(AND(NOT(ISBLANK(K39)),NOT(ISBLANK(L39))),('Bewertung durch Anwender'!K39),IF(AND(NOT(ISBLANK(J39)),NOT(ISBLANK(I39))),('Bewertung durch Anwender'!I39),(Zielvereinbarung!G39))) -> 0 | H39: =Zielvereinbarung!G39 -> 0 | P39: ='BNB-System'!H35 -> 0
C40: ='BNB-System'!C36 -> Konstruktion | H40: =Zielvereinbarung!G40 -> 0 | P40: ='BNB-System'!H36 -> 0
C41: ='BNB-System'!C37 -> Anteil nicht tragender Innenwände | D41: ='BNB-System'!D37 -> 5 | G41: =IF(AND(NOT(ISBLANK(K41)),NOT(ISBLANK(L41))),('Bewertung durch Anwender'!K41),IF(AND(NOT(ISBLANK(J41)),NOT(ISBLANK(I41))),('Bewertung durch Anwender'!I41),(Zielvereinbarung!G41))) -> 0 | H41: =Zielvereinbarung!G41 -> 0 | P41: ='BNB-System'!H37 -> 0
C42: ='BNB-System'!C38 -> Anschluss von Trennwänden an der Fassadenachse | D42: ='BNB-System'!D38 -> 1 | G42: =IF(AND(NOT(ISBLANK(K42)),NOT(ISBLANK(L42))),('Bewertung durch Anwender'!K42),IF(AND(NOT(ISBLANK(J42)),NOT(ISBLANK(I42))),('Bewertung durch Anwender'!I42),(Zielvereinbarung!G42))) -> 0 | H42: =Zielvereinbarung!G42 -> 0 | P42: ='BNB-System'!H38 -> 0
C43: ='BNB-System'!C39 -> kein Eingriff von Trennwänden in Fußboden, Decke, Abhangdecke | D43: ='BNB-System'!D39 -> 1 | G43: =IF(AND(NOT(ISBLANK(K43)),NOT(ISBLANK(L43))),('Bewertung durch Anwender'!K43),IF(AND(NOT(ISBLANK(J43)),NOT(ISBLANK(I43))),('Bewertung durch Anwender'!I43),(Zielvereinbarung!G43))) -> 0 | H43: =Zielvereinbarung!G43 -> 0 | P43: ='BNB-System'!H39 -> 0
C44: ='BNB-System'!C40 -> zulässige Nutzlasten | D44: ='BNB-System'!D40 -> 1 | G44: =IF(AND(NOT(ISBLANK(K44)),NOT(ISBLANK(L44))),('Bewertung durch Anwender'!K44),IF(AND(NOT(ISBLANK(J44)),NOT(ISBLANK(I44))),('Bewertung durch Anwender'!I44),(Zielvereinbarung!G44))) -> 0 | H44: =Zielvereinbarung!G44 -> 0 | P44: ='BNB-System'!H40 -> 0
C45: ='BNB-System'!C41 -> Technische Ausstattung | H45: =Zielvereinbarung!G45 -> 0 | P45: ='BNB-System'!H41 -> 0
C46: ='BNB-System'!C42 -> Technische Ausstattung | D46: ='BNB-System'!D42 -> 75 | G46: =IF(AND(NOT(ISBLANK(K46)),NOT(ISBLANK(L46))),('Bewertung durch Anwender'!K46),IF(AND(NOT(ISBLANK(J46)),NOT(ISBLANK(I46))),('Bewertung durch Anwender'!I46),(Zielvereinbarung!G46))) -> 0 | H46: =Zielvereinbarung!G46 -> 0 | P46: ='BNB-System'!H42 -> 0
P47: ='BNB-System'!H43 -> 0
B48: ='BNB-System'!B44 -> Soziokulturelle und funktionale Qualität | E48: ='BNB-System'!G44 -> 0.225 | G48: =IF(AND(NOT(ISBLANK(K48)),NOT(ISBLANK(L48))),('Bewertung durch Anwender'!K48),IF(AND(NOT(ISBLANK(J48)),NOT(ISBLANK(I48))),('Bewertung durch Anwender'!I48),(Zielvereinbarung!G48))) -> 0 | H48: =Zielvereinbarung!G48 -> 0 | M48: =M51*($E$51/100)+M62*($E$62/100)+M65*($E$65/100)+M73*($E$73/100)+M81*($E$81/100)+M90*($E$90/100)+M104*($E$104/100)+M114*($E$114/100)+M115*($E$115/100)+M119*($E$119/100)+M140*($E$140/100)+M148*($E$148/100) -> 0 | N48: =N51*($E$51/100)+N62*($E$62/100)+N65*($E$65/100)+N73*($E$73/100)+N81*($E$81/100)+N90*($E$90/100)+N104*($E$104/100)+N114*($E$114/100)+N115*($E$115/100)+N119*($E$119/100)+N140*($E$140/100)+N148*($E$148/100) -> 0 | P48: ='BNB-System'!H44 -> 1800
P49: ='BNB-System'!H45 -> 0
C50: ='BNB-System'!C46 -> Gesundheit, Behaglichkeit und Nutzerzufriedenheit | P50: ='BNB-System'!H46 -> 0
B51: ='BNB-System'!B47 -> 3.1.1 | C51: ='BNB-System'!C47 -> Thermischer Komfort | D51: ='BNB-System'!D47 -> 100 | E51: ='BNB-System'!G47 -> 0.025 | G51: =IF(AND(NOT(ISBLANK(K51)),NOT(ISBLANK(L51))),('Bewertung durch Anwender'!K51),IF(AND(NOT(ISBLANK(J51)),NOT(ISBLANK(I51))),('Bewertung durch Anwender'!I51),(Zielvereinbarung!G51))) -> 0 | H51: =Zielvereinbarung!G51 -> 0 | M51: =SUM(M53:M56,M58:M61) -> 0 | N51: =SUM(N53:N56,N58:N61) -> 0 | P51: ='BNB-System'!H47 -> 200 | Q51: =IF(ISNUMBER(E51*N51/100),E51*N51/100,0) -> 0
C52: ='BNB-System'!C48 -> Winter | G52: =IF(Zielvereinbarung!E52=0,"",Zielvereinbarung!E52) ->  | H52: =Zielvereinbarung!G52 -> 0 | P52: ='BNB-System'!H48 -> 0
C53: ='BNB-System'!C49 -> Operative Temperatur | D53: ='BNB-System'!D49 -> 10 | G53: =IF(AND(NOT(ISBLANK(K53)),NOT(ISBLANK(L53))),('Bewertung durch Anwender'!K53),IF(AND(NOT(ISBLANK(J53)),NOT(ISBLANK(I53))),('Bewertung durch Anwender'!I53),(Zielvereinbarung!G53))) -> 0 | H53: =Zielvereinbarung!G53 -> 0 | P53: ='BNB-System'!H49 -> 0
C54: ='BNB-System'!C50 -> Zugluft | D54: ='BNB-System'!D50 -> 10 | G54: =IF(AND(NOT(ISBLANK(K54)),NOT(ISBLANK(L54))),('Bewertung durch Anwender'!K54),IF(AND(NOT(ISBLANK(J54)),NOT(ISBLANK(I54))),('Bewertung durch Anwender'!I54),(Zielvereinbarung!G54))) -> 0 | H54: =Zielvereinbarung!G54 -> 0 | P54: ='BNB-System'!H50 -> 0
C55: ='BNB-System'!C51 -> Stahlungstemperaturasymmetrie und Fußbodentemperatur | D55: ='BNB-System'!D51 -> 10 | G55: =IF(AND(NOT(ISBLANK(K55)),NOT(ISBLANK(L55))),('Bewertung durch Anwender'!K55),IF(AND(NOT(ISBLANK(J55)),NOT(ISBLANK(I55))),('Bewertung durch Anwender'!I55),(Zielvereinbarung!G55))) -> 0 | H55: =Zielvereinbarung!G55 -> 0 | P55: ='BNB-System'!H51 -> 0
C56: ='BNB-System'!C52 -> Luftfeuchte | D56: ='BNB-System'!D52 -> 10 | G56: =IF(AND(NOT(ISBLANK(K56)),NOT(ISBLANK(L56))),('Bewertung durch Anwender'!K56),IF(AND(NOT(ISBLANK(J56)),NOT(ISBLANK(I56))),('Bewertung durch Anwender'!I56),(Zielvereinbarung!G56))) -> 0 | H56: =Zielvereinbarung!G56 -> 0 | P56: ='BNB-System'!H52 -> 0
C57: ='BNB-System'!C53 -> Sommer | G57: =IF(Zielvereinbarung!E57=0,"",Zielvereinbarung!E57) ->  | H57: =Zielvereinbarung!G57 -> 0 | P57: ='BNB-System'!H53 -> 0
C58: ='BNB-System'!C54 -> Operative Temperatur | D58: ='BNB-System'!D54 -> 30 | G58: =IF(AND(NOT(ISBLANK(K58)),NOT(ISBLANK(L58))),('Bewertung durch Anwender'!K58),IF(AND(NOT(ISBLANK(J58)),NOT(ISBLANK(I58))),('Bewertung durch Anwender'!I58),(Zielvereinbarung!G58))) -> 0 | H58: =Zielvereinbarung!G58 -> 0 | P58: ='BNB-System'!H54 -> 0
C59: ='BNB-System'!C55 -> Zugluft | D59: ='BNB-System'!D55 -> 10 | G59: =IF(AND(NOT(ISBLANK(K59)),NOT(ISBLANK(L59))),('Bewertung durch Anwender'!K59),IF(AND(NOT(ISBLANK(J59)),NOT(ISBLANK(I59))),('Bewertung durch Anwender'!I59),(Zielvereinbarung!G59))) -> 0 | H59: =Zielvereinbarung!G59 -> 0 | P59: ='BNB-System'!H55 -> 0
C60: ='BNB-System'!C56 -> Stahlungstemperaturasymmetrie und Fußbodentemperatur | D60: ='BNB-System'!D56 -> 10 | G60: =IF(AND(NOT(ISBLANK(K60)),NOT(ISBLANK(L60))),('Bewertung durch Anwender'!K60),IF(AND(NOT(ISBLANK(J60)),NOT(ISBLANK(I60))),('Bewertung durch Anwender'!I60),(Zielvereinbarung!G60))) -> 0 | H60: =Zielvereinbarung!G60 -> 0 | P60: ='BNB-System'!H56 -> 0
C61: ='BNB-System'!C57 -> Luftfeuchte | D61: ='BNB-System'!D57 -> 10 | G61: =IF(AND(NOT(ISBLANK(K61)),NOT(ISBLANK(L61))),('Bewertung durch Anwender'!K61),IF(AND(NOT(ISBLANK(J61)),NOT(ISBLANK(I61))),('Bewertung durch Anwender'!I61),(Zielvereinbarung!G61))) -> 0 | H61: =Zielvereinbarung!G61 -> 0 | P61: ='BNB-System'!H57 -> 0
B62: ='BNB-System'!B58 -> 3.1.3 | C62: ='BNB-System'!C58 -> Innenraumlufthygiene | D62: ='BNB-System'!D58 -> 100 | E62: ='BNB-System'!G58 -> 0.025 | G62: =IF(AND(NOT(ISBLANK(K62)),NOT(ISBLANK(L62))),('Bewertung durch Anwender'!K62),IF(AND(NOT(ISBLANK(J62)),NOT(ISBLANK(I62))),('Bewertung durch Anwender'!I62),(Zielvereinbarung!G62))) -> 0 | H62: =Zielvereinbarung!G62 -> 0 | M62: =SUM(M63:M64) -> 0 | N62: =SUM(N63:N64) -> 0 | P62: ='BNB-System'!H58 -> 200 | Q62: =IF(ISNUMBER(E62*N62/100),E62*N62/100,0) -> 0
C63: ='BNB-System'!C59 -> Flüchtige organische Stoffe (VOC) und Formaldehyd | D63: ='BNB-System'!D59 -> 50 | G63: =IF(AND(NOT(ISBLANK(K63)),NOT(ISBLANK(L63))),('Bewertung durch Anwender'!K63),IF(AND(NOT(ISBLANK(J63)),NOT(ISBLANK(I63))),('Bewertung durch Anwender'!I63),(Zielvereinbarung!G63))) -> 0 | H63: =Zielvereinbarung!G63 -> 0 | P63: ='BNB-System'!H59 -> 0
C64: ='BNB-System'!C60 -> Kohlendioxidgehalt | D64: ='BNB-System'!D60 -> 50 | G64: =IF(AND(NOT(ISBLANK(K64)),NOT(ISBLANK(L64))),('Bewertung durch Anwender'!K64),IF(AND(NOT(ISBLANK(J64)),NOT(ISBLANK(I64))),('Bewertung durch Anwender'!I64),(Zielvereinbarung!G64))) -> 0 | H64: =Zielvereinbarung!G64 -> 0 | P64: ='BNB-System'!H60 -> 0
B65: ='BNB-System'!B61 -> 3.1.4 | C65: ='BNB-System'!C61 -> Akustischer Komfort | D65: ='BNB-System'!D61 -> 100 | E65: ='BNB-System'!G61 -> 0.0125 | G65: =IF(AND(NOT(ISBLANK(K65)),NOT(ISBLANK(L65))),('Bewertung durch Anwender'!K65),IF(AND(NOT(ISBLANK(J65)),NOT(ISBLANK(I65))),('Bewertung durch Anwender'!I65),(Zielvereinbarung!G65))) -> 0 | H65: =Zielvereinbarung!G65 -> 0 | M65: =(IF(IF((ISNUMBER(ROUND(M67/(M67+M69+M71)*M66+M69/(M67+M69+M71)*M68+M71/(M67+M69+M71)*M70,1))),ROUND(M67/(M67+M69+M71)*M66+M69/(M67+M69+M71)*M68+M71/(M67+M69+M71)*M70,1),0)>100,100,IF(ISNUMBER(ROUND(M67/(M67+M69+M71)*M66+M69/(M67+M69+M71)*M68+M71/(M67+M69+M71)*M70,1)),ROUND(M67/(M67+M69+M71)*M66+M69/(M67+M69+M71)*M68+M71/(M67+M69+M71)*M70,1),0)))-M72 -> 0 | N65: =(IF(IF((ISNUMBER(ROUND(N67/(N67+N69+N71)*N66+N69/(N67+N69+N71)*N68+N71/(N67+N69+N71)*N70,1))),ROUND(N67/(N67+N69+N71)*N66+N69/(N67+N69+N71)*N68+N71/(N67+N69+N71)*N70,1),0)>100,100,IF(ISNUMBER(ROUND(N67/(N67+N69+N71)*N66+N69/(N67+N69+N71)*N68+N71/(N67+N69+N71)*N70,1)),ROUND(N67/(N67+N69+N71)*N66+N69/(N67+N69+N71)*N68+N71/(N67+N69+N71)*N70,1),0)))-N72 -> 0 | P65: ='BNB-System'!H61 -> 100 | Q65: =IF(ISNUMBER(E65*N65/100),E65*N65/100,0) -> 0
C66: ='BNB-System'!C62 -> Einzel- und Mehrpersonenbüros bis 100 m² | D66: ='BNB-System'!D62 -> 100 | G66: =IF(AND(NOT(ISBLANK(K66)),NOT(ISBLANK(L66))),('Bewertung durch Anwender'!K66),IF(AND(NOT(ISBLANK(J66)),NOT(ISBLANK(I66))),('Bewertung durch Anwender'!I66),(Zielvereinbarung!G66))) -> 0 | H66: =Zielvereinbarung!G66 -> 0 | P66: ='BNB-System'!H62 -> 0
C67: ='BNB-System'!C63 -> NF Einzel- und Mehrpersonenbüros bis 100 m² | D67: ='BNB-System'!D63 -> 0 | G67: =IF(AND(NOT(ISBLANK(K67)),NOT(ISBLANK(L67))),('Bewertung durch Anwender'!K67),IF(AND(NOT(ISBLANK(J67)),NOT(ISBLANK(I67))),('Bewertung durch Anwender'!I67),(Zielvereinbarung!G67))) -> 0 | H67: =Zielvereinbarung!G67 -> 0 | P67: ='BNB-System'!H63 -> 0
C68: ='BNB-System'!C64 -> Mehrpersonenbüros über 100 m² | D68: ='BNB-System'!D64 -> 100 | G68: =IF(AND(NOT(ISBLANK(K68)),NOT(ISBLANK(L68))),('Bewertung durch Anwender'!K68),IF(AND(NOT(ISBLANK(J68)),NOT(ISBLANK(I68))),('Bewertung durch Anwender'!I68),(Zielvereinbarung!G68))) -> 0 | H68: =Zielvereinbarung!G68 -> 0 | P68: ='BNB-System'!H64 -> 0
C69: ='BNB-System'!C65 -> NF Mehrpersonenbüros über 100m² | D69: ='BNB-System'!D65 -> 0 | G69: =IF(AND(NOT(ISBLANK(K69)),NOT(ISBLANK(L69))),('Bewertung durch Anwender'!K69),IF(AND(NOT(ISBLANK(J69)),NOT(ISBLANK(I69))),('Bewertung durch Anwender'!I69),(Zielvereinbarung!G69))) -> 0 | H69: =Zielvereinbarung!G69 -> 0 | P69: ='BNB-System'!H65 -> 0
C70: ='BNB-System'!C66 -> Weitere Räume über geringere (Gesprächs-)Entfernung (außer Büros) | D70: ='BNB-System'!D66 -> 100 | G70: =IF(AND(NOT(ISBLANK(K70)),NOT(ISBLANK(L70))),('Bewertung durch Anwender'!K70),IF(AND(NOT(ISBLANK(J70)),NOT(ISBLANK(I70))),('Bewertung durch Anwender'!I70),(Zielvereinbarung!G70))) -> 0 | H70: =Zielvereinbarung!G70 -> 0 | P70: ='BNB-System'!H66 -> 0
C71: ='BNB-System'!C67 -> NF weiterer Räume | D71: ='BNB-System'!D67 -> 0 | G71: =IF(AND(NOT(ISBLANK(K71)),NOT(ISBLANK(L71))),('Bewertung durch Anwender'!K71),IF(AND(NOT(ISBLANK(J71)),NOT(ISBLANK(I71))),('Bewertung durch Anwender'!I71),(Zielvereinbarung!G71))) -> 0 | H71: =Zielvereinbarung!G71 -> 0 | P71: ='BNB-System'!H67 -> 0
C72: ='BNB-System'!C68 -> Punktabzug | D72: ='BNB-System'!D68 -> 0 | G72: =IF(AND(NOT(ISBLANK(K72)),NOT(ISBLANK(L72))),('Bewertung durch Anwender'!K72),IF(AND(NOT(ISBLANK(J72)),NOT(ISBLANK(I72))),('Bewertung durch Anwender'!I72),(Zielvereinbarung!G72))) -> 0 | H72: =Zielvereinbarung!G72 -> 0 | P72: ='BNB-System'!H68 -> 0
B73: ='BNB-System'!B69 -> 3.1.5 | C73: ='BNB-System'!C69 -> Visueller Komfort | D73: ='BNB-System'!D69 -> 100 | E73: ='BNB-System'!G69 -> 0.025 | G73: =IF(AND(NOT(ISBLANK(K73)),NOT(ISBLANK(L73))),('Bewertung durch Anwender'!K73),IF(AND(NOT(ISBLANK(J73)),NOT(ISBLANK(I73))),('Bewertung durch Anwender'!I73),(Zielvereinbarung!G73))) -> 0 | H73: =Zielvereinbarung!G73 -> 0 | M73: =SUM(M74:M80) -> 0 | N73: =SUM(N74:N80) -> 0 | P73: ='BNB-System'!H69 -> 200 | Q73: =IF(ISNUMBER(E73*N73/100),E73*N73/100,0) -> 0
C74: ='BNB-System'!C70 -> Tageslichtverfügbarkeit Gesamtgebäude | D74: ='BNB-System'!D70 -> 15 | G74: =IF(AND(NOT(ISBLANK(K74)),NOT(ISBLANK(L74))),('Bewertung durch Anwender'!K74),IF(AND(NOT(ISBLANK(J74)),NOT(ISBLANK(I74))),('Bewertung durch Anwender'!I74),(Zielvereinbarung!G74))) -> 0 | H74: =Zielvereinbarung!G74 -> 0 | P74: ='BNB-System'!H70 -> 0
C75: ='BNB-System'!C71 -> Tageslichtverfügbarkeit ständige Arbeitsplätze | D75: ='BNB-System'!D71 -> 15 | G75: =IF(AND(NOT(ISBLANK(K75)),NOT(ISBLANK(L75))),('Bewertung durch Anwender'!K75),IF(AND(NOT(ISBLANK(J75)),NOT(ISBLANK(I75))),('Bewertung durch Anwender'!I75),(Zielvereinbarung!G75))) -> 0 | H75: =Zielvereinbarung!G75 -> 0 | P75: ='BNB-System'!H71 -> 0
C76: ='BNB-System'!C72 -> Nachweis der Sichtverbindung nach außen | D76: ='BNB-System'!D72 -> 25 | G76: =IF(AND(NOT(ISBLANK(K76)),NOT(ISBLANK(L76))),('Bewertung durch Anwender'!K76),IF(AND(NOT(ISBLANK(J76)),NOT(ISBLANK(I76))),('Bewertung durch Anwender'!I76),(Zielvereinbarung!G76))) -> 0 | H76: =Zielvereinbarung!G76 -> 0 | P76: ='BNB-System'!H72 -> 0
C77: ='BNB-System'!C73 -> Blendfreiheit Tageslicht | D77: ='BNB-System'!D73 -> 12 | G77: =IF(AND(NOT(ISBLANK(K77)),NOT(ISBLANK(L77))),('Bewertung durch Anwender'!K77),IF(AND(NOT(ISBLANK(J77)),NOT(ISBLANK(I77))),('Bewertung durch Anwender'!I77),(Zielvereinbarung!G77))) -> 0 | H77: =Zielvereinbarung!G77 -> 0 | P77: ='BNB-System'!H73 -> 0
C78: ='BNB-System'!C74 -> Blendfreiheit Kunstlicht | D78: ='BNB-System'!D74 -> 9 | G78: =IF(AND(NOT(ISBLANK(K78)),NOT(ISBLANK(L78))),('Bewertung durch Anwender'!K78),IF(AND(NOT(ISBLANK(J78)),NOT(ISBLANK(I78))),('Bewertung durch Anwender'!I78),(Zielvereinbarung!G78))) -> 0 | H78: =Zielvereinbarung!G78 -> 0 | P78: ='BNB-System'!H74 -> 0
C79: ='BNB-System'!C75 -> Lichtverteilung | D79: ='BNB-System'!D75 -> 12 | G79: =IF(AND(NOT(ISBLANK(K79)),NOT(ISBLANK(L79))),('Bewertung durch Anwender'!K79),IF(AND(NOT(ISBLANK(J79)),NOT(ISBLANK(I79))),('Bewertung durch Anwender'!I79),(Zielvereinbarung!G79))) -> 0 | H79: =Zielvereinbarung!G79 -> 0 | P79: ='BNB-System'!H75 -> 0
C80: ='BNB-System'!C76 -> Farbwiedergabe | D80: ='BNB-System'!D76 -> 12 | G80: =IF(AND(NOT(ISBLANK(K80)),NOT(ISBLANK(L80))),('Bewertung durch Anwender'!K80),IF(AND(NOT(ISBLANK(J80)),NOT(ISBLANK(I80))),('Bewertung durch Anwender'!I80),(Zielvereinbarung!G80))) -> 0 | H80: =Zielvereinbarung!G80 -> 0 | P80: ='BNB-System'!H76 -> 0
B81: ='BNB-System'!B77 -> 3.1.6 | C81: ='BNB-System'!C77 -> Einflussnahmemöglichkeiten durch Nutzer | D81: ='BNB-System'!D77 -> 100 | E81: ='BNB-System'!G77 -> 0.0125 | G81: =IF(AND(NOT(ISBLANK(K81)),NOT(ISBLANK(L81))),('Bewertung durch Anwender'!K81),IF(AND(NOT(ISBLANK(J81)),NOT(ISBLANK(I81))),('Bewertung durch Anwender'!I81),(Zielvereinbarung!G81))) -> 0 | H81: =Zielvereinbarung!G81 -> 0 | M81: =SUM(M82:M89) -> 0 | N81: =SUM(N82:N89) -> 0 | P81: ='BNB-System'!H77 -> 100 | Q81: =IF(ISNUMBER(E81*N81/100),E81*N81/100,0) -> 0
C82: ='BNB-System'!C78 -> Lüftung | D82: ='BNB-System'!D78 -> 10 | G82: =IF(AND(NOT(ISBLANK(K82)),NOT(ISBLANK(L82))),('Bewertung durch Anwender'!K82),IF(AND(NOT(ISBLANK(J82)),NOT(ISBLANK(I82))),('Bewertung durch Anwender'!I82),(Zielvereinbarung!G82))) -> 0 | H82: =Zielvereinbarung!G82 -> 0 | P82: ='BNB-System'!H78 -> 0
C83: ='BNB-System'!C79 -> Sonnenschutz | D83: ='BNB-System'!D79 -> 10 | G83: =IF(AND(NOT(ISBLANK(K83)),NOT(ISBLANK(L83))),('Bewertung durch Anwender'!K83),IF(AND(NOT(ISBLANK(J83)),NOT(ISBLANK(I83))),('Bewertung durch Anwender'!I83),(Zielvereinbarung!G83))) -> 0 | H83: =Zielvereinbarung!G83 -> 0 | P83: ='BNB-System'!H79 -> 0
C84: ='BNB-System'!C80 -> Blendschutz | D84: ='BNB-System'!D80 -> 10 | G84: =IF(AND(NOT(ISBLANK(K84)),NOT(ISBLANK(L84))),('Bewertung durch Anwender'!K84),IF(AND(NOT(ISBLANK(J84)),NOT(ISBLANK(I84))),('Bewertung durch Anwender'!I84),(Zielvereinbarung!G84))) -> 0 | H84: =Zielvereinbarung!G84 -> 0 | P84: ='BNB-System'!H80 -> 0
C85: ='BNB-System'!C81 -> Temperaturen während der Heizperiode | D85: ='BNB-System'!D81 -> 10 | G85: =IF(AND(NOT(ISBLANK(K85)),NOT(ISBLANK(L85))),('Bewertung durch Anwender'!K85),IF(AND(NOT(ISBLANK(J85)),NOT(ISBLANK(I85))),('Bewertung durch Anwender'!I85),(Zielvereinbarung!G85))) -> 0 | H85: =Zielvereinbarung!G85 -> 0 | P85: ='BNB-System'!H81 -> 0
C86: ='BNB-System'!C82 -> Temperaturen außerhalb der Heizperiode | D86: ='BNB-System'!D82 -> 15 | G86: =IF(AND(NOT(ISBLANK(K86)),NOT(ISBLANK(L86))),('Bewertung durch Anwender'!K86),IF(AND(NOT(ISBLANK(J86)),NOT(ISBLANK(I86))),('Bewertung durch Anwender'!I86),(Zielvereinbarung!G86))) -> 0 | H86: =Zielvereinbarung!G86 -> 0 | P86: ='BNB-System'!H82 -> 0
C87: ='BNB-System'!C83 -> Steuerung von Tageslicht | D87: ='BNB-System'!D83 -> 15 | G87: =IF(AND(NOT(ISBLANK(K87)),NOT(ISBLANK(L87))),('Bewertung durch Anwender'!K87),IF(AND(NOT(ISBLANK(J87)),NOT(ISBLANK(I87))),('Bewertung durch Anwender'!I87),(Zielvereinbarung!G87))) -> 0 | H87: =Zielvereinbarung!G87 -> 0 | P87: ='BNB-System'!H83 -> 0
C88: ='BNB-System'!C84 -> Steuerung von Kunstlicht | D88: ='BNB-System'!D84 -> 15 | G88: =IF(AND(NOT(ISBLANK(K88)),NOT(ISBLANK(L88))),('Bewertung durch Anwender'!K88),IF(AND(NOT(ISBLANK(J88)),NOT(ISBLANK(I88))),('Bewertung durch Anwender'!I88),(Zielvereinbarung!G88))) -> 0 | H88: =Zielvereinbarung!G88 -> 0 | P88: ='BNB-System'!H84 -> 0
C89: ='BNB-System'!C85 -> Bedienfreundlichkeit | D89: ='BNB-System'!D85 -> 15 | G89: =IF(AND(NOT(ISBLANK(K89)),NOT(ISBLANK(L89))),('Bewertung durch Anwender'!K89),IF(AND(NOT(ISBLANK(J89)),NOT(ISBLANK(I89))),('Bewertung durch Anwender'!I89),(Zielvereinbarung!G89))) -> 0 | H89: =Zielvereinbarung!G89 -> 0 | P89: ='BNB-System'!H85 -> 0
B90: ='BNB-System'!B86 -> 3.1.7 | C90: ='BNB-System'!C86 -> Aufenthaltsqualitäten | D90: ='BNB-System'!D86 -> 100 | E90: ='BNB-System'!G86 -> 0.0125 | G90: =IF(AND(NOT(ISBLANK(K90)),NOT(ISBLANK(L90))),('Bewertung durch Anwender'!K90),IF(AND(NOT(ISBLANK(J90)),NOT(ISBLANK(I90))),('Bewertung durch Anwender'!I90),(Zielvereinbarung!G90))) -> 0 | H90: =Zielvereinbarung!G90 -> 0 | M90: =SUM(M91:M103) -> 0 | N90: =SUM(N91:N103) -> 0 | P90: ='BNB-System'!H86 -> 100 | Q90: =IF(ISNUMBER(E90*N90/100),E90*N90/100,0) -> 0
C91: ='BNB-System'!C87 -> Anzahl der Aufenthaltsbereiche im Gebäude | D91: ='BNB-System'!D87 -> 10 | G91: =IF(AND(NOT(ISBLANK(K91)),NOT(ISBLANK(L91))),('Bewertung durch Anwender'!K91),IF(AND(NOT(ISBLANK(J91)),NOT(ISBLANK(I91))),('Bewertung durch Anwender'!I91),(Zielvereinbarung!G91))) -> 0 | H91: =Zielvereinbarung!G91 -> 0 | P91: ='BNB-System'!H87 -> 0
C92: ='BNB-System'!C88 -> Anzahl der Aufenthaltsbereiche im Außenraum | D92: ='BNB-System'!D88 -> 10 | G92: =IF(AND(NOT(ISBLANK(K92)),NOT(ISBLANK(L92))),('Bewertung durch Anwender'!K92),IF(AND(NOT(ISBLANK(J92)),NOT(ISBLANK(I92))),('Bewertung durch Anwender'!I92),(Zielvereinbarung!G92))) -> 0 | H92: =Zielvereinbarung!G92 -> 0 | P92: ='BNB-System'!H88 -> 0
C93: ='BNB-System'!C89 -> Anzahl der Sitzmöglichkeiten in diesen Bereichen | D93: ='BNB-System'!D89 -> 40 | G93: =IF(AND(NOT(ISBLANK(K93)),NOT(ISBLANK(L93))),('Bewertung durch Anwender'!K93),IF(AND(NOT(ISBLANK(J93)),NOT(ISBLANK(I93))),('Bewertung durch Anwender'!I93),(Zielvereinbarung!G93))) -> 0 | H93: =Zielvereinbarung!G93 -> 0 | P93: ='BNB-System'!H89 -> 0
C94: ='BNB-System'!C90 -> uneingeschränkte Nutzbarkeit der Erschließungsflächen als Aufenthaltsflächen | D94: ='BNB-System'!D90 -> 10 | G94: =IF(AND(NOT(ISBLANK(K94)),NOT(ISBLANK(L94))),('Bewertung durch Anwender'!K94),IF(AND(NOT(ISBLANK(J94)),NOT(ISBLANK(I94))),('Bewertung durch Anwender'!I94),(Zielvereinbarung!G94))) -> 0 | H94: =Zielvereinbarung!G94 -> 0 | P94: ='BNB-System'!H90 -> 0
C95: ='BNB-System'!C91 -> Sichtbeziehungen | D95: ='BNB-System'!D91 -> 10 | G95: =IF(AND(NOT(ISBLANK(K95)),NOT(ISBLANK(L95))),('Bewertung durch Anwender'!K95),IF(AND(NOT(ISBLANK(J95)),NOT(ISBLANK(I95))),('Bewertung durch Anwender'!I95),(Zielvereinbarung!G95))) -> 0 | H95: =Zielvereinbarung!G95 -> 0 | P95: ='BNB-System'!H91 -> 0
C96: ='BNB-System'!C92 -> Außenbezug | D96: ='BNB-System'!D92 -> 10 | G96: =IF(AND(NOT(ISBLANK(K96)),NOT(ISBLANK(L96))),('Bewertung durch Anwender'!K96),IF(AND(NOT(ISBLANK(J96)),NOT(ISBLANK(I96))),('Bewertung durch Anwender'!I96),(Zielvereinbarung!G96))) -> 0 | H96: =Zielvereinbarung!G96 -> 0 | P96: ='BNB-System'!H92 -> 0
C97: ='BNB-System'!C93 -> Ausstattungsqualität der Aufenthaltsbereiche im Außenraum | H97: =Zielvereinbarung!G97 -> 0 | P97: ='BNB-System'!H93 -> 0
C98: ='BNB-System'!C94 -> Beleuchtung | D98: ='BNB-System'!D94 -> 2 | G98: =IF(AND(NOT(ISBLANK(K98)),NOT(ISBLANK(L98))),('Bewertung durch Anwender'!K98),IF(AND(NOT(ISBLANK(J98)),NOT(ISBLANK(I98))),('Bewertung durch Anwender'!I98),(Zielvereinbarung!G98))) -> 0 | H98: =Zielvereinbarung!G98 -> 0 | P98: ='BNB-System'!H94 -> 0
C99: ='BNB-System'!C95 -> Windschutz | D99: ='BNB-System'!D95 -> 2 | G99: =IF(AND(NOT(ISBLANK(K99)),NOT(ISBLANK(L99))),('Bewertung durch Anwender'!K99),IF(AND(NOT(ISBLANK(J99)),NOT(ISBLANK(I99))),('Bewertung durch Anwender'!I99),(Zielvereinbarung!G99))) -> 0 | H99: =Zielvereinbarung!G99 -> 0 | P99: ='BNB-System'!H95 -> 0
C100: ='BNB-System'!C96 -> Überdachung / Regenschutz | D100: ='BNB-System'!D96 -> 2 | G100: =IF(AND(NOT(ISBLANK(K100)),NOT(ISBLANK(L100))),('Bewertung durch Anwender'!K100),IF(AND(NOT(ISBLANK(J100)),NOT(ISBLANK(I100))),('Bewertung durch Anwender'!I100),(Zielvereinbarung!G100))) -> 0 | H100: =Zielvereinbarung!G100 -> 0 | P100: ='BNB-System'!H96 -> 0
C101: ='BNB-System'!C97 -> Sonnenschutz | D101: ='BNB-System'!D97 -> 2 | G101: =IF(AND(NOT(ISBLANK(K101)),NOT(ISBLANK(L101))),('Bewertung durch Anwender'!K101),IF(AND(NOT(ISBLANK(J101)),NOT(ISBLANK(I101))),('Bewertung durch Anwender'!I101),(Zielvereinbarung!G101))) -> 0 | H101: =Zielvereinbarung!G101 -> 0 | P101: ='BNB-System'!H97 -> 0
C102: ='BNB-System'!C98 -> Stromversorgung für Außenarbeitsplätze | D102: ='BNB-System'!D98 -> 1 | G102: =IF(AND(NOT(ISBLANK(K102)),NOT(ISBLANK(L102))),('Bewertung durch Anwender'!K102),IF(AND(NOT(ISBLANK(J102)),NOT(ISBLANK(I102))),('Bewertung durch Anwender'!I102),(Zielvereinbarung!G102))) -> 0 | H102: =Zielvereinbarung!G102 -> 0 | P102: ='BNB-System'!H98 -> 0
C103: ='BNB-System'!C99 -> Bepflanzung / Begrünung | D103: ='BNB-System'!D99 -> 1 | G103: =IF(AND(NOT(ISBLANK(K103)),NOT(ISBLANK(L103))),('Bewertung durch Anwender'!K103),IF(AND(NOT(ISBLANK(J103)),NOT(ISBLANK(I103))),('Bewertung durch Anwender'!I103),(Zielvereinbarung!G103))) -> 0 | H103: =Zielvereinbarung!G103 -> 0 | P103: ='BNB-System'!H99 -> 0
B104: ='BNB-System'!B100 -> 3.1.8 | C104: ='BNB-System'!C100 -> Sicherheit | D104: ='BNB-System'!D100 -> 100 | E104: ='BNB-System'!G100 -> 0.025 | G104: =IF(AND(NOT(ISBLANK(K104)),NOT(ISBLANK(L104))),('Bewertung durch Anwender'!K104),IF(AND(NOT(ISBLANK(J104)),NOT(ISBLANK(I104))),('Bewertung durch Anwender'!I104),(Zielvereinbarung!G104))) -> 0 | H104: =Zielvereinbarung!G104 -> 0 | M104: =SUM(M105:M112) -> 0 | N104: =SUM(N105:N112) -> 0 | P104: ='BNB-System'!H100 -> 200 | Q104: =IF(ISNUMBER(E104*N104/100),E104*N104/100,0) -> 0
C105: ='BNB-System'!C101 -> Übersichtliche Wegführungen | D105: ='BNB-System'!D101 -> 40 | G105: =IF(AND(NOT(ISBLANK(K105)),NOT(ISBLANK(L105))),('Bewertung durch Anwender'!K105),IF(AND(NOT(ISBLANK(J105)),NOT(ISBLANK(I105))),('Bewertung durch Anwender'!I105),(Zielvereinbarung!G105))) -> 0 | H105: =Zielvereinbarung!G105 -> 0 | P105: ='BNB-System'!H101 -> 0
C106: ='BNB-System'!C102 -> Stellplätze | D106: ='BNB-System'!D102 -> 8 | G106: =IF(AND(NOT(ISBLANK(K106)),NOT(ISBLANK(L106))),('Bewertung durch Anwender'!K106),IF(AND(NOT(ISBLANK(J106)),NOT(ISBLANK(I106))),('Bewertung durch Anwender'!I106),(Zielvereinbarung!G106))) -> 0 | H106: =Zielvereinbarung!G106 -> 0 | P106: ='BNB-System'!H102 -> 0
C107: ='BNB-System'!C103 -> Sicherheitsbereiche | D107: ='BNB-System'!D103 -> 8 | G107: =IF(AND(NOT(ISBLANK(K107)),NOT(ISBLANK(L107))),('Bewertung durch Anwender'!K107),IF(AND(NOT(ISBLANK(J107)),NOT(ISBLANK(I107))),('Bewertung durch Anwender'!I107),(Zielvereinbarung!G107))) -> 0 | H107: =Zielvereinbarung!G107 -> 0 | P107: ='BNB-System'!H103 -> 0
C108: ='BNB-System'!C104 -> Beleuchtung Wege | D108: ='BNB-System'!D104 -> 12 | G108: =IF(AND(NOT(ISBLANK(K108)),NOT(ISBLANK(L108))),('Bewertung durch Anwender'!K108),IF(AND(NOT(ISBLANK(J108)),NOT(ISBLANK(I108))),('Bewertung durch Anwender'!I108),(Zielvereinbarung!G108))) -> 0 | H108: =Zielvereinbarung!G108 -> 0 | P108: ='BNB-System'!H104 -> 0
C109: ='BNB-System'!C105 -> Beleuchtung Stellplätze | D109: ='BNB-System'!D105 -> 8 | G109: =IF(AND(NOT(ISBLANK(K109)),NOT(ISBLANK(L109))),('Bewertung durch Anwender'!K109),IF(AND(NOT(ISBLANK(J109)),NOT(ISBLANK(I109))),('Bewertung durch Anwender'!I109),(Zielvereinbarung!G109))) -> 0 | H109: =Zielvereinbarung!G109 -> 0 | P109: ='BNB-System'!H105 -> 0
C110: ='BNB-System'!C106 -> Beleuchtung Sicherheits- und Gefahrenbereiche | D110: ='BNB-System'!D106 -> 8 | G110: =IF(AND(NOT(ISBLANK(K110)),NOT(ISBLANK(L110))),('Bewertung durch Anwender'!K110),IF(AND(NOT(ISBLANK(J110)),NOT(ISBLANK(I110))),('Bewertung durch Anwender'!I110),(Zielvereinbarung!G110))) -> 0 | H110: =Zielvereinbarung!G110 -> 0 | P110: ='BNB-System'!H106 -> 0
C111: ='BNB-System'!C107 -> Technische Sicherheitseinrichtungen | D111: ='BNB-System'!D107 -> 8 | G111: =IF(AND(NOT(ISBLANK(K111)),NOT(ISBLANK(L111))),('Bewertung durch Anwender'!K111),IF(AND(NOT(ISBLANK(J111)),NOT(ISBLANK(I111))),('Bewertung durch Anwender'!I111),(Zielvereinbarung!G111))) -> 0 | H111: =Zielvereinbarung!G111 -> 0 | P111: ='BNB-System'!H107 -> 0
C112: ='BNB-System'!C108 -> Reduktion von Brandgasrisiken | D112: ='BNB-System'!D108 -> 8 | G112: =IF(AND(NOT(ISBLANK(K112)),NOT(ISBLANK(L112))),('Bewertung durch Anwender'!K112),IF(AND(NOT(ISBLANK(J112)),NOT(ISBLANK(I112))),('Bewertung durch Anwender'!I112),(Zielvereinbarung!G112))) -> 0 | H112: =Zielvereinbarung!G112 -> 0 | P112: ='BNB-System'!H108 -> 0
C113: ='BNB-System'!C109 -> Funktionalität | P113: ='BNB-System'!H109 -> 0
B114: ='BNB-System'!B110 -> 3.2.1 | C114: ='BNB-System'!C110 -> Barrierefreiheit | D114: ='BNB-System'!D110 -> 100 | E114: ='BNB-System'!G110 -> 0.025 | G114: =IF(AND(NOT(ISBLANK(K114)),NOT(ISBLANK(L114))),('Bewertung durch Anwender'!K114),IF(AND(NOT(ISBLANK(J114)),NOT(ISBLANK(I114))),('Bewertung durch Anwender'!I114),(Zielvereinbarung!G114))) -> 0 | H114: =Zielvereinbarung!G114 -> 0 | P114: ='BNB-System'!H110 -> 200 | Q114: =IF(ISNUMBER(E114*N114/100),E114*N114/100,0) -> 0
B115: ='BNB-System'!B111 -> 3.2.4 | C115: ='BNB-System'!C111 -> Zugänglichkeit | D115: ='BNB-System'!D111 -> 100 | E115: ='BNB-System'!G111 -> 0.0125 | G115: =IF(AND(NOT(ISBLANK(K115)),NOT(ISBLANK(L115))),('Bewertung durch Anwender'!K115),IF(AND(NOT(ISBLANK(J115)),NOT(ISBLANK(I115))),('Bewertung durch Anwender'!I115),(Zielvereinbarung!G115))) -> 0 | H115: =Zielvereinbarung!G115 -> 0 | M115: =SUM(M116:M118) -> 0 | N115: =SUM(N116:N118) -> 0 | P115: ='BNB-System'!H111 -> 100 | Q115: =IF(ISNUMBER(E115*N115/100),E115*N115/100,0) -> 0
C116: ='BNB-System'!C112 -> Grundsätzliche Zugänglichkeit des Gebäudes | D116: ='BNB-System'!D112 -> 35 | G116: =IF(AND(NOT(ISBLANK(K116)),NOT(ISBLANK(L116))),('Bewertung durch Anwender'!K116),IF(AND(NOT(ISBLANK(J116)),NOT(ISBLANK(I116))),('Bewertung durch Anwender'!I116),(Zielvereinbarung!G116))) -> 0 | H116: =Zielvereinbarung!G116 -> 0 | P116: ='BNB-System'!H112 -> 0
C117: ='BNB-System'!C113 -> Öffnung der Außenanlagen für die Öffentlichkeit | D117: ='BNB-System'!D113 -> 35 | G117: =IF(AND(NOT(ISBLANK(K117)),NOT(ISBLANK(L117))),('Bewertung durch Anwender'!K117),IF(AND(NOT(ISBLANK(J117)),NOT(ISBLANK(I117))),('Bewertung durch Anwender'!I117),(Zielvereinbarung!G117))) -> 0 | H117: =Zielvereinbarung!G117 -> 0 | P117: ='BNB-System'!H113 -> 0
C118: ='BNB-System'!C114 -> Öffnung gebäudeinterner Einrichtungen für die Öffentlichkeit | D118: ='BNB-System'!D114 -> 30 | G118: =IF(AND(NOT(ISBLANK(K118)),NOT(ISBLANK(L118))),('Bewertung durch Anwender'!K118),IF(AND(NOT(ISBLANK(J118)),NOT(ISBLANK(I118))),('Bewertung durch Anwender'!I118),(Zielvereinbarung!G118))) -> 0 | H118: =Zielvereinbarung!G118 -> 0 | P118: ='BNB-System'!H114 -> 0
B119: ='BNB-System'!B115 -> 3.2.5 | C119: ='BNB-System'!C115 -> Mobilitätsinfrastruktur | D119: ='BNB-System'!D115 -> 100 | E119: ='BNB-System'!G115 -> 0.0125 | G119: =IF(AND(NOT(ISBLANK(K119)),NOT(ISBLANK(L119))),('Bewertung durch Anwender'!K119),IF(AND(NOT(ISBLANK(J119)),NOT(ISBLANK(I119))),('Bewertung durch Anwender'!I119),(Zielvereinbarung!G119))) -> 0 | H119: =Zielvereinbarung!G119 -> 0 | M119: =IF(SUM(M120:M138)>100,100,SUM(M120:M138)) -> 0 | N119: =IF(SUM(N120:N138)>100,100,SUM(N120:N138)) -> 0 | P119: ='BNB-System'!H115 -> 100 | Q119: =IF(ISNUMBER(E119*N119/100),E119*N119/100,0) -> 0
C120: ='BNB-System'!C116 -> Anzahl der Fahrradstellplätze | G120: =IF(Zielvereinbarung!E120=0,"",Zielvereinbarung!E120) ->  | H120: =Zielvereinbarung!G120 -> 0 | P120: ='BNB-System'!H116 -> 0
C121: ='BNB-System'!C117 -> 1 Fahrradstellplatz / 40 m²NF oder 1 Fahrradstellplatz / 3 Nutzer | D121: ='BNB-System'!D117 -> 40 | G121: =IF(AND(NOT(ISBLANK(K121)),NOT(ISBLANK(L121))),('Bewertung durch Anwender'!K121),IF(AND(NOT(ISBLANK(J121)),NOT(ISBLANK(I121))),('Bewertung durch Anwender'!I121),(Zielvereinbarung!G121))) -> 0 | H121: =Zielvereinbarung!G121 -> 0 | P121: ='BNB-System'!H117 -> 0
C122: ='BNB-System'!C118 -> 1 Fahrradstellplatz / 80m²NF oder 1 Fahrradstellplatz / 6 Nutzer | D122: ='BNB-System'!D118 -> 30 | G122: =IF(AND(NOT(ISBLANK(K122)),NOT(ISBLANK(L122))),('Bewertung durch Anwender'!K122),IF(AND(NOT(ISBLANK(J122)),NOT(ISBLANK(I122))),('Bewertung durch Anwender'!I122),(Zielvereinbarung!G122))) -> 0 | H122: =Zielvereinbarung!G122 -> 0 | P122: ='BNB-System'!H118 -> 0
C123: ='BNB-System'!C119 -> 1 Fahrradstellplatz / 120m²NF oder 1 Fahrradstellplatz / 9 Nutzer | D123: ='BNB-System'!D119 -> 20 | G123: =IF(AND(NOT(ISBLANK(K123)),NOT(ISBLANK(L123))),('Bewertung durch Anwender'!K123),IF(AND(NOT(ISBLANK(J123)),NOT(ISBLANK(I123))),('Bewertung durch Anwender'!I123),(Zielvereinbarung!G123))) -> 0 | H123: =Zielvereinbarung!G123 -> 0 | P123: ='BNB-System'!H119 -> 0
C124: ='BNB-System'!C120 -> 1 Fahrradstellplatz / 160m²NF oder 1 Fahrradstellplatz / 12 Nutzer | D124: ='BNB-System'!D120 -> 10 | G124: =IF(AND(NOT(ISBLANK(K124)),NOT(ISBLANK(L124))),('Bewertung durch Anwender'!K124),IF(AND(NOT(ISBLANK(J124)),NOT(ISBLANK(I124))),('Bewertung durch Anwender'!I124),(Zielvereinbarung!G124))) -> 0 | H124: =Zielvereinbarung!G124 -> 0 | P124: ='BNB-System'!H120 -> 0
C125: ='BNB-System'!C121 -> Anzahl der Lademöglichkeiten und Carsharing-Stellplätze | G125: =IF(Zielvereinbarung!E125=0,"",Zielvereinbarung!E125) ->  | H125: =Zielvereinbarung!G125 -> 0 | P125: ='BNB-System'!H121 -> 0
C126: ='BNB-System'!C122 -> Lademögl. für E-Räder für 10 % der Rad-Stellplätze (mind. 2) vorhanden | D126: ='BNB-System'!D122 -> 10 | G126: =IF(AND(NOT(ISBLANK(K126)),NOT(ISBLANK(L126))),('Bewertung durch Anwender'!K126),IF(AND(NOT(ISBLANK(J126)),NOT(ISBLANK(I126))),('Bewertung durch Anwender'!I126),(Zielvereinbarung!G126))) -> 0 | H126: =Zielvereinbarung!G126 -> 0 | P126: ='BNB-System'!H122 -> 0
C127: ='BNB-System'!C123 -> Lademögl. für E-Pkw für 5 % der Pkw-Stellplätze (mind. 1) vorhanden | D127: ='BNB-System'!D123 -> 5 | G127: =IF(AND(NOT(ISBLANK(K127)),NOT(ISBLANK(L127))),('Bewertung durch Anwender'!K127),IF(AND(NOT(ISBLANK(J127)),NOT(ISBLANK(I127))),('Bewertung durch Anwender'!I127),(Zielvereinbarung!G127))) -> 0 | H127: =Zielvereinbarung!G127 -> 0 | P127: ='BNB-System'!H123 -> 0
C128: ='BNB-System'!C124 -> Carsharing-Stellplatz ist öffentlich zugänglich auf Grundstück vorhanden | D128: ='BNB-System'!D124 -> 5 | G128: =IF(AND(NOT(ISBLANK(K128)),NOT(ISBLANK(L128))),('Bewertung durch Anwender'!K128),IF(AND(NOT(ISBLANK(J128)),NOT(ISBLANK(I128))),('Bewertung durch Anwender'!I128),(Zielvereinbarung!G128))) -> 0 | H128: =Zielvereinbarung!G128 -> 0 | P128: ='BNB-System'!H124 -> 0
C129: ='BNB-System'!C125 -> Qualitative Anforderungen an Fahrradstellplätze | G129: =IF(Zielvereinbarung!E129=0,"",Zielvereinbarung!E129) ->  | H129: =Zielvereinbarung!G129 -> 0 | P129: ='BNB-System'!H125 -> 0
C130: ='BNB-System'!C126 -> Anordnungsprinzipien und Abstände | D130: ='BNB-System'!D126 -> 10 | G130: =IF(AND(NOT(ISBLANK(K130)),NOT(ISBLANK(L130))),('Bewertung durch Anwender'!K130),IF(AND(NOT(ISBLANK(J130)),NOT(ISBLANK(I130))),('Bewertung durch Anwender'!I130),(Zielvereinbarung!G130))) -> 0 | H130: =Zielvereinbarung!G130 -> 0 | P130: ='BNB-System'!H126 -> 0
C131: ='BNB-System'!C127 -> Position der Fahrradstellplätze für Besucher | D131: ='BNB-System'!D127 -> 5 | G131: =IF(AND(NOT(ISBLANK(K131)),NOT(ISBLANK(L131))),('Bewertung durch Anwender'!K131),IF(AND(NOT(ISBLANK(J131)),NOT(ISBLANK(I131))),('Bewertung durch Anwender'!I131),(Zielvereinbarung!G131))) -> 0 | H131: =Zielvereinbarung!G131 -> 0 | P131: ='BNB-System'!H127 -> 0
C132: ='BNB-System'!C128 -> Position der Fahrradstellplätze für Nutzer | D132: ='BNB-System'!D128 -> 5 | G132: =IF(AND(NOT(ISBLANK(K132)),NOT(ISBLANK(L132))),('Bewertung durch Anwender'!K132),IF(AND(NOT(ISBLANK(J132)),NOT(ISBLANK(I132))),('Bewertung durch Anwender'!I132),(Zielvereinbarung!G132))) -> 0 | H132: =Zielvereinbarung!G132 -> 0 | P132: ='BNB-System'!H128 -> 0
C133: ='BNB-System'!C129 -> Witterungsgeschutz | D133: ='BNB-System'!D129 -> 10 | G133: =IF(AND(NOT(ISBLANK(K133)),NOT(ISBLANK(L133))),('Bewertung durch Anwender'!K133),IF(AND(NOT(ISBLANK(J133)),NOT(ISBLANK(I133))),('Bewertung durch Anwender'!I133),(Zielvereinbarung!G133))) -> 0 | H133: =Zielvereinbarung!G133 -> 0 | P133: ='BNB-System'!H129 -> 0
C134: ='BNB-System'!C130 -> Beleuchtung | D134: ='BNB-System'!D130 -> 10 | G134: =IF(AND(NOT(ISBLANK(K134)),NOT(ISBLANK(L134))),('Bewertung durch Anwender'!K134),IF(AND(NOT(ISBLANK(J134)),NOT(ISBLANK(I134))),('Bewertung durch Anwender'!I134),(Zielvereinbarung!G134))) -> 0 | H134: =Zielvereinbarung!G134 -> 0 | P134: ='BNB-System'!H130 -> 0
C135: ='BNB-System'!C131 -> Diebstahlgesicherter Bereich | D135: ='BNB-System'!D131 -> 5 | G135: =IF(AND(NOT(ISBLANK(K135)),NOT(ISBLANK(L135))),('Bewertung durch Anwender'!K135),IF(AND(NOT(ISBLANK(J135)),NOT(ISBLANK(I135))),('Bewertung durch Anwender'!I135),(Zielvereinbarung!G135))) -> 0 | H135: =Zielvereinbarung!G135 -> 0 | P135: ='BNB-System'!H131 -> 0
C136: ='BNB-System'!C132 -> Fläche mit Ausstattung für Wartungsarbeiten | D136: ='BNB-System'!D132 -> 5 | G136: =IF(AND(NOT(ISBLANK(K136)),NOT(ISBLANK(L136))),('Bewertung durch Anwender'!K136),IF(AND(NOT(ISBLANK(J136)),NOT(ISBLANK(I136))),('Bewertung durch Anwender'!I136),(Zielvereinbarung!G136))) -> 0 | H136: =Zielvereinbarung!G136 -> 0 | P136: ='BNB-System'!H132 -> 0
C137: ='BNB-System'!C133 -> Duschen und Umkleiden | D137: ='BNB-System'!D133 -> 5 | G137: =IF(AND(NOT(ISBLANK(K137)),NOT(ISBLANK(L137))),('Bewertung durch Anwender'!K137),IF(AND(NOT(ISBLANK(J137)),NOT(ISBLANK(I137))),('Bewertung durch Anwender'!I137),(Zielvereinbarung!G137))) -> 0 | H137: =Zielvereinbarung!G137 -> 0 | P137: ='BNB-System'!H133 -> 0
C138: ='BNB-System'!C134 -> Trocknungsmöglichkeiten | D138: ='BNB-System'!D134 -> 5 | G138: =IF(AND(NOT(ISBLANK(K138)),NOT(ISBLANK(L138))),('Bewertung durch Anwender'!K138),IF(AND(NOT(ISBLANK(J138)),NOT(ISBLANK(I138))),('Bewertung durch Anwender'!I138),(Zielvereinbarung!G138))) -> 0 | H138: =Zielvereinbarung!G138 -> 0 | P138: ='BNB-System'!H134 -> 0
C139: ='BNB-System'!C135 -> Sicherung der Gestaltungsqualität | P139: ='BNB-System'!H135 -> 0
B140: ='BNB-System'!B136 -> 3.3.1 | C140: ='BNB-System'!C136 -> Gestalterische und städtebauliche Qualität | D140: ='BNB-System'!D136 -> 100 | E140: ='BNB-System'!G136 -> 0.025 | G140: =IF(AND(NOT(ISBLANK(K140)),NOT(ISBLANK(L140))),('Bewertung durch Anwender'!K140),IF(AND(NOT(ISBLANK(J140)),NOT(ISBLANK(I140))),('Bewertung durch Anwender'!I140),(Zielvereinbarung!G140))) -> 0 | H140: =Zielvereinbarung!G140 -> 0 | M140: =IF(AND(M141>0,M145<=M146),SUM(M141:M144),IF(AND(M141>0,M146<=M145),SUM(M141:M144),IF(M145>0,M145,IF(M146>0,M146,M147)))) -> 0 | N140: =IF(AND(N141>0,N145<=N146),SUM(N141:N144),IF(AND(N141>0,N146<=N145),SUM(N141:N144),IF(N145>0,N145,IF(N146>0,N146,N147)))) -> 0 | P140: ='BNB-System'!H136 -> 200 | Q140: =IF(ISNUMBER(E140*N140/100),E140*N140/100,0) -> 0
C141: ='BNB-System'!C137 -> Durchführung von Planungswettbewerben | D141: ='BNB-System'!D137 -> 20 | G141: =IF(AND(NOT(ISBLANK(K141)),NOT(ISBLANK(L141))),('Bewertung durch Anwender'!K141),IF(AND(NOT(ISBLANK(J141)),NOT(ISBLANK(I141))),('Bewertung durch Anwender'!I141),(Zielvereinbarung!G141))) -> 0 | H141: =Zielvereinbarung!G141 -> 0 | P141: ='BNB-System'!H137 -> 0
C142: ='BNB-System'!C138 -> Wettbewerbsverfahren | D142: ='BNB-System'!D138 -> 40 | G142: =IF(AND(NOT(ISBLANK(K142)),NOT(ISBLANK(L142))),('Bewertung durch Anwender'!K142),IF(AND(NOT(ISBLANK(J142)),NOT(ISBLANK(I142))),('Bewertung durch Anwender'!I142),(Zielvereinbarung!G142))) -> 0 | H142: =Zielvereinbarung!G142 -> 0 | P142: ='BNB-System'!H138 -> 0
C143: ='BNB-System'!C139 -> Ausführung des Entwurfs eines der Preisträger | D143: ='BNB-System'!D139 -> 30 | G143: =IF(AND(NOT(ISBLANK(K143)),NOT(ISBLANK(L143))),('Bewertung durch Anwender'!K143),IF(AND(NOT(ISBLANK(J143)),NOT(ISBLANK(I143))),('Bewertung durch Anwender'!I143),(Zielvereinbarung!G143))) -> 0 | H143: =Zielvereinbarung!G143 -> 0 | P143: ='BNB-System'!H139 -> 0
C144: ='BNB-System'!C140 -> Beauftragung des Planungsteams | D144: ='BNB-System'!D140 -> 10 | G144: =IF(AND(NOT(ISBLANK(K144)),NOT(ISBLANK(L144))),('Bewertung durch Anwender'!K144),IF(AND(NOT(ISBLANK(J144)),NOT(ISBLANK(I144))),('Bewertung durch Anwender'!I144),(Zielvereinbarung!G144))) -> 0 | H144: =Zielvereinbarung!G144 -> 0 | P144: ='BNB-System'!H140 -> 0
C145: ='BNB-System'!C141 -> Auszeichnung mit einem Architekturpreis | D145: ='BNB-System'!D141 -> 60 | G145: =IF(AND(NOT(ISBLANK(K145)),NOT(ISBLANK(L145))),('Bewertung durch Anwender'!K145),IF(AND(NOT(ISBLANK(J145)),NOT(ISBLANK(I145))),('Bewertung durch Anwender'!I145),(Zielvereinbarung!G145))) -> 0 | H145: =Zielvereinbarung!G145 -> 0 | P145: ='BNB-System'!H141 -> 0
C146: ='BNB-System'!C142 -> Unabhängiges Expertengremium | D146: ='BNB-System'!D142 -> 40 | G146: =IF(AND(NOT(ISBLANK(K146)),NOT(ISBLANK(L146))),('Bewertung durch Anwender'!K146),IF(AND(NOT(ISBLANK(J146)),NOT(ISBLANK(I146))),('Bewertung durch Anwender'!I146),(Zielvereinbarung!G146))) -> 0 | H146: =Zielvereinbarung!G146 -> 0 | P146: ='BNB-System'!H142 -> 0
C147: ='BNB-System'!C143 -> Sonderfall Mindestanforderung | D147: ='BNB-System'!D143 -> 10 | G147: =IF(AND(NOT(ISBLANK(K147)),NOT(ISBLANK(L147))),('Bewertung durch Anwender'!K147),IF(AND(NOT(ISBLANK(J147)),NOT(ISBLANK(I147))),('Bewertung durch Anwender'!I147),(Zielvereinbarung!G147))) -> 0 | H147: =Zielvereinbarung!G147 -> 0 | P147: ='BNB-System'!H143 -> 0
B148: ='BNB-System'!B144 -> 3.3.2 | C148: ='BNB-System'!C144 -> Kunst am Bau | D148: ='BNB-System'!D144 -> 100 | E148: ='BNB-System'!G144 -> 0.0125 | G148: =IF(AND(NOT(ISBLANK(K148)),NOT(ISBLANK(L148))),('Bewertung durch Anwender'!K148),IF(AND(NOT(ISBLANK(J148)),NOT(ISBLANK(I148))),('Bewertung durch Anwender'!I148),(Zielvereinbarung!G148))) -> 0 | H148: =Zielvereinbarung!G148 -> 0 | M148: =SUM(M149:M152) -> 0 | N148: =SUM(N149:N152) -> 0 | P148: ='BNB-System'!H144 -> 100 | Q148: =IF(ISNUMBER(E148*N148/100),E148*N148/100,0) -> 0
C149: ='BNB-System'!C145 -> Mindestanforderung | D149: ='BNB-System'!D145 -> 10 | G149: =IF(AND(NOT(ISBLANK(K149)),NOT(ISBLANK(L149))),('Bewertung durch Anwender'!K149),IF(AND(NOT(ISBLANK(J149)),NOT(ISBLANK(I149))),('Bewertung durch Anwender'!I149),(Zielvereinbarung!G149))) -> 0 | H149: =Zielvereinbarung!G149 -> 0 | P149: ='BNB-System'!H145 -> 0
C150: ='BNB-System'!C146 -> Bereitstellung von Mitteln im Rahmen der Bauaufgabe | D150: ='BNB-System'!D146 -> 30 | G150: =IF(AND(NOT(ISBLANK(K150)),NOT(ISBLANK(L150))),('Bewertung durch Anwender'!K150),IF(AND(NOT(ISBLANK(J150)),NOT(ISBLANK(I150))),('Bewertung durch Anwender'!I150),(Zielvereinbarung!G150))) -> 0 | H150: =Zielvereinbarung!G150 -> 0 | P150: ='BNB-System'!H146 -> 0
C151: ='BNB-System'!C147 -> Umsetzung des BMVBS-Leitfadens Kunst am Bau | D151: ='BNB-System'!D147 -> 40 | G151: =IF(AND(NOT(ISBLANK(K151)),NOT(ISBLANK(L151))),('Bewertung durch Anwender'!K151),IF(AND(NOT(ISBLANK(J151)),NOT(ISBLANK(I151))),('Bewertung durch Anwender'!I151),(Zielvereinbarung!G151))) -> 0 | H151: =Zielvereinbarung!G151 -> 0 | P151: ='BNB-System'!H147 -> 0
C152: ='BNB-System'!C148 -> Öffentlichkeitsarbeit, Rezeption der Kunst am Bau | D152: ='BNB-System'!D148 -> 20 | G152: =IF(AND(NOT(ISBLANK(K152)),NOT(ISBLANK(L152))),('Bewertung durch Anwender'!K152),IF(AND(NOT(ISBLANK(J152)),NOT(ISBLANK(I152))),('Bewertung durch Anwender'!I152),(Zielvereinbarung!G152))) -> 0 | H152: =Zielvereinbarung!G152 -> 0 | P152: ='BNB-System'!H148 -> 0
P153: ='BNB-System'!H149 -> 0
B154: ='BNB-System'!B150 -> Technische Qualität | E154: ='BNB-System'!G150 -> 0.225 | G154: =IF(AND(NOT(ISBLANK(K154)),NOT(ISBLANK(L154))),('Bewertung durch Anwender'!K154),IF(AND(NOT(ISBLANK(J154)),NOT(ISBLANK(I154))),('Bewertung durch Anwender'!I154),(Zielvereinbarung!G154))) -> 0 | H154: =Zielvereinbarung!G154 -> 0 | M154: =M157*($E$157/100)+M162*($E$162/100)+M169*($E$169/100)+M179*($E$179/100)+M180*($E$180/100)+M181*($E$181/100)+M182*($E$182/100) -> 0 | N154: =N157*($E$157/100)+N162*($E$162/100)+N169*($E$169/100)+N179*($E$179/100)+N180*($E$180/100)+N181*($E$181/100)+N182*($E$182/100) -> 0 | P154: ='BNB-System'!H150 -> 1100
P155: ='BNB-System'!H151 -> 0
C156: ='BNB-System'!C152 -> technische Ausführung | P156: ='BNB-System'!H152 -> 0
B157: ='BNB-System'!B153 -> 4.1.1 | C157: ='BNB-System'!C153 -> Schallschutz | D157: ='BNB-System'!D153 -> 100 | E157: ='BNB-System'!G153 -> 0.02045454545 | G157: =IF(AND(NOT(ISBLANK(K157)),NOT(ISBLANK(L157))),('Bewertung durch Anwender'!K157),IF(AND(NOT(ISBLANK(J157)),NOT(ISBLANK(I157))),('Bewertung durch Anwender'!I157),(Zielvereinbarung!G157))) -> 0 | H157: =Zielvereinbarung!G157 -> 0 | M157: =SUM(M158:M161) -> 0 | N157: =SUM(N158:N161) -> 0 | P157: ='BNB-System'!H153 -> 100 | Q157: =IF(ISNUMBER(E157*N157/100),E157*N157/100,0) -> 0
C158: ='BNB-System'!C154 -> Luftschallschutz gegen Außenlärm | D158: ='BNB-System'!D154 -> 20 | G158: =IF(AND(NOT(ISBLANK(K158)),NOT(ISBLANK(L158))),('Bewertung durch Anwender'!K158),IF(AND(NOT(ISBLANK(J158)),NOT(ISBLANK(I158))),('Bewertung durch Anwender'!I158),(Zielvereinbarung!G158))) -> 0 | H158: =Zielvereinbarung!G158 -> 0 | P158: ='BNB-System'!H154 -> 0
C159: ='BNB-System'!C155 -> Luftschallschutz im Gebäudeinneren | D159: ='BNB-System'!D155 -> 30 | G159: =IF(AND(NOT(ISBLANK(K159)),NOT(ISBLANK(L159))),('Bewertung durch Anwender'!K159),IF(AND(NOT(ISBLANK(J159)),NOT(ISBLANK(I159))),('Bewertung durch Anwender'!I159),(Zielvereinbarung!G159))) -> 0 | H159: =Zielvereinbarung!G159 -> 0 | P159: ='BNB-System'!H155 -> 0
C160: ='BNB-System'!C156 -> Trittschallschutz gegenüber fremden und eigenen Arbeitsbereichen | D160: ='BNB-System'!D156 -> 30 | G160: =IF(AND(NOT(ISBLANK(K160)),NOT(ISBLANK(L160))),('Bewertung durch Anwender'!K160),IF(AND(NOT(ISBLANK(J160)),NOT(ISBLANK(I160))),('Bewertung durch Anwender'!I160),(Zielvereinbarung!G160))) -> 0 | H160: =Zielvereinbarung!G160 -> 0 | P160: ='BNB-System'!H156 -> 0
C161: ='BNB-System'!C157 -> Schallschutz gegenüber haustechnischen Anlagen | D161: ='BNB-System'!D157 -> 20 | G161: =IF(AND(NOT(ISBLANK(K161)),NOT(ISBLANK(L161))),('Bewertung durch Anwender'!K161),IF(AND(NOT(ISBLANK(J161)),NOT(ISBLANK(I161))),('Bewertung durch Anwender'!I161),(Zielvereinbarung!G161))) -> 0 | H161: =Zielvereinbarung!G161 -> 0 | P161: ='BNB-System'!H157 -> 0
B162: ='BNB-System'!B158 -> 4.1.2 | C162: ='BNB-System'!C158 -> Wärme- und Tauwasserschutz | D162: ='BNB-System'!D158 -> 100 | E162: ='BNB-System'!G158 -> 0.02045454545 | G162: =IF(AND(NOT(ISBLANK(K162)),NOT(ISBLANK(L162))),('Bewertung durch Anwender'!K162),IF(AND(NOT(ISBLANK(J162)),NOT(ISBLANK(I162))),('Bewertung durch Anwender'!I162),(Zielvereinbarung!G162))) -> 0 | H162: =Zielvereinbarung!G162 -> 0 | M162: =SUM(M163:M168) -> 0 | N162: =SUM(N163:N168) -> 0 | P162: ='BNB-System'!H158 -> 100 | Q162: =IF(ISNUMBER(E162*N162/100),E162*N162/100,0) -> 0
C163: ='BNB-System'!C159 -> Mittlere Wärmeduchgangskoeffizienten | D163: ='BNB-System'!D159 -> 30 | G163: =IF(AND(NOT(ISBLANK(K163)),NOT(ISBLANK(L163))),('Bewertung durch Anwender'!K163),IF(AND(NOT(ISBLANK(J163)),NOT(ISBLANK(I163))),('Bewertung durch Anwender'!I163),(Zielvereinbarung!G163))) -> 0 | H163: =Zielvereinbarung!G163 -> 0 | P163: ='BNB-System'!H159 -> 0
C164: ='BNB-System'!C160 -> Wärmebrückenzuschlag | D164: ='BNB-System'!D160 -> 15 | G164: =IF(AND(NOT(ISBLANK(K164)),NOT(ISBLANK(L164))),('Bewertung durch Anwender'!K164),IF(AND(NOT(ISBLANK(J164)),NOT(ISBLANK(I164))),('Bewertung durch Anwender'!I164),(Zielvereinbarung!G164))) -> 0 | H164: =Zielvereinbarung!G164 -> 0 | P164: ='BNB-System'!H160 -> 0
C165: ='BNB-System'!C161 -> Klassen der Luftdurchlässigkeit (Fugendurchlässigkeit) | D165: ='BNB-System'!D161 -> 15 | G165: =IF(AND(NOT(ISBLANK(K165)),NOT(ISBLANK(L165))),('Bewertung durch Anwender'!K165),IF(AND(NOT(ISBLANK(J165)),NOT(ISBLANK(I165))),('Bewertung durch Anwender'!I165),(Zielvereinbarung!G165))) -> 0 | H165: =Zielvereinbarung!G165 -> 0 | P165: ='BNB-System'!H161 -> 0
C166: ='BNB-System'!C162 -> Tauwasserbildung | D166: ='BNB-System'!D162 -> 10 | G166: =IF(AND(NOT(ISBLANK(K166)),NOT(ISBLANK(L166))),('Bewertung durch Anwender'!K166),IF(AND(NOT(ISBLANK(J166)),NOT(ISBLANK(I166))),('Bewertung durch Anwender'!I166),(Zielvereinbarung!G166))) -> 0 | H166: =Zielvereinbarung!G166 -> 0 | P166: ='BNB-System'!H162 -> 0
C167: ='BNB-System'!C163 -> Luftwechsel | D167: ='BNB-System'!D163 -> 15 | G167: =IF(AND(NOT(ISBLANK(K167)),NOT(ISBLANK(L167))),('Bewertung durch Anwender'!K167),IF(AND(NOT(ISBLANK(J167)),NOT(ISBLANK(I167))),('Bewertung durch Anwender'!I167),(Zielvereinbarung!G167))) -> 0 | H167: =Zielvereinbarung!G167 -> 0 | P167: ='BNB-System'!H163 -> 0
C168: ='BNB-System'!C164 -> Sonneneintragswert | D168: ='BNB-System'!D164 -> 15 | G168: =IF(AND(NOT(ISBLANK(K168)),NOT(ISBLANK(L168))),('Bewertung durch Anwender'!K168),IF(AND(NOT(ISBLANK(J168)),NOT(ISBLANK(I168))),('Bewertung durch Anwender'!I168),(Zielvereinbarung!G168))) -> 0 | H168: =Zielvereinbarung!G168 -> 0 | P168: ='BNB-System'!H164 -> 0
B169: ='BNB-System'!B165 -> 4.1.3 | C169: ='BNB-System'!C165 -> Reinigungs- und Instandhaltungsfreundlichkeit | D169: ='BNB-System'!D165 -> 100 | E169: ='BNB-System'!G165 -> 0.04090909091 | G169: =IF(AND(NOT(ISBLANK(K169)),NOT(ISBLANK(L169))),('Bewertung durch Anwender'!K169),IF(AND(NOT(ISBLANK(J169)),NOT(ISBLANK(I169))),('Bewertung durch Anwender'!I169),(Zielvereinbarung!G169))) -> 0 | H169: =Zielvereinbarung!G169 -> 0 | M169: =SUM(M170:M178) -> 0 | N169: =SUM(N170:N178) -> 0 | P169: ='BNB-System'!H165 -> 200 | Q169: =IF(ISNUMBER(E169*N169/100),E169*N169/100,0) -> 0
C170: ='BNB-System'!C166 -> Tragkonstruktion | D170: ='BNB-System'!D166 -> 15 | G170: =IF(AND(NOT(ISBLANK(K170)),NOT(ISBLANK(L170))),('Bewertung durch Anwender'!K170),IF(AND(NOT(ISBLANK(J170)),NOT(ISBLANK(I170))),('Bewertung durch Anwender'!I170),(Zielvereinbarung!G170))) -> 0 | H170: =Zielvereinbarung!G170 -> 0 | P170: ='BNB-System'!H166 -> 0
C171: ='BNB-System'!C167 -> Zugänglichkeit der Außenglasflächen | D171: ='BNB-System'!D167 -> 15 | G171: =IF(AND(NOT(ISBLANK(K171)),NOT(ISBLANK(L171))),('Bewertung durch Anwender'!K171),IF(AND(NOT(ISBLANK(J171)),NOT(ISBLANK(I171))),('Bewertung durch Anwender'!I171),(Zielvereinbarung!G171))) -> 0 | H171: =Zielvereinbarung!G171 -> 0 | P171: ='BNB-System'!H167 -> 0
C172: ='BNB-System'!C168 -> Außenbauteile | D172: ='BNB-System'!D168 -> 9 | G172: =IF(AND(NOT(ISBLANK(K172)),NOT(ISBLANK(L172))),('Bewertung durch Anwender'!K172),IF(AND(NOT(ISBLANK(J172)),NOT(ISBLANK(I172))),('Bewertung durch Anwender'!I172),(Zielvereinbarung!G172))) -> 0 | H172: =Zielvereinbarung!G172 -> 0 | P172: ='BNB-System'!H168 -> 0
C173: ='BNB-System'!C169 -> Bodenbelag | D173: ='BNB-System'!D169 -> 9 | G173: =IF(AND(NOT(ISBLANK(K173)),NOT(ISBLANK(L173))),('Bewertung durch Anwender'!K173),IF(AND(NOT(ISBLANK(J173)),NOT(ISBLANK(I173))),('Bewertung durch Anwender'!I173),(Zielvereinbarung!G173))) -> 0 | H173: =Zielvereinbarung!G173 -> 0 | P173: ='BNB-System'!H169 -> 0
C174: ='BNB-System'!C170 -> Schmutzfangzone | D174: ='BNB-System'!D170 -> 9 | G174: =IF(AND(NOT(ISBLANK(K174)),NOT(ISBLANK(L174))),('Bewertung durch Anwender'!K174),IF(AND(NOT(ISBLANK(J174)),NOT(ISBLANK(I174))),('Bewertung durch Anwender'!I174),(Zielvereinbarung!G174))) -> 0 | H174: =Zielvereinbarung!G174 -> 0 | P174: ='BNB-System'!H170 -> 0
C175: ='BNB-System'!C171 -> Fußbodenleisten | D175: ='BNB-System'!D171 -> 9 | G175: =IF(AND(NOT(ISBLANK(K175)),NOT(ISBLANK(L175))),('Bewertung durch Anwender'!K175),IF(AND(NOT(ISBLANK(J175)),NOT(ISBLANK(I175))),('Bewertung durch Anwender'!I175),(Zielvereinbarung!G175))) -> 0 | H175: =Zielvereinbarung!G175 -> 0 | P175: ='BNB-System'!H171 -> 0
C176: ='BNB-System'!C172 -> Hindernisfreie Grundrissgestaltung | D176: ='BNB-System'!D172 -> 9 | G176: =IF(AND(NOT(ISBLANK(K176)),NOT(ISBLANK(L176))),('Bewertung durch Anwender'!K176),IF(AND(NOT(ISBLANK(J176)),NOT(ISBLANK(I176))),('Bewertung durch Anwender'!I176),(Zielvereinbarung!G176))) -> 0 | H176: =Zielvereinbarung!G176 -> 0 | P176: ='BNB-System'!H172 -> 0
C177: ='BNB-System'!C173 -> Einbauten | D177: ='BNB-System'!D173 -> 10 | G177: =IF(AND(NOT(ISBLANK(K177)),NOT(ISBLANK(L177))),('Bewertung durch Anwender'!K177),IF(AND(NOT(ISBLANK(J177)),NOT(ISBLANK(I177))),('Bewertung durch Anwender'!I177),(Zielvereinbarung!G177))) -> 0 | H177: =Zielvereinbarung!G177 -> 0 | P177: ='BNB-System'!H173 -> 0
C178: ='BNB-System'!C174 -> Zugänglichkeit der Innenglasflächen | D178: ='BNB-System'!D174 -> 15 | G178: =IF(AND(NOT(ISBLANK(K178)),NOT(ISBLANK(L178))),('Bewertung durch Anwender'!K178),IF(AND(NOT(ISBLANK(J178)),NOT(ISBLANK(I178))),('Bewertung durch Anwender'!I178),(Zielvereinbarung!G178))) -> 0 | H178: =Zielvereinbarung!G178 -> 0 | P178: ='BNB-System'!H174 -> 0
B179: ='BNB-System'!B175 -> 4.1.4 | C179: ='BNB-System'!C175 -> Rückbau, Trennung und Verwertung | D179: ='BNB-System'!D175 -> 100 | E179: ='BNB-System'!G175 -> 0.02045454545 | G179: =IF(AND(NOT(ISBLANK(K179)),NOT(ISBLANK(L179))),('Bewertung durch Anwender'!K179),IF(AND(NOT(ISBLANK(J179)),NOT(ISBLANK(I179))),('Bewertung durch Anwender'!I179),(Zielvereinbarung!G179))) -> 0 | H179: =Zielvereinbarung!G179 -> 0 | P179: ='BNB-System'!H175 -> 100 | Q179: =IF(ISNUMBER(E179*N179/100),E179*N179/100,0) -> 0
B180: ='BNB-System'!B176 -> 4.1.5 | C180: ='BNB-System'!C176 -> Widerstandsfähigkeit gegen Naturgefahren | D180: ='BNB-System'!D176 -> 100 | E180: ='BNB-System'!G176 -> 0.02045454545 | G180: =IF(AND(NOT(ISBLANK(K180)),NOT(ISBLANK(L180))),('Bewertung durch Anwender'!K180),IF(AND(NOT(ISBLANK(J180)),NOT(ISBLANK(I180))),('Bewertung durch Anwender'!I180),(Zielvereinbarung!G180))) -> 0 | H180: =Zielvereinbarung!G180 -> 0 | P180: ='BNB-System'!H176 -> 100 | Q180: =IF(ISNUMBER(E180*N180/100),E180*N180/100,0) -> 0
B181: ='BNB-System'!B177 -> 4.1.6 | C181: ='BNB-System'!C177 -> Bedienungs- und Instandhaltungsfreundlichkeit der TGA | D181: ='BNB-System'!D177 -> 100 | E181: ='BNB-System'!G177 -> 0.04090909091 | G181: =IF(AND(NOT(ISBLANK(K181)),NOT(ISBLANK(L181))),('Bewertung durch Anwender'!K181),IF(AND(NOT(ISBLANK(J181)),NOT(ISBLANK(I181))),('Bewertung durch Anwender'!I181),(Zielvereinbarung!G181))) -> 0 | H181: =Zielvereinbarung!G181 -> 0 | P181: ='BNB-System'!H177 -> 200 | Q181: =IF(ISNUMBER(E181*N181/100),E181*N181/100,0) -> 0
B182: ='BNB-System'!B178 -> 4.1.7 | C182: ='BNB-System'!C178 -> Systemqualität der TGA | D182: ='BNB-System'!D178 -> 100 | E182: ='BNB-System'!G178 -> 0.06136363636 | G182: =IF(AND(NOT(ISBLANK(K182)),NOT(ISBLANK(L182))),('Bewertung durch Anwender'!K182),IF(AND(NOT(ISBLANK(J182)),NOT(ISBLANK(I182))),('Bewertung durch Anwender'!I182),(Zielvereinbarung!G182))) -> 0 | H182: =Zielvereinbarung!G182 -> 0 | P182: ='BNB-System'!H178 -> 300 | Q182: =IF(ISNUMBER(E182*N182/100),E182*N182/100,0) -> 0
P183: ='BNB-System'!H179 -> 0
B184: ='BNB-System'!B180 -> Prozessqualität | E184: ='BNB-System'!G180 -> 0.1 | G184: =IF(AND(NOT(ISBLANK(K184)),NOT(ISBLANK(L184))),('Bewertung durch Anwender'!K184),IF(AND(NOT(ISBLANK(J184)),NOT(ISBLANK(I184))),('Bewertung durch Anwender'!I184),(Zielvereinbarung!G184))) -> 0 | H184: =Zielvereinbarung!G184 -> 0 | M184: =M187*($E$187/100)+M191*($E$191/100)+M197*($E$197/100)+M213*($E$213/100)+M214*($E$214/100)+M221*($E$221/100)+M226*($E$226/100)+M229*($E$229/100) -> 0 | N184: =N187*($E$187/100)+N191*($E$191/100)+N197*($E$197/100)+N213*($E$213/100)+N214*($E$214/100)+N221*($E$221/100)+N226*($E$226/100)+N229*($E$229/100) -> 0 | P184: ='BNB-System'!H180 -> 2100
P185: ='BNB-System'!H181 -> 0
C186: ='BNB-System'!C182 -> Planung | P186: ='BNB-System'!H182 -> 0
B187: ='BNB-System'!B183 -> 5.1.1 | C187: ='BNB-System'!C183 -> Projektvorbereitung | D187: ='BNB-System'!D183 -> 100 | E187: ='BNB-System'!G183 -> 0.01428571429 | G187: =IF(AND(NOT(ISBLANK(K187)),NOT(ISBLANK(L187))),('Bewertung durch Anwender'!K187),IF(AND(NOT(ISBLANK(J187)),NOT(ISBLANK(I187))),('Bewertung durch Anwender'!I187),(Zielvereinbarung!G187))) -> 0 | H187: =Zielvereinbarung!G187 -> 0 | M187: =SUM(M188:M190) -> 0 | N187: =SUM(N188:N190) -> 0 | P187: ='BNB-System'!H183 -> 300 | Q187: =IF(ISNUMBER(E187*N187/100),E187*N187/100,0) -> 0
C188: ='BNB-System'!C184 -> Bedarfsplanung oder vergleichbare Planung | D188: ='BNB-System'!D184 -> 35 | G188: =IF(AND(NOT(ISBLANK(K188)),NOT(ISBLANK(L188))),('Bewertung durch Anwender'!K188),IF(AND(NOT(ISBLANK(J188)),NOT(ISBLANK(I188))),('Bewertung durch Anwender'!I188),(Zielvereinbarung!G188))) -> 0 | H188: =Zielvereinbarung!G188 -> 0 | P188: ='BNB-System'!H184 -> 0
C189: ='BNB-System'!C185 -> Zielvereinbarung | D189: ='BNB-System'!D185 -> 35 | G189: =IF(AND(NOT(ISBLANK(K189)),NOT(ISBLANK(L189))),('Bewertung durch Anwender'!K189),IF(AND(NOT(ISBLANK(J189)),NOT(ISBLANK(I189))),('Bewertung durch Anwender'!I189),(Zielvereinbarung!G189))) -> 0 | H189: =Zielvereinbarung!G189 -> 0 | P189: ='BNB-System'!H185 -> 0
C190: ='BNB-System'!C186 -> Architektenwettbewerb | D190: ='BNB-System'!D186 -> 30 | G190: =IF(AND(NOT(ISBLANK(K190)),NOT(ISBLANK(L190))),('Bewertung durch Anwender'!K190),IF(AND(NOT(ISBLANK(J190)),NOT(ISBLANK(I190))),('Bewertung durch Anwender'!I190),(Zielvereinbarung!G190))) -> 0 | H190: =Zielvereinbarung!G190 -> 0 | P190: ='BNB-System'!H186 -> 0
B191: ='BNB-System'!B187 -> 5.1.2 | C191: ='BNB-System'!C187 -> Integrale Planung | D191: ='BNB-System'!D187 -> 100 | E191: ='BNB-System'!G187 -> 0.01428571429 | G191: =IF(AND(NOT(ISBLANK(K191)),NOT(ISBLANK(L191))),('Bewertung durch Anwender'!K191),IF(AND(NOT(ISBLANK(J191)),NOT(ISBLANK(I191))),('Bewertung durch Anwender'!I191),(Zielvereinbarung!G191))) -> 0 | H191: =Zielvereinbarung!G191 -> 0 | M191: =SUM(M192:M196) -> 0 | N191: =SUM(N192:N196) -> 0 | P191: ='BNB-System'!H187 -> 300 | Q191: =IF(ISNUMBER(E191*N191/100),E191*N191/100,0) -> 0
C192: ='BNB-System'!C188 -> Interdisziplinäres Projektteam | D192: ='BNB-System'!D188 -> 30 | G192: =IF(AND(NOT(ISBLANK(K192)),NOT(ISBLANK(L192))),('Bewertung durch Anwender'!K192),IF(AND(NOT(ISBLANK(J192)),NOT(ISBLANK(I192))),('Bewertung durch Anwender'!I192),(Zielvereinbarung!G192))) -> 0 | H192: =Zielvereinbarung!G192 -> 0 | P192: ='BNB-System'!H188 -> 0
C193: ='BNB-System'!C189 -> Qualifikation des Projektteams | D193: ='BNB-System'!D189 -> 20 | G193: =IF(AND(NOT(ISBLANK(K193)),NOT(ISBLANK(L193))),('Bewertung durch Anwender'!K193),IF(AND(NOT(ISBLANK(J193)),NOT(ISBLANK(I193))),('Bewertung durch Anwender'!I193),(Zielvereinbarung!G193))) -> 0 | H193: =Zielvereinbarung!G193 -> 0 | P193: ='BNB-System'!H189 -> 0
C194: ='BNB-System'!C190 -> Integraler Planungsprozess | D194: ='BNB-System'!D190 -> 20 | G194: =IF(AND(NOT(ISBLANK(K194)),NOT(ISBLANK(L194))),('Bewertung durch Anwender'!K194),IF(AND(NOT(ISBLANK(J194)),NOT(ISBLANK(I194))),('Bewertung durch Anwender'!I194),(Zielvereinbarung!G194))) -> 0 | H194: =Zielvereinbarung!G194 -> 0 | P194: ='BNB-System'!H190 -> 0
C195: ='BNB-System'!C191 -> Nutzerbeteiligung | D195: ='BNB-System'!D191 -> 20 | G195: =IF(AND(NOT(ISBLANK(K195)),NOT(ISBLANK(L195))),('Bewertung durch Anwender'!K195),IF(AND(NOT(ISBLANK(J195)),NOT(ISBLANK(I195))),('Bewertung durch Anwender'!I195),(Zielvereinbarung!G195))) -> 0 | H195: =Zielvereinbarung!G195 -> 0 | P195: ='BNB-System'!H191 -> 0
C196: ='BNB-System'!C192 -> Öffentlichkeitsbeteiligung | D196: ='BNB-System'!D192 -> 10 | G196: =IF(AND(NOT(ISBLANK(K196)),NOT(ISBLANK(L196))),('Bewertung durch Anwender'!K196),IF(AND(NOT(ISBLANK(J196)),NOT(ISBLANK(I196))),('Bewertung durch Anwender'!I196),(Zielvereinbarung!G196))) -> 0 | H196: =Zielvereinbarung!G196 -> 0 | P196: ='BNB-System'!H192 -> 0
B197: ='BNB-System'!B193 -> 5.1.3 | C197: ='BNB-System'!C193 -> Komplexität und Optimierung der Planung | D197: ='BNB-System'!D193 -> 100 | E197: ='BNB-System'!G193 -> 0.01428571429 | G197: =IF(AND(NOT(ISBLANK(K197)),NOT(ISBLANK(L197))),('Bewertung durch Anwender'!K197),IF(AND(NOT(ISBLANK(J197)),NOT(ISBLANK(I197))),('Bewertung durch Anwender'!I197),(Zielvereinbarung!G197))) -> 0 | H197: =Zielvereinbarung!G197 -> 0 | M197: =IF(SUM(M198:M212)>100,100,SUM(M198:M212)) -> 0 | N197: =IF(SUM(N198:N212)>100,100,SUM(N198:N212)) -> 0 | P197: ='BNB-System'!H193 -> 300 | Q197: =IF(ISNUMBER(E197*N197/100),E197*N197/100,0) -> 0
C198: ='BNB-System'!C194 -> SiGe-Plan | D198: ='BNB-System'!D194 -> 10 | G198: =IF(AND(NOT(ISBLANK(K198)),NOT(ISBLANK(L198))),('Bewertung durch Anwender'!K198),IF(AND(NOT(ISBLANK(J198)),NOT(ISBLANK(I198))),('Bewertung durch Anwender'!I198),(Zielvereinbarung!G198))) -> 0 | H198: =Zielvereinbarung!G198 -> 0 | P198: ='BNB-System'!H194 -> 0
C199: ='BNB-System'!C195 -> Ver- und Entsiegelungskonzept | D199: ='BNB-System'!D195 -> 10 | G199: =IF(AND(NOT(ISBLANK(K199)),NOT(ISBLANK(L199))),('Bewertung durch Anwender'!K199),IF(AND(NOT(ISBLANK(J199)),NOT(ISBLANK(I199))),('Bewertung durch Anwender'!I199),(Zielvereinbarung!G199))) -> 0 | H199: =Zielvereinbarung!G199 -> 0 | P199: ='BNB-System'!H195 -> 0
C200: ='BNB-System'!C196 -> Energiekonzept | D200: ='BNB-System'!D196 -> 15 | G200: =IF(AND(NOT(ISBLANK(K200)),NOT(ISBLANK(L200))),('Bewertung durch Anwender'!K200),IF(AND(NOT(ISBLANK(J200)),NOT(ISBLANK(I200))),('Bewertung durch Anwender'!I200),(Zielvereinbarung!G200))) -> 0 | H200: =Zielvereinbarung!G200 -> 0 | P200: ='BNB-System'!H196 -> 0
C201: ='BNB-System'!C197 -> Mess- und Monitoringkonzept | D201: ='BNB-System'!D197 -> 15 | G201: =IF(AND(NOT(ISBLANK(K201)),NOT(ISBLANK(L201))),('Bewertung durch Anwender'!K201),IF(AND(NOT(ISBLANK(J201)),NOT(ISBLANK(I201))),('Bewertung durch Anwender'!I201),(Zielvereinbarung!G201))) -> 0 | H201: =Zielvereinbarung!G201 -> 0 | P201: ='BNB-System'!H197 -> 0
C202: ='BNB-System'!C198 -> Wasserkonzept | D202: ='BNB-System'!D198 -> 20 | G202: =IF(AND(NOT(ISBLANK(K202)),NOT(ISBLANK(L202))),('Bewertung durch Anwender'!K202),IF(AND(NOT(ISBLANK(J202)),NOT(ISBLANK(I202))),('Bewertung durch Anwender'!I202),(Zielvereinbarung!G202))) -> 0 | H202: =Zielvereinbarung!G202 -> 0 | P202: ='BNB-System'!H198 -> 0
... 69 more rows

Sheet Konformitätsprüfung (hidden)
B1: ='BNB-System'!B1 -> Projekt: | C1: =Zielvereinbarung!C1 -> Projektbezeichnung
B2: ='BNB-System'!B2 -> Bewertungssystem Nachhaltiges Bauen (BNB)
B3: ='BNB-System'!B3 -> Systemvariante Laborgebäude, Modul Neubau (BNB_LN) - Version 2020
B4: Nachhaltigkeitskriterien | D4: maximale Punktzahl | E4: Gewichtung Gesamt- bewertung | F4: Punkt- zahl | G4: Eingereichte Endbewertung | I4: Bemerkung Konformitätsprüfung Prüfung vom: | J4: Bearbeiter | L4: Zielwert | M4: Gesamt-bewertung Anwender | N4: Gesamt-bewertung Konformitäts- prüfung
F5: Ziel- vereinbarung | G5: Anwender | H5: Konformitätsprüfung | I5: =TODAY() -> 2021-01-14
B7: Gesamterfüllungsgrad | F7: =Zielvereinbarung!$G$7 -> 0 | G7: ='Bewertung durch Anwender'!N7 -> 0 | H7: =H10+H28+H48+H154+H184 -> 0
H8: ende | K8: qwertz
B10: ='BNB-System'!B6 -> Ökologische Qualität | E10: ='BNB-System'!G6 -> 0.225 | F10: ='Bewertung durch Anwender'!G10 -> 0 | G10: ='Bewertung durch Anwender'!N10 -> 0 | H10: =H13*(E13/100)+H14*(E14/100)+H15*(E15/100)+H16*(E16/100)+H17*(E17/100)+H18*(E18/100)+H19*(E19/100)+H21*(E21/100)+H25*(E25/100)+H26*(E26/100) -> 0 | L10: ='BNB-System'!H6 -> 1600
L11: ='BNB-System'!H7 -> 0
C12: Wirkungen auf die globale und lokale Umwelt | L12: ='BNB-System'!H8 -> 0
B13: ='BNB-System'!B9 -> 1.1.1 | C13: ='BNB-System'!C9 -> Treibhauspotenzial (GWP) | D13: ='BNB-System'!D9 -> 100 | E13: ='BNB-System'!G9 -> 0.0421875 | F13: ='Bewertung durch Anwender'!G13 -> 0 | G13: ='Bewertung durch Anwender'!N13 -> 0 | L13: ='BNB-System'!H9 -> 300 | M13: =IF(ISNUMBER(G13*E13/100),G13*E13/100,0) -> 0 | N13: =IF(ISNUMBER(H13*E13/100),H13*E13/100,0) -> 0
B14: ='BNB-System'!B10 -> 1.1.2 | C14: ='BNB-System'!C10 -> Ozonschichtabbaupotenzial (ODP) | D14: ='BNB-System'!D10 -> 100 | E14: ='BNB-System'!G10 -> 0.0140625 | F14: ='Bewertung durch Anwender'!G14 -> 0 | G14: ='Bewertung durch Anwender'!N14 -> 0 | L14: ='BNB-System'!H10 -> 100 | M14: =IF(ISNUMBER(G14*E14/100),G14*E14/100,0) -> 0 | N14: 0
B15: ='BNB-System'!B11 -> 1.1.3 | C15: ='BNB-System'!C11 -> Ozonbildungspotenzial (POCP) | D15: ='BNB-System'!D11 -> 100 | E15: ='BNB-System'!G11 -> 0.0140625 | F15: ='Bewertung durch Anwender'!G15 -> 0 | G15: ='Bewertung durch Anwender'!N15 -> 0 | L15: ='BNB-System'!H11 -> 100 | M15: 0 | N15: 0
B16: ='BNB-System'!B12 -> 1.1.4 | C16: ='BNB-System'!C12 -> Versauerungspotenzial (AP) | D16: ='BNB-System'!D12 -> 100 | E16: ='BNB-System'!G12 -> 0.0140625 | F16: ='Bewertung durch Anwender'!G16 -> 0 | G16: ='Bewertung durch Anwender'!N16 -> 0 | L16: ='BNB-System'!H12 -> 100 | M16: 0 | N16: 0
B17: ='BNB-System'!B13 -> 1.1.5 | C17: ='BNB-System'!C13 -> Überdüngungspotenzial (EP) | D17: ='BNB-System'!D13 -> 100 | E17: ='BNB-System'!G13 -> 0.0140625 | F17: ='Bewertung durch Anwender'!G17 -> 0 | G17: ='Bewertung durch Anwender'!N17 -> 0 | L17: ='BNB-System'!H13 -> 100 | M17: 0 | N17: 0
B18: ='BNB-System'!B14 -> 1.1.6 | C18: ='BNB-System'!C14 -> Risiken für die lokale Umwelt | D18: ='BNB-System'!D14 -> 100 | E18: ='BNB-System'!G14 -> 0.0421875 | F18: ='Bewertung durch Anwender'!G18 -> 0 | G18: ='Bewertung durch Anwender'!N18 -> 0 | L18: ='BNB-System'!H14 -> 300 | M18: 0 | N18: 0
B19: ='BNB-System'!B15 -> 1.1.7 | C19: ='BNB-System'!C15 -> Nachhaltige Materialgewinnung / Biodiversität | D19: ='BNB-System'!D15 -> 100 | E19: ='BNB-System'!G15 -> 0.0140625 | F19: ='Bewertung durch Anwender'!G19 -> 0 | G19: ='Bewertung durch Anwender'!N19 -> 0 | L19: ='BNB-System'!H15 -> 100 | M19: 0 | N19: 0
C20: ='BNB-System'!C16 -> Ressourceninanspruchnahme | L20: ='BNB-System'!H16 -> 0
B21: ='BNB-System'!B17 -> 1.2.1 | C21: ='BNB-System'!C17 -> Primärenergiebedarf | D21: ='BNB-System'!D17 -> 100 | E21: ='BNB-System'!G17 -> 0.0421875 | F21: ='Bewertung durch Anwender'!G21 -> 0 | G21: ='Bewertung durch Anwender'!N21 -> 0 | H21: =IF(SUM(H22:H24)>100,100,SUM(H22:H24)) -> 0 | L21: ='BNB-System'!H17 -> 300 | M21: =IF(ISNUMBER(G21*E21/100),G21*E21/100,0) -> 0 | N21: =IF(ISNUMBER(H21*E21/100),H21*E21/100,0) -> 0
C22: ='BNB-System'!C18 -> Primärenergiebedarf nicht erneuerbar (PEne) | D22: ='BNB-System'!D18 -> 60 | F22: ='Bewertung durch Anwender'!G22 -> 0 | G22: ='Bewertung durch Anwender'!N22 -> 0 | L22: ='BNB-System'!H18 -> 0
C23: ='BNB-System'!C19 -> Gesamtprimärenergiebedarf (PEges) | D23: ='BNB-System'!D19 -> 40 | F23: ='Bewertung durch Anwender'!G23 -> 0 | G23: ='Bewertung durch Anwender'!N23 -> 0 | L23: ='BNB-System'!H19 -> 0
C24: ='BNB-System'!C20 -> Anteil erneuerbarer Primärenergie | D24: ='BNB-System'!D20 -> 20 | F24: ='Bewertung durch Anwender'!G24 -> 0 | G24: ='Bewertung durch Anwender'!N24 -> 0 | L24: ='BNB-System'!H20 -> 0
B25: ='BNB-System'!B21 -> 1.2.3 | C25: ='BNB-System'!C21 -> Trinkwasserbedarf und Abwasseraufkommen | D25: ='BNB-System'!D21 -> 100 | E25: ='BNB-System'!G21 -> 0.0140625 | F25: ='Bewertung durch Anwender'!G25 -> 0 | G25: ='Bewertung durch Anwender'!N25 -> 0 | L25: ='BNB-System'!H21 -> 100 | M25: =IF(ISNUMBER(G25*E25/100),G25*E25/100,0) -> 0 | N25: =IF(ISNUMBER(H25*E25/100),H25*E25/100,0) -> 0
B26: ='BNB-System'!B22 -> 1.2.4 | C26: ='BNB-System'!C22 -> Flächeninanspruchnahme | D26: ='BNB-System'!D22 -> 100 | E26: ='BNB-System'!G22 -> 0.0140625 | F26: ='Bewertung durch Anwender'!G26 -> 0 | G26: ='Bewertung durch Anwender'!N26 -> 0 | L26: ='BNB-System'!H22 -> 100 | M26: =IF(ISNUMBER(G26*E26/100),G26*E26/100,0) -> 0 | N26: =IF(ISNUMBER(H26*E26/100),H26*E26/100,0) -> 0
L27: ='BNB-System'!H23 -> 0
B28: ='BNB-System'!B24 -> Ökonomische Qualität | E28: ='BNB-System'!G24 -> 0.225 | F28: ='Bewertung durch Anwender'!G28 -> 0 | G28: ='Bewertung durch Anwender'!N28 -> 0 | H28: =H31*($E$31/100)+H33*($E$33/100)+H34*($E$34/100) -> 0 | L28: ='BNB-System'!H24 -> 600
B29: ='BNB-System'!B25 -> 0 | L29: ='BNB-System'!H25 -> 0
C30: ='BNB-System'!C26 -> Lebenszykluskosten | L30: ='BNB-System'!H26 -> 0
B31: ='BNB-System'!B27 -> 2.1.1 | C31: ='BNB-System'!C27 -> Gebäudebezogene Kosten im Lebenszyklus | D31: ='BNB-System'!D27 -> 100 | E31: ='BNB-System'!G27 -> 0.1125 | F31: ='Bewertung durch Anwender'!G31 -> 0 | G31: ='Bewertung durch Anwender'!N31 -> 0 | L31: ='BNB-System'!H27 -> 300 | M31: =IF(ISNUMBER(G31*E31/100),G31*E31/100,0) -> 0 | N31: =IF(ISNUMBER(H31*E31/100),H31*E31/100,0) -> 0
C32: ='BNB-System'!C28 -> Wirtschaftlichkeit und Wertstabilität | L32: ='BNB-System'!H28 -> 0
B33: ='BNB-System'!B29 -> 2.2.1 | C33: ='BNB-System'!C29 -> Flächeneffizienz | D33: ='BNB-System'!D29 -> 100 | E33: ='BNB-System'!G29 -> 0.0375 | F33: ='Bewertung durch Anwender'!G33 -> 0 | G33: ='Bewertung durch Anwender'!N33 -> 0 | L33: ='BNB-System'!H29 -> 100 | M33: =IF(ISNUMBER(G33*E33/100),G33*E33/100,0) -> 0 | N33: =IF(ISNUMBER(H33*E33/100),H33*E33/100,0) -> 0
B34: ='BNB-System'!B30 -> 2.2.2 | C34: ='BNB-System'!C30 -> Anpassungsfähigkeit | D34: ='BNB-System'!D30 -> 100 | E34: ='BNB-System'!G30 -> 0.075 | F34: ='Bewertung durch Anwender'!G34 -> 0 | G34: ='Bewertung durch Anwender'!N34 -> 0 | H34: =SUM(H35:H46) -> 0 | L34: ='BNB-System'!H30 -> 200 | M34: =IF(ISNUMBER(G34*E34/100),G34*E34/100,0) -> 0 | N34: =IF(ISNUMBER(H34*E34/100),H34*E34/100,0) -> 0
C35: ='BNB-System'!C31 -> Raumhöhe | D35: ='BNB-System'!D31 -> 8 | F35: ='Bewertung durch Anwender'!G35 -> 0 | G35: ='Bewertung durch Anwender'!N35 -> 0 | L35: ='BNB-System'!H31 -> 0
C36: ='BNB-System'!C32 -> Grundrissorganisation | F36: ='Bewertung durch Anwender'!G36 -> 0 | G36: ='Bewertung durch Anwender'!N36 -> 0 | L36: ='BNB-System'!H32 -> 0
C37: ='BNB-System'!C33 -> Positionierung der Erschließung | D37: ='BNB-System'!D33 -> 5 | F37: ='Bewertung durch Anwender'!G37 -> 0 | G37: ='Bewertung durch Anwender'!N37 -> 0 | L37: ='BNB-System'!H33 -> 0
C38: ='BNB-System'!C34 -> Rettungswege | D38: ='BNB-System'!D34 -> 2 | F38: ='Bewertung durch Anwender'!G38 -> 0 | G38: ='Bewertung durch Anwender'!N38 -> 0 | L38: ='BNB-System'!H34 -> 0
C39: ='BNB-System'!C35 -> sanitäre Anlagen | D39: ='BNB-System'!D35 -> 2 | F39: ='Bewertung durch Anwender'!G39 -> 0 | G39: ='Bewertung durch Anwender'!N39 -> 0 | L39: ='BNB-System'!H35 -> 0
C40: ='BNB-System'!C36 -> Konstruktion | F40: ='Bewertung durch Anwender'!G40 -> 0 | G40: ='Bewertung durch Anwender'!N40 -> 0 | L40: ='BNB-System'!H36 -> 0
C41: ='BNB-System'!C37 -> Anteil nicht tragender Innenwände | D41: ='BNB-System'!D37 -> 5 | F41: ='Bewertung durch Anwender'!G41 -> 0 | G41: ='Bewertung durch Anwender'!N41 -> 0 | L41: ='BNB-System'!H37 -> 0
C42: ='BNB-System'!C38 -> Anschluss von Trennwänden an der Fassadenachse | D42: ='BNB-System'!D38 -> 1 | F42: ='Bewertung durch Anwender'!G42 -> 0 | G42: ='Bewertung durch Anwender'!N42 -> 0 | L42: ='BNB-System'!H38 -> 0
C43: ='BNB-System'!C39 -> kein Eingriff von Trennwänden in Fußboden, Decke, Abhangdecke | D43: ='BNB-System'!D39 -> 1 | F43: ='Bewertung durch Anwender'!G43 -> 0 | G43: ='Bewertung durch Anwender'!N43 -> 0 | L43: ='BNB-System'!H39 -> 0
C44: ='BNB-System'!C40 -> zulässige Nutzlasten | D44: ='BNB-System'!D40 -> 1 | F44: ='Bewertung durch Anwender'!G44 -> 0 | G44: ='Bewertung durch Anwender'!N44 -> 0 | L44: ='BNB-System'!H40 -> 0
C45: ='BNB-System'!C41 -> Technische Ausstattung | F45: ='Bewertung durch Anwender'!G45 -> 0 | G45: ='Bewertung durch Anwender'!N45 -> 0 | L45: ='BNB-System'!H41 -> 0
C46: ='BNB-System'!C42 -> Technische Ausstattung | D46: ='BNB-System'!D42 -> 75 | F46: ='Bewertung durch Anwender'!G46 -> 0 | G46: ='Bewertung durch Anwender'!N46 -> 0 | L46: ='BNB-System'!H42 -> 0
L47: ='BNB-System'!H43 -> 0
B48: ='BNB-System'!B44 -> Soziokulturelle und funktionale Qualität | E48: ='BNB-System'!G44 -> 0.225 | F48: ='Bewertung durch Anwender'!G48 -> 0 | G48: ='Bewertung durch Anwender'!N48 -> 0 | H48: =H51*($E$51/100)+H62*($E$62/100)+H65*($E$65/100)+H73*($E$73/100)+H81*($E$81/100)+H90*($E$90/100)+H104*($E$104/100)+H114*($E$114/100)+H115*($E$115/100)+H119*($E$119/100)+H140*($E$140/100)+H148*($E$148/100) -> 0 | L48: ='BNB-System'!H44 -> 1800
L49: ='BNB-System'!H45 -> 0
C50: ='BNB-System'!C46 -> Gesundheit, Behaglichkeit und Nutzerzufriedenheit | L50: ='BNB-System'!H46 -> 0
B51: ='BNB-System'!B47 -> 3.1.1 | C51: ='BNB-System'!C47 -> Thermischer Komfort | D51: ='BNB-System'!D47 -> 100 | E51: ='BNB-System'!G47 -> 0.025 | F51: ='Bewertung durch Anwender'!G51 -> 0 | G51: ='Bewertung durch Anwender'!N51 -> 0 | H51: =SUM(H53:H56,H58:H61) -> 0 | L51: ='BNB-System'!H47 -> 200 | M51: =IF(ISNUMBER(G51*E51/100),G51*E51/100,0) -> 0 | N51: =IF(ISNUMBER(H51*E51/100),H51*E51/100,0) -> 0
C52: ='BNB-System'!C48 -> Winter | L52: ='BNB-System'!H48 -> 0
C53: ='BNB-System'!C49 -> Operative Temperatur | D53: ='BNB-System'!D49 -> 10 | F53: ='Bewertung durch Anwender'!G53 -> 0 | G53: ='Bewertung durch Anwender'!N53 -> 0 | L53: ='BNB-System'!H49 -> 0
C54: ='BNB-System'!C50 -> Zugluft | D54: ='BNB-System'!D50 -> 10 | F54: ='Bewertung durch Anwender'!G54 -> 0 | G54: ='Bewertung durch Anwender'!N54 -> 0 | L54: ='BNB-System'!H50 -> 0
C55: ='BNB-System'!C51 -> Stahlungstemperaturasymmetrie und Fußbodentemperatur | D55: ='BNB-System'!D51 -> 10 | F55: ='Bewertung durch Anwender'!G55 -> 0 | G55: ='Bewertung durch Anwender'!N55 -> 0 | L55: ='BNB-System'!H51 -> 0
C56: ='BNB-System'!C52 -> Luftfeuchte | D56: ='BNB-System'!D52 -> 10 | F56: ='Bewertung durch Anwender'!G56 -> 0 | G56: ='Bewertung durch Anwender'!N56 -> 0 | L56: ='BNB-System'!H52 -> 0
C57: ='BNB-System'!C53 -> Sommer | F57: ='Bewertung durch Anwender'!G57 ->  | L57: ='BNB-System'!H53 -> 0
C58: ='BNB-System'!C54 -> Operative Temperatur | D58: ='BNB-System'!D54 -> 30 | F58: ='Bewertung durch Anwender'!G58 -> 0 | G58: ='Bewertung durch Anwender'!N58 -> 0 | L58: ='BNB-System'!H54 -> 0
C59: ='BNB-System'!C55 -> Zugluft | D59: ='BNB-System'!D55 -> 10 | F59: ='Bewertung durch Anwender'!G59 -> 0 | G59: ='Bewertung durch Anwender'!N59 -> 0 | L59: ='BNB-System'!H55 -> 0
C60: ='BNB-System'!C56 -> Stahlungstemperaturasymmetrie und Fußbodentemperatur | D60: ='BNB-System'!D56 -> 10 | F60: ='Bewertung durch Anwender'!G60 -> 0 | G60: ='Bewertung durch Anwender'!N60 -> 0 | L60: ='BNB-System'!H56 -> 0
C61: ='BNB-System'!C57 -> Luftfeuchte | D61: ='BNB-System'!D57 -> 10 | F61: ='Bewertung durch Anwender'!G61 -> 0 | G61: ='Bewertung durch Anwender'!N61 -> 0 | L61: ='BNB-System'!H57 -> 0
B62: ='BNB-System'!B58 -> 3.1.3 | C62: ='BNB-System'!C58 -> Innenraumlufthygiene | D62: ='BNB-System'!D58 -> 100 | E62: ='BNB-System'!G58 -> 0.025 | F62: ='Bewertung durch Anwender'!G62 -> 0 | G62: ='Bewertung durch Anwender'!N62 -> 0 | H62: =SUM(H63:H64) -> 0 | L62: ='BNB-System'!H58 -> 200 | M62: =IF(ISNUMBER(G62*E62/100),G62*E62/100,0) -> 0 | N62: =IF(ISNUMBER(H62*E62/100),H62*E62/100,0) -> 0
C63: ='BNB-System'!C59 -> Flüchtige organische Stoffe (VOC) und Formaldehyd | D63: ='BNB-System'!D59 -> 50 | F63: ='Bewertung durch Anwender'!G63 -> 0 | G63: ='Bewertung durch Anwender'!N63 -> 0 | L63: ='BNB-System'!H59 -> 0
C64: ='BNB-System'!C60 -> Kohlendioxidgehalt | D64: ='BNB-System'!D60 -> 50 | F64: ='Bewertung durch Anwender'!G64 -> 0 | G64: ='Bewertung durch Anwender'!N64 -> 0 | L64: ='BNB-System'!H60 -> 0
B65: ='BNB-System'!B61 -> 3.1.4 | C65: ='BNB-System'!C61 -> Akustischer Komfort | D65: ='BNB-System'!D61 -> 100 | E65: ='BNB-System'!G61 -> 0.0125 | F65: ='Bewertung durch Anwender'!G65 -> 0 | G65: ='Bewertung durch Anwender'!N65 -> 0 | H65: =(IF(IF((ISNUMBER(ROUND(H67/(H67+H69+H71)*H66+H69/(H67+H69+H71)*H68+H71/(H67+H69+H71)*H70,1))),ROUND(H67/(H67+H69+H71)*H66+H69/(H67+H69+H71)*H68+H71/(H67+H69+H71)*H70,1),0)>100,100,IF(ISNUMBER(ROUND(H67/(H67+H69+H71)*H66+H69/(H67+H69+H71)*H68+H71/(H67+H69+H71)*H70,1)),ROUND(H67/(H67+H69+H71)*H66+H69/(H67+H69+H71)*H68+H71/(H67+H69+H71)*H70,1),0)))-H72 -> 0 | L65: ='BNB-System'!H61 -> 100 | M65: =IF(ISNUMBER(G65*E65/100),G65*E65/100,0) -> 0 | N65: =IF(ISNUMBER(H65*E65/100),H65*E65/100,0) -> 0
C66: ='BNB-System'!C62 -> Einzel- und Mehrpersonenbüros bis 100 m² | D66: ='BNB-System'!D62 -> 100 | F66: ='Bewertung durch Anwender'!G66 -> 0 | G66: ='Bewertung durch Anwender'!N66 -> 0 | L66: ='BNB-System'!H62 -> 0
C67: ='BNB-System'!C63 -> NF Einzel- und Mehrpersonenbüros bis 100 m² | D67: ='BNB-System'!D63 -> 0 | L67: ='BNB-System'!H63 -> 0
C68: ='BNB-System'!C64 -> Mehrpersonenbüros über 100 m² | D68: ='BNB-System'!D64 -> 100 | F68: ='Bewertung durch Anwender'!G68 -> 0 | G68: ='Bewertung durch Anwender'!N68 -> 0 | L68: ='BNB-System'!H64 -> 0
C69: ='BNB-System'!C65 -> NF Mehrpersonenbüros über 100m² | D69: ='BNB-System'!D65 -> 0 | L69: ='BNB-System'!H65 -> 0
C70: ='BNB-System'!C66 -> Weitere Räume über geringere (Gesprächs-)Entfernung (außer Büros) | D70: ='BNB-System'!D66 -> 100 | F70: ='Bewertung durch Anwender'!G70 -> 0 | G70: ='Bewertung durch Anwender'!N70 -> 0 | L70: ='BNB-System'!H66 -> 0
C71: ='BNB-System'!C67 -> NF weiterer Räume | D71: ='BNB-System'!D67 -> 0 | L71: ='BNB-System'!H67 -> 0
C72: ='BNB-System'!C68 -> Punktabzug | D72: ='BNB-System'!D68 -> 0 | F72: ='Bewertung durch Anwender'!G72 -> 0 | G72: ='Bewertung durch Anwender'!N72 -> 0 | L72: ='BNB-System'!H68 -> 0
B73: ='BNB-System'!B69 -> 3.1.5 | C73: ='BNB-System'!C69 -> Visueller Komfort | D73: ='BNB-System'!D69 -> 100 | E73: ='BNB-System'!G69 -> 0.025 | F73: ='Bewertung durch Anwender'!G73 -> 0 | G73: ='Bewertung durch Anwender'!N73 -> 0 | H73: =SUM(H74:H80) -> 0 | L73: ='BNB-System'!H69 -> 200 | M73: =IF(ISNUMBER(G73*E73/100),G73*E73/100,0) -> 0 | N73: =IF(ISNUMBER(H73*E73/100),H73*E73/100,0) -> 0
C74: ='BNB-System'!C70 -> Tageslichtverfügbarkeit Gesamtgebäude | D74: ='BNB-System'!D70 -> 15 | F74: ='Bewertung durch Anwender'!G74 -> 0 | G74: ='Bewertung durch Anwender'!N74 -> 0 | L74: ='BNB-System'!H70 -> 0
C75: ='BNB-System'!C71 -> Tageslichtverfügbarkeit ständige Arbeitsplätze | D75: ='BNB-System'!D71 -> 15 | F75: ='Bewertung durch Anwender'!G75 -> 0 | G75: ='Bewertung durch Anwender'!N75 -> 0 | L75: ='BNB-System'!H71 -> 0
C76: ='BNB-System'!C72 -> Nachweis der Sichtverbindung nach außen | D76: ='BNB-System'!D72 -> 25 | F76: ='Bewertung durch Anwender'!G76 -> 0 | G76: ='Bewertung durch Anwender'!N76 -> 0 | L76: ='BNB-System'!H72 -> 0
C77: ='BNB-System'!C73 -> Blendfreiheit Tageslicht | D77: ='BNB-System'!D73 -> 12 | F77: ='Bewertung durch Anwender'!G77 -> 0 | G77: ='Bewertung durch Anwender'!N77 -> 0 | L77: ='BNB-System'!H73 -> 0
C78: ='BNB-System'!C74 -> Blendfreiheit Kunstlicht | D78: ='BNB-System'!D74 -> 9 | F78: ='Bewertung durch Anwender'!G78 -> 0 | G78: ='Bewertung durch Anwender'!N78 -> 0 | L78: ='BNB-System'!H74 -> 0
C79: ='BNB-System'!C75 -> Lichtverteilung | D79: ='BNB-System'!D75 -> 12 | F79: ='Bewertung durch Anwender'!G79 -> 0 | G79: ='Bewertung durch Anwender'!N79 -> 0 | L79: ='BNB-System'!H75 -> 0
C80: ='BNB-System'!C76 -> Farbwiedergabe | D80: ='BNB-System'!D76 -> 12 | F80: ='Bewertung durch Anwender'!G80 -> 0 | G80: ='Bewertung durch Anwender'!N80 -> 0 | L80: ='BNB-System'!H76 -> 0
B81: ='BNB-System'!B77 -> 3.1.6 | C81: ='BNB-System'!C77 -> Einflussnahmemöglichkeiten durch Nutzer | D81: ='BNB-System'!D77 -> 100 | E81: ='BNB-System'!G77 -> 0.0125 | F81: ='Bewertung durch Anwender'!G81 -> 0 | G81: ='Bewertung durch Anwender'!N81 -> 0 | H81: =SUM(H82:H89) -> 0 | L81: ='BNB-System'!H77 -> 100 | M81: =IF(ISNUMBER(G81*E81/100),G81*E81/100,0) -> 0 | N81: =IF(ISNUMBER(H81*E81/100),H81*E81/100,0) -> 0
C82: ='BNB-System'!C78 -> Lüftung | D82: ='BNB-System'!D78 -> 10 | F82: ='Bewertung durch Anwender'!G82 -> 0 | G82: ='Bewertung durch Anwender'!N82 -> 0 | L82: ='BNB-System'!H78 -> 0
C83: ='BNB-System'!C79 -> Sonnenschutz | D83: ='BNB-System'!D79 -> 10 | F83: ='Bewertung durch Anwender'!G83 -> 0 | G83: ='Bewertung durch Anwender'!N83 -> 0 | L83: ='BNB-System'!H79 -> 0
C84: ='BNB-System'!C80 -> Blendschutz | D84: ='BNB-System'!D80 -> 10 | F84: ='Bewertung durch Anwender'!G84 -> 0 | G84: ='Bewertung durch Anwender'!N84 -> 0 | L84: ='BNB-System'!H80 -> 0
C85: ='BNB-System'!C81 -> Temperaturen während der Heizperiode | D85: ='BNB-System'!D81 -> 10 | F85: ='Bewertung durch Anwender'!G85 -> 0 | G85: ='Bewertung durch Anwender'!N85 -> 0 | L85: ='BNB-System'!H81 -> 0
C86: ='BNB-System'!C82 -> Temperaturen außerhalb der Heizperiode | D86: ='BNB-System'!D82 -> 15 | F86: ='Bewertung durch Anwender'!G86 -> 0 | G86: ='Bewertung durch Anwender'!N86 -> 0 | L86: ='BNB-System'!H82 -> 0
C87: ='BNB-System'!C83 -> Steuerung von Tageslicht | D87: ='BNB-System'!D83 -> 15 | F87: ='Bewertung durch Anwender'!G87 -> 0 | G87: ='Bewertung durch Anwender'!N87 -> 0 | L87: ='BNB-System'!H83 -> 0
C88: ='BNB-System'!C84 -> Steuerung von Kunstlicht | D88: ='BNB-System'!D84 -> 15 | F88: ='Bewertung durch Anwender'!G88 -> 0 | G88: ='Bewertung durch Anwender'!N88 -> 0 | L88: ='BNB-System'!H84 -> 0
C89: ='BNB-System'!C85 -> Bedienfreundlichkeit | D89: ='BNB-System'!D85 -> 15 | F89: ='Bewertung durch Anwender'!G89 -> 0 | G89: ='Bewertung durch Anwender'!N89 -> 0 | L89: ='BNB-System'!H85 -> 0
B90: ='BNB-System'!B86 -> 3.1.7 | C90: ='BNB-System'!C86 -> Aufenthaltsqualitäten | D90: ='BNB-System'!D86 -> 100 | E90: ='BNB-System'!G86 -> 0.0125 | F90: ='Bewertung durch Anwender'!G90 -> 0 | G90: ='Bewertung durch Anwender'!N90 -> 0 | H90: =SUM(H91:H103) -> 0 | L90: ='BNB-System'!H86 -> 100 | M90: =IF(ISNUMBER(G90*E90/100),G90*E90/100,0) -> 0 | N90: =IF(ISNUMBER(H90*E90/100),H90*E90/100,0) -> 0
C91: ='BNB-System'!C87 -> Anzahl der Aufenthaltsbereiche im Gebäude | D91: ='BNB-System'!D87 -> 10 | F91: ='Bewertung durch Anwender'!G91 -> 0 | G91: ='Bewertung durch Anwender'!N91 -> 0 | L91: ='BNB-System'!H87 -> 0
C92: ='BNB-System'!C88 -> Anzahl der Aufenthaltsbereiche im Außenraum | D92: ='BNB-System'!D88 -> 10 | F92: ='Bewertung durch Anwender'!G92 -> 0 | G92: ='Bewertung durch Anwender'!N92 -> 0 | L92: ='BNB-System'!H88 -> 0
C93: ='BNB-System'!C89 -> Anzahl der Sitzmöglichkeiten in diesen Bereichen | D93: ='BNB-System'!D89 -> 40 | F93: ='Bewertung durch Anwender'!G93 -> 0 | G93: ='Bewertung durch Anwender'!N93 -> 0 | L93: ='BNB-System'!H89 -> 0
C94: ='BNB-System'!C90 -> uneingeschränkte Nutzbarkeit der Erschließungsflächen als Aufenthaltsflächen | D94: ='BNB-System'!D90 -> 10 | F94: ='Bewertung durch Anwender'!G94 -> 0 | G94: ='Bewertung durch Anwender'!N94 -> 0 | L94: ='BNB-System'!H90 -> 0
C95: ='BNB-System'!C91 -> Sichtbeziehungen | D95: ='BNB-System'!D91 -> 10 | F95: ='Bewertung durch Anwender'!G95 -> 0 | G95: ='Bewertung durch Anwender'!N95 -> 0 | L95: ='BNB-System'!H91 -> 0
C96: ='BNB-System'!C92 -> Außenbezug | D96: ='BNB-System'!D92 -> 10 | F96: ='Bewertung durch Anwender'!G96 -> 0 | G96: ='Bewertung durch Anwender'!N96 -> 0 | L96: ='BNB-System'!H92 -> 0
C97: ='BNB-System'!C93 -> Ausstattungsqualität der Aufenthaltsbereiche im Außenraum | F97: ='Bewertung durch Anwender'!G97 -> 0 | G97: ='Bewertung durch Anwender'!N97 -> 0 | L97: ='BNB-System'!H93 -> 0
C98: ='BNB-System'!C94 -> Beleuchtung | D98: ='BNB-System'!D94 -> 2 | F98: ='Bewertung durch Anwender'!G98 -> 0 | G98: ='Bewertung durch Anwender'!N98 -> 0 | L98: ='BNB-System'!H94 -> 0
C99: ='BNB-System'!C95 -> Windschutz | D99: ='BNB-System'!D95 -> 2 | F99: ='Bewertung durch Anwender'!G99 -> 0 | G99: ='Bewertung durch Anwender'!N99 -> 0 | L99: ='BNB-System'!H95 -> 0
C100: ='BNB-System'!C96 -> Überdachung / Regenschutz | D100: ='BNB-System'!D96 -> 2 | F100: ='Bewertung durch Anwender'!G100 -> 0 | G100: ='Bewertung durch Anwender'!N100 -> 0 | L100: ='BNB-System'!H96 -> 0
C101: ='BNB-System'!C97 -> Sonnenschutz | D101: ='BNB-System'!D97 -> 2 | F101: ='Bewertung durch Anwender'!G101 -> 0 | G101: ='Bewertung durch Anwender'!N101 -> 0 | L101: ='BNB-System'!H97 -> 0
C102: ='BNB-System'!C98 -> Stromversorgung für Außenarbeitsplätze | D102: ='BNB-System'!D98 -> 1 | F102: ='Bewertung durch Anwender'!G102 -> 0 | G102: ='Bewertung durch Anwender'!N102 -> 0 | L102: ='BNB-System'!H98 -> 0
C103: ='BNB-System'!C99 -> Bepflanzung / Begrünung | D103: ='BNB-System'!D99 -> 1 | F103: ='Bewertung durch Anwender'!G103 -> 0 | G103: ='Bewertung durch Anwender'!N103 -> 0 | L103: ='BNB-System'!H99 -> 0
B104: ='BNB-System'!B100 -> 3.1.8 | C104: ='BNB-System'!C100 -> Sicherheit | D104: ='BNB-System'!D100 -> 100 | E104: ='BNB-System'!G100 -> 0.025 | F104: ='Bewertung durch Anwender'!G104 -> 0 | G104: ='Bewertung durch Anwender'!N104 -> 0 | H104: =SUM(H105:H112) -> 0 | L104: ='BNB-System'!H100 -> 200 | M104: =IF(ISNUMBER(G104*E104/100),G104*E104/100,0) -> 0 | N104: =IF(ISNUMBER(H104*E104/100),H104*E104/100,0) -> 0
C105: ='BNB-System'!C101 -> Übersichtliche Wegführungen | D105: ='BNB-System'!D101 -> 40 | F105: ='Bewertung durch Anwender'!G105 -> 0 | G105: ='Bewertung durch Anwender'!N105 -> 0 | L105: ='BNB-System'!H101 -> 0
C106: ='BNB-System'!C102 -> Stellplätze | D106: ='BNB-System'!D102 -> 8 | F106: ='Bewertung durch Anwender'!G106 -> 0 | G106: ='Bewertung durch Anwender'!N106 -> 0 | L106: ='BNB-System'!H102 -> 0
C107: ='BNB-System'!C103 -> Sicherheitsbereiche | D107: ='BNB-System'!D103 -> 8 | F107: ='Bewertung durch Anwender'!G107 -> 0 | G107: ='Bewertung durch Anwender'!N107 -> 0 | L107: ='BNB-System'!H103 -> 0
C108: ='BNB-System'!C104 -> Beleuchtung Wege | D108: ='BNB-System'!D104 -> 12 | F108: ='Bewertung durch Anwender'!G108 -> 0 | G108: ='Bewertung durch Anwender'!N108 -> 0 | L108: ='BNB-System'!H104 -> 0
C109: ='BNB-System'!C105 -> Beleuchtung Stellplätze | D109: ='BNB-System'!D105 -> 8 | F109: ='Bewertung durch Anwender'!G109 -> 0 | G109: ='Bewertung durch Anwender'!N109 -> 0 | L109: ='BNB-System'!H105 -> 0
C110: ='BNB-System'!C106 -> Beleuchtung Sicherheits- und Gefahrenbereiche | D110: ='BNB-System'!D106 -> 8 | F110: ='Bewertung durch Anwender'!G110 -> 0 | G110: ='Bewertung durch Anwender'!N110 -> 0 | L110: ='BNB-System'!H106 -> 0
C111: ='BNB-System'!C107 -> Technische Sicherheitseinrichtungen | D111: ='BNB-System'!D107 -> 8 | F111: ='Bewertung durch Anwender'!G111 -> 0 | G111: ='Bewertung durch Anwender'!N111 -> 0 | L111: ='BNB-System'!H107 -> 0
C112: ='BNB-System'!C108 -> Reduktion von Brandgasrisiken | D112: ='BNB-System'!D108 -> 8 | F112: ='Bewertung durch Anwender'!G112 -> 0 | G112: ='Bewertung durch Anwender'!N112 -> 0 | L112: ='BNB-System'!H108 -> 0
C113: ='BNB-System'!C109 -> Funktionalität | L113: ='BNB-System'!H109 -> 0
B114: ='BNB-System'!B110 -> 3.2.1 | C114: ='BNB-System'!C110 -> Barrierefreiheit | D114: ='BNB-System'!D110 -> 100 | E114: ='BNB-System'!G110 -> 0.025 | F114: ='Bewertung durch Anwender'!G114 -> 0 | G114: ='Bewertung durch Anwender'!N114 -> 0 | L114: ='BNB-System'!H110 -> 200 | M114: =IF(ISNUMBER(G114*E114/100),G114*E114/100,0) -> 0 | N114: =IF(ISNUMBER(H114*E114/100),H114*E114/100,0) -> 0
B115: ='BNB-System'!B111 -> 3.2.4 | C115: ='BNB-System'!C111 -> Zugänglichkeit | D115: ='BNB-System'!D111 -> 100 | E115: ='BNB-System'!G111 -> 0.0125 | F115: ='Bewertung durch Anwender'!G115 -> 0 | G115: ='Bewertung durch Anwender'!N115 -> 0 | H115: =SUM(H116:H118) -> 0 | L115: ='BNB-System'!H111 -> 100 | M115: =IF(ISNUMBER(G115*E115/100),G115*E115/100,0) -> 0 | N115: =IF(ISNUMBER(H115*E115/100),H115*E115/100,0) -> 0
C116: ='BNB-System'!C112 -> Grundsätzliche Zugänglichkeit des Gebäudes | D116: ='BNB-System'!D112 -> 35 | F116: ='Bewertung durch Anwender'!G116 -> 0 | G116: ='Bewertung durch Anwender'!N116 -> 0 | L116: ='BNB-System'!H112 -> 0
C117: ='BNB-System'!C113 -> Öffnung der Außenanlagen für die Öffentlichkeit | D117: ='BNB-System'!D113 -> 35 | F117: ='Bewertung durch Anwender'!G117 -> 0 | G117: ='Bewertung durch Anwender'!N117 -> 0 | L117: ='BNB-System'!H113 -> 0
C118: ='BNB-System'!C114 -> Öffnung gebäudeinterner Einrichtungen für die Öffentlichkeit | D118: ='BNB-System'!D114 -> 30 | F118: ='Bewertung durch Anwender'!G118 -> 0 | G118: ='Bewertung durch Anwender'!N118 -> 0 | L118: ='BNB-System'!H114 -> 0
B119: ='BNB-System'!B115 -> 3.2.5 | C119: ='BNB-System'!C115 -> Mobilitätsinfrastruktur | D119: ='BNB-System'!D115 -> 100 | E119: ='BNB-System'!G115 -> 0.0125 | F119: ='Bewertung durch Anwender'!G119 -> 0 | G119: ='Bewertung durch Anwender'!N119 -> 0 | H119: =IF(SUM(H120:H138)>100,100,SUM(H120:H138)) -> 0 | L119: ='BNB-System'!H115 -> 100 | M119: =IF(ISNUMBER(G119*E119/100),G119*E119/100,0) -> 0 | N119: =IF(ISNUMBER(H119*E119/100),H119*E119/100,0) -> 0
C120: ='BNB-System'!C116 -> Anzahl der Fahrradstellplätze | G120: ='Bewertung durch Anwender'!N120 -> 0 | L120: ='BNB-System'!H116 -> 0
C121: ='BNB-System'!C117 -> 1 Fahrradstellplatz / 40 m²NF oder 1 Fahrradstellplatz / 3 Nutzer | D121: ='BNB-System'!D117 -> 40 | F121: ='Bewertung durch Anwender'!G121 -> 0 | G121: ='Bewertung durch Anwender'!N121 -> 0 | L121: ='BNB-System'!H117 -> 0
C122: ='BNB-System'!C118 -> 1 Fahrradstellplatz / 80m²NF oder 1 Fahrradstellplatz / 6 Nutzer | D122: ='BNB-System'!D118 -> 30 | F122: ='Bewertung durch Anwender'!G122 -> 0 | G122: ='Bewertung durch Anwender'!N122 -> 0 | L122: ='BNB-System'!H118 -> 0
C123: ='BNB-System'!C119 -> 1 Fahrradstellplatz / 120m²NF oder 1 Fahrradstellplatz / 9 Nutzer | D123: ='BNB-System'!D119 -> 20 | F123: ='Bewertung durch Anwender'!G123 -> 0 | G123: ='Bewertung durch Anwender'!N123 -> 0 | L123: ='BNB-System'!H119 -> 0
C124: ='BNB-System'!C120 -> 1 Fahrradstellplatz / 160m²NF oder 1 Fahrradstellplatz / 12 Nutzer | D124: ='BNB-System'!D120 -> 10 | F124: ='Bewertung durch Anwender'!G124 -> 0 | G124: ='Bewertung durch Anwender'!N124 -> 0 | L124: ='BNB-System'!H120 -> 0
C125: ='BNB-System'!C121 -> Anzahl der Lademöglichkeiten und Carsharing-Stellplätze | F125: ='Bewertung durch Anwender'!G125 ->  | G125: ='Bewertung durch Anwender'!N125 -> 0 | L125: ='BNB-System'!H121 -> 0
C126: ='BNB-System'!C122 -> Lademögl. für E-Räder für 10 % der Rad-Stellplätze (mind. 2) vorhanden | D126: ='BNB-System'!D122 -> 10 | F126: ='Bewertung durch Anwender'!G126 -> 0 | G126: ='Bewertung durch Anwender'!N126 -> 0 | L126: ='BNB-System'!H122 -> 0
C127: ='BNB-System'!C123 -> Lademögl. für E-Pkw für 5 % der Pkw-Stellplätze (mind. 1) vorhanden | D127: ='BNB-System'!D123 -> 5 | F127: ='Bewertung durch Anwender'!G127 -> 0 | G127: ='Bewertung durch Anwender'!N127 -> 0 | L127: ='BNB-System'!H123 -> 0
C128: ='BNB-System'!C124 -> Carsharing-Stellplatz ist öffentlich zugänglich auf Grundstück vorhanden | D128: ='BNB-System'!D124 -> 5 | F128: ='Bewertung durch Anwender'!G128 -> 0 | G128: ='Bewertung durch Anwender'!N128 -> 0 | L128: ='BNB-System'!H124 -> 0
C129: ='BNB-System'!C125 -> Qualitative Anforderungen an Fahrradstellplätze | G129: ='Bewertung durch Anwender'!N129 -> 0 | L129: ='BNB-System'!H125 -> 0
C130: ='BNB-System'!C126 -> Anordnungsprinzipien und Abstände | D130: ='BNB-System'!D126 -> 10 | F130: ='Bewertung durch Anwender'!G130 -> 0 | G130: ='Bewertung durch Anwender'!N130 -> 0 | L130: ='BNB-System'!H126 -> 0
C131: ='BNB-System'!C127 -> Position der Fahrradstellplätze für Besucher | D131: ='BNB-System'!D127 -> 5 | F131: ='Bewertung durch Anwender'!G131 -> 0 | G131: ='Bewertung durch Anwender'!N131 -> 0 | L131: ='BNB-System'!H127 -> 0
C132: ='BNB-System'!C128 -> Position der Fahrradstellplätze für Nutzer | D132: ='BNB-System'!D128 -> 5 | F132: ='Bewertung durch Anwender'!G132 -> 0 | G132: ='Bewertung durch Anwender'!N132 -> 0 | L132: ='BNB-System'!H128 -> 0
C133: ='BNB-System'!C129 -> Witterungsgeschutz | D133: ='BNB-System'!D129 -> 10 | F133: ='Bewertung durch Anwender'!G133 -> 0 | G133: ='Bewertung durch Anwender'!N133 -> 0 | L133: ='BNB-System'!H129 -> 0
C134: ='BNB-System'!C130 -> Beleuchtung | D134: ='BNB-System'!D130 -> 10 | F134: ='Bewertung durch Anwender'!G134 -> 0 | G134: ='Bewertung durch Anwender'!N134 -> 0 | L134: ='BNB-System'!H130 -> 0
C135: ='BNB-System'!C131 -> Diebstahlgesicherter Bereich | D135: ='BNB-System'!D131 -> 5 | F135: ='Bewertung durch Anwender'!G135 -> 0 | G135: ='Bewertung durch Anwender'!N135 -> 0 | L135: ='BNB-System'!H131 -> 0
C136: ='BNB-System'!C132 -> Fläche mit Ausstattung für Wartungsarbeiten | D136: ='BNB-System'!D132 -> 5 | F136: ='Bewertung durch Anwender'!G136 -> 0 | G136: ='Bewertung durch Anwender'!N136 -> 0 | L136: ='BNB-System'!H132 -> 0
C137: ='BNB-System'!C133 -> Duschen und Umkleiden | D137: ='BNB-System'!D133 -> 5 | F137: ='Bewertung durch Anwender'!G137 -> 0 | G137: ='Bewertung durch Anwender'!N137 -> 0 | L137: ='BNB-System'!H133 -> 0
C138: ='BNB-System'!C134 -> Trocknungsmöglichkeiten | D138: ='BNB-System'!D134 -> 5 | F138: ='Bewertung durch Anwender'!G138 -> 0 | G138: ='Bewertung durch Anwender'!N138 -> 0 | L138: ='BNB-System'!H134 -> 0
C139: ='BNB-System'!C135 -> Sicherung der Gestaltungsqualität | L139: ='BNB-System'!H135 -> 0
B140: ='BNB-System'!B136 -> 3.3.1 | C140: ='BNB-System'!C136 -> Gestalterische und städtebauliche Qualität | D140: ='BNB-System'!D136 -> 100 | E140: ='BNB-System'!G136 -> 0.025 | F140: ='Bewertung durch Anwender'!G140 -> 0 | G140: ='Bewertung durch Anwender'!N140 -> 0 | H140: =IF(AND(H141>0,H145<=H146),SUM(H141:H144),IF(AND(H141>0,H146<=H145),SUM(H141:H144),IF(H145>0,H145,IF(H146>0,H146,H147)))) -> 0 | L140: ='BNB-System'!H136 -> 200 | M140: =IF(ISNUMBER(G140*E140/100),G140*E140/100,0) -> 0 | N140: =IF(ISNUMBER(H140*E140/100),H140*E140/100,0) -> 0
C141: ='BNB-System'!C137 -> Durchführung von Planungswettbewerben | D141: ='BNB-System'!D137 -> 20 | F141: ='Bewertung durch Anwender'!G141 -> 0 | G141: ='Bewertung durch Anwender'!N141 -> 0 | L141: ='BNB-System'!H137 -> 0
C142: ='BNB-System'!C138 -> Wettbewerbsverfahren | D142: ='BNB-System'!D138 -> 40 | F142: ='Bewertung durch Anwender'!G142 -> 0 | G142: ='Bewertung durch Anwender'!N142 -> 0 | L142: ='BNB-System'!H138 -> 0
C143: ='BNB-System'!C139 -> Ausführung des Entwurfs eines der Preisträger | D143: ='BNB-System'!D139 -> 30 | F143: ='Bewertung durch Anwender'!G143 -> 0 | G143: ='Bewertung durch Anwender'!N143 -> 0 | L143: ='BNB-System'!H139 -> 0
C144: ='BNB-System'!C140 -> Beauftragung des Planungsteams | D144: ='BNB-System'!D140 -> 10 | F144: ='Bewertung durch Anwender'!G144 -> 0 | G144: ='Bewertung durch Anwender'!N144 -> 0 | L144: ='BNB-System'!H140 -> 0
C145: ='BNB-System'!C141 -> Auszeichnung mit einem Architekturpreis | D145: ='BNB-System'!D141 -> 60 | F145: ='Bewertung durch Anwender'!G145 -> 0 | G145: ='Bewertung durch Anwender'!N145 -> 0 | L145: ='BNB-System'!H141 -> 0
C146: ='BNB-System'!C142 -> Unabhängiges Expertengremium | D146: ='BNB-System'!D142 -> 40 | F146: ='Bewertung durch Anwender'!G146 -> 0 | G146: ='Bewertung durch Anwender'!N146 -> 0 | L146: ='BNB-System'!H142 -> 0
C147: ='BNB-System'!C143 -> Sonderfall Mindestanforderung | D147: ='BNB-System'!D143 -> 10 | F147: ='Bewertung durch Anwender'!G147 -> 0 | G147: ='Bewertung durch Anwender'!N147 -> 0 | L147: ='BNB-System'!H143 -> 0
B148: ='BNB-System'!B144 -> 3.3.2 | C148: ='BNB-System'!C144 -> Kunst am Bau | D148: ='BNB-System'!D144 -> 100 | E148: ='BNB-System'!G144 -> 0.0125 | F148: ='Bewertung durch Anwender'!G148 -> 0 | G148: ='Bewertung durch Anwender'!N148 -> 0 | H148: =SUM(H149:H152) -> 0 | L148: ='BNB-System'!H144 -> 100 | M148: =IF(ISNUMBER(G148*E148/100),G148*E148/100,0) -> 0 | N148: =IF(ISNUMBER(H148*E148/100),H148*E148/100,0) -> 0
C149: ='BNB-System'!C145 -> Mindestanforderung | D149: ='BNB-System'!D145 -> 10 | F149: ='Bewertung durch Anwender'!G149 -> 0 | G149: ='Bewertung durch Anwender'!N149 -> 0 | L149: ='BNB-System'!H145 -> 0
C150: ='BNB-System'!C146 -> Bereitstellung von Mitteln im Rahmen der Bauaufgabe | D150: ='BNB-System'!D146 -> 30 | F150: ='Bewertung durch Anwender'!G150 -> 0 | G150: ='Bewertung durch Anwender'!N150 -> 0 | L150: ='BNB-System'!H146 -> 0
C151: ='BNB-System'!C147 -> Umsetzung des BMVBS-Leitfadens Kunst am Bau | D151: ='BNB-System'!D147 -> 40 | F151: ='Bewertung durch Anwender'!G151 -> 0 | G151: ='Bewertung durch Anwender'!N151 -> 0 | L151: ='BNB-System'!H147 -> 0
C152: ='BNB-System'!C148 -> Öffentlichkeitsarbeit, Rezeption der Kunst am Bau | D152: ='BNB-System'!D148 -> 20 | F152: ='Bewertung durch Anwender'!G152 -> 0 | G152: ='Bewertung durch Anwender'!N152 -> 0 | L152: ='BNB-System'!H148 -> 0
L153: ='BNB-System'!H149 -> 0
B154: ='BNB-System'!B150 -> Technische Qualität | E154: ='BNB-System'!G150 -> 0.225 | F154: ='Bewertung durch Anwender'!G154 -> 0 | G154: ='Bewertung durch Anwender'!N154 -> 0 | H154: =H157*($E$157/100)+H162*($E$162/100)+H169*($E$169/100)+H179*($E$179/100)+H180*($E$180/100)+H181*($E$181/100)+H182*($E$182/100) -> 0 | L154: ='BNB-System'!H150 -> 1100
L155: ='BNB-System'!H151 -> 0
C156: ='BNB-System'!C152 -> technische Ausführung | L156: ='BNB-System'!H152 -> 0
B157: ='BNB-System'!B153 -> 4.1.1 | C157: ='BNB-System'!C153 -> Schallschutz | D157: ='BNB-System'!D153 -> 100 | E157: ='BNB-System'!G153 -> 0.02045454545 | F157: ='Bewertung durch Anwender'!G157 -> 0 | G157: ='Bewertung durch Anwender'!N157 -> 0 | H157: =SUM(H158:H161) -> 0 | L157: ='BNB-System'!H153 -> 100 | M157: =IF(ISNUMBER(G157*E157/100),G157*E157/100,0) -> 0 | N157: =IF(ISNUMBER(H157*E157/100),H157*E157/100,0) -> 0
C158: ='BNB-System'!C154 -> Luftschallschutz gegen Außenlärm | D158: ='BNB-System'!D154 -> 20 | F158: ='Bewertung durch Anwender'!G158 -> 0 | G158: ='Bewertung durch Anwender'!N158 -> 0 | L158: ='BNB-System'!H154 -> 0
C159: ='BNB-System'!C155 -> Luftschallschutz im Gebäudeinneren | D159: ='BNB-System'!D155 -> 30 | F159: ='Bewertung durch Anwender'!G159 -> 0 | G159: ='Bewertung durch Anwender'!N159 -> 0 | L159: ='BNB-System'!H155 -> 0
C160: ='BNB-System'!C156 -> Trittschallschutz gegenüber fremden und eigenen Arbeitsbereichen | D160: ='BNB-System'!D156 -> 30 | F160: ='Bewertung durch Anwender'!G160 -> 0 | G160: ='Bewertung durch Anwender'!N160 -> 0 | L160: ='BNB-System'!H156 -> 0
C161: ='BNB-System'!C157 -> Schallschutz gegenüber haustechnischen Anlagen | D161: ='BNB-System'!D157 -> 20 | F161: ='Bewertung durch Anwender'!G161 -> 0 | G161: ='Bewertung durch Anwender'!N161 -> 0 | L161: ='BNB-System'!H157 -> 0
B162: ='BNB-System'!B158 -> 4.1.2 | C162: ='BNB-System'!C158 -> Wärme- und Tauwasserschutz | D162: ='BNB-System'!D158 -> 100 | E162: ='BNB-System'!G158 -> 0.02045454545 | F162: ='Bewertung durch Anwender'!G162 -> 0 | G162: ='Bewertung durch Anwender'!N162 -> 0 | H162: =SUM(H163:H168) -> 0 | L162: ='BNB-System'!H158 -> 100 | M162: =IF(ISNUMBER(G162*E162/100),G162*E162/100,0) -> 0 | N162: =IF(ISNUMBER(H162*E162/100),H162*E162/100,0) -> 0
C163: ='BNB-System'!C159 -> Mittlere Wärmeduchgangskoeffizienten | D163: ='BNB-System'!D159 -> 30 | F163: ='Bewertung durch Anwender'!G163 -> 0 | G163: ='Bewertung durch Anwender'!N163 -> 0 | L163: ='BNB-System'!H159 -> 0
C164: ='BNB-System'!C160 -> Wärmebrückenzuschlag | D164: ='BNB-System'!D160 -> 15 | F164: ='Bewertung durch Anwender'!G164 -> 0 | G164: ='Bewertung durch Anwender'!N164 -> 0 | L164: ='BNB-System'!H160 -> 0
C165: ='BNB-System'!C161 -> Klassen der Luftdurchlässigkeit (Fugendurchlässigkeit) | D165: ='BNB-System'!D161 -> 15 | F165: ='Bewertung durch Anwender'!G165 -> 0 | G165: ='Bewertung durch Anwender'!N165 -> 0 | L165: ='BNB-System'!H161 -> 0
C166: ='BNB-System'!C162 -> Tauwasserbildung | D166: ='BNB-System'!D162 -> 10 | F166: ='Bewertung durch Anwender'!G166 -> 0 | G166: ='Bewertung durch Anwender'!N166 -> 0 | L166: ='BNB-System'!H162 -> 0
C167: ='BNB-System'!C163 -> Luftwechsel | D167: ='BNB-System'!D163 -> 15 | F167: ='Bewertung durch Anwender'!G167 -> 0 | G167: ='Bewertung durch Anwender'!N167 -> 0 | L167: ='BNB-System'!H163 -> 0
C168: ='BNB-System'!C164 -> Sonneneintragswert | D168: ='BNB-System'!D164 -> 15 | F168: ='Bewertung durch Anwender'!G168 -> 0 | G168: ='Bewertung durch Anwender'!N168 -> 0 | L168: ='BNB-System'!H164 -> 0
B169: ='BNB-System'!B165 -> 4.1.3 | C169: ='BNB-System'!C165 -> Reinigungs- und Instandhaltungsfreundlichkeit | D169: ='BNB-System'!D165 -> 100 | E169: ='BNB-System'!G165 -> 0.04090909091 | F169: ='Bewertung durch Anwender'!G169 -> 0 | G169: ='Bewertung durch Anwender'!N169 -> 0 | H169: =SUM(H170:H178) -> 0 | L169: ='BNB-System'!H165 -> 200 | M169: =IF(ISNUMBER(G169*E169/100),G169*E169/100,0) -> 0 | N169: =IF(ISNUMBER(H169*E169/100),H169*E169/100,0) -> 0
C170: ='BNB-System'!C166 -> Tragkonstruktion | D170: ='BNB-System'!D166 -> 15 | F170: ='Bewertung durch Anwender'!G170 -> 0 | G170: ='Bewertung durch Anwender'!N170 -> 0 | L170: ='BNB-System'!H166 -> 0
C171: ='BNB-System'!C167 -> Zugänglichkeit der Außenglasflächen | D171: ='BNB-System'!D167 -> 15 | F171: ='Bewertung durch Anwender'!G171 -> 0 | G171: ='Bewertung durch Anwender'!N171 -> 0 | L171: ='BNB-System'!H167 -> 0
C172: ='BNB-System'!C168 -> Außenbauteile | D172: ='BNB-System'!D168 -> 9 | F172: ='Bewertung durch Anwender'!G172 -> 0 | G172: ='Bewertung durch Anwender'!N172 -> 0 | L172: ='BNB-System'!H168 -> 0
C173: ='BNB-System'!C169 -> Bodenbelag | D173: ='BNB-System'!D169 -> 9 | F173: ='Bewertung durch Anwender'!G173 -> 0 | G173: ='Bewertung durch Anwender'!N173 -> 0 | L173: ='BNB-System'!H169 -> 0
C174: ='BNB-System'!C170 -> Schmutzfangzone | D174: ='BNB-System'!D170 -> 9 | F174: ='Bewertung durch Anwender'!G174 -> 0 | G174: ='Bewertung durch Anwender'!N174 -> 0 | L174: ='BNB-System'!H170 -> 0
C175: ='BNB-System'!C171 -> Fußbodenleisten | D175: ='BNB-System'!D171 -> 9 | F175: ='Bewertung durch Anwender'!G175 -> 0 | G175: ='Bewertung durch Anwender'!N175 -> 0 | L175: ='BNB-System'!H171 -> 0
C176: ='BNB-System'!C172 -> Hindernisfreie Grundrissgestaltung | D176: ='BNB-System'!D172 -> 9 | F176: ='Bewertung durch Anwender'!G176 -> 0 | G176: ='Bewertung durch Anwender'!N176 -> 0 | L176: ='BNB-System'!H172 -> 0
C177: ='BNB-System'!C173 -> Einbauten | D177: ='BNB-System'!D173 -> 10 | F177: ='Bewertung durch Anwender'!G177 -> 0 | G177: ='Bewertung durch Anwender'!N177 -> 0 | L177: ='BNB-System'!H173 -> 0
C178: ='BNB-System'!C174 -> Zugänglichkeit der Innenglasflächen | D178: ='BNB-System'!D174 -> 15 | F178: ='Bewertung durch Anwender'!G178 -> 0 | G178: ='Bewertung durch Anwender'!N178 -> 0 | L178: ='BNB-System'!H174 -> 0
B179: ='BNB-System'!B175 -> 4.1.4 | C179: ='BNB-System'!C175 -> Rückbau, Trennung und Verwertung | D179: ='BNB-System'!D175 -> 100 | E179: ='BNB-System'!G175 -> 0.02045454545 | F179: ='Bewertung durch Anwender'!G179 -> 0 | G179: ='Bewertung durch Anwender'!N179 -> 0 | L179: ='BNB-System'!H175 -> 100 | M179: =IF(ISNUMBER(G179*E179/100),G179*E179/100,0) -> 0 | N179: =IF(ISNUMBER(H179*E179/100),H179*E179/100,0) -> 0
B180: ='BNB-System'!B176 -> 4.1.5 | C180: ='BNB-System'!C176 -> Widerstandsfähigkeit gegen Naturgefahren | D180: ='BNB-System'!D176 -> 100 | E180: ='BNB-System'!G176 -> 0.02045454545 | F180: ='Bewertung durch Anwender'!G180 -> 0 | G180: ='Bewertung durch Anwender'!N180 -> 0 | L180: ='BNB-System'!H176 -> 100 | M180: =IF(ISNUMBER(G180*E180/100),G180*E180/100,0) -> 0 | N180: =IF(ISNUMBER(H180*E180/100),H180*E180/100,0) -> 0
B181: ='BNB-System'!B177 -> 4.1.6 | C181: ='BNB-System'!C177 -> Bedienungs- und Instandhaltungsfreundlichkeit der TGA | D181: ='BNB-System'!D177 -> 100 | E181: ='BNB-System'!G177 -> 0.04090909091 | F181: ='Bewertung durch Anwender'!G181 -> 0 | G181: ='Bewertung durch Anwender'!N181 -> 0 | L181: ='BNB-System'!H177 -> 200 | M181: =IF(ISNUMBER(G181*E181/100),G181*E181/100,0) -> 0 | N181: =IF(ISNUMBER(H181*E181/100),H181*E181/100,0) -> 0
B182: ='BNB-System'!B178 -> 4.1.7 | C182: ='BNB-System'!C178 -> Systemqualität der TGA | D182: ='BNB-System'!D178 -> 100 | E182: ='BNB-System'!G178 -> 0.06136363636 | F182: ='Bewertung durch Anwender'!G182 -> 0 | G182: ='Bewertung durch Anwender'!N182 -> 0 | L182: ='BNB-System'!H178 -> 300 | M182: =IF(ISNUMBER(G182*E182/100),G182*E182/100,0) -> 0 | N182: =IF(ISNUMBER(H182*E182/100),H182*E182/100,0) -> 0
L183: ='BNB-System'!H179 -> 0
B184: ='BNB-System'!B180 -> Prozessqualität | E184: ='BNB-System'!G180 -> 0.1 | F184: ='Bewertung durch Anwender'!G184 -> 0 | G184: ='Bewertung durch Anwender'!N184 -> 0 | H184: =H187*($E$187/100)+H191*($E$191/100)+H197*($E$197/100)+H213*($E$213/100)+H214*($E$214/100)+H221*($E$221/100)+H226*($E$226/100)+H229*($E$229/100) -> 0 | L184: ='BNB-System'!H180 -> 2100
L185: ='BNB-System'!H181 -> 0
C186: ='BNB-System'!C182 -> Planung | L186: ='BNB-System'!H182 -> 0
B187: ='BNB-System'!B183 -> 5.1.1 | C187: ='BNB-System'!C183 -> Projektvorbereitung | D187: ='BNB-System'!D183 -> 100 | E187: ='BNB-System'!G183 -> 0.01428571429 | F187: ='Bewertung durch Anwender'!G187 -> 0 | G187: ='Bewertung durch Anwender'!N187 -> 0 | H187: =SUM(H188:H190) -> 0 | L187: ='BNB-System'!H183 -> 300 | M187: =IF(ISNUMBER(G187*E187/100),G187*E187/100,0) -> 0 | N187: =IF(ISNUMBER(H187*E187/100),H187*E187/100,0) -> 0
C188: ='BNB-System'!C184 -> Bedarfsplanung oder vergleichbare Planung | D188: ='BNB-System'!D184 -> 35 | F188: ='Bewertung durch Anwender'!G188 -> 0 | G188: ='Bewertung durch Anwender'!N188 -> 0 | L188: ='BNB-System'!H184 -> 0
C189: ='BNB-System'!C185 -> Zielvereinbarung | D189: ='BNB-System'!D185 -> 35 | F189: ='Bewertung durch Anwender'!G189 -> 0 | G189: ='Bewertung durch Anwender'!N189 -> 0 | L189: ='BNB-System'!H185 -> 0
C190: ='BNB-System'!C186 -> Architektenwettbewerb | D190: ='BNB-System'!D186 -> 30 | F190: ='Bewertung durch Anwender'!G190 -> 0 | G190: ='Bewertung durch Anwender'!N190 -> 0 | L190: ='BNB-System'!H186 -> 0
B191: ='BNB-System'!B187 -> 5.1.2 | C191: ='BNB-System'!C187 -> Integrale Planung | D191: ='BNB-System'!D187 -> 100 | E191: ='BNB-System'!G187 -> 0.01428571429 | F191: ='Bewertung durch Anwender'!G191 -> 0 | G191: ='Bewertung durch Anwender'!N191 -> 0 | H191: =SUM(H192:H196) -> 0 | L191: ='BNB-System'!H187 -> 300 | M191: =IF(ISNUMBER(G191*E191/100),G191*E191/100,0) -> 0 | N191: =IF(ISNUMBER(H191*E191/100),H191*E191/100,0) -> 0
C192: ='BNB-System'!C188 -> Interdisziplinäres Projektteam | D192: ='BNB-System'!D188 -> 30 | F192: ='Bewertung durch Anwender'!G192 -> 0 | G192: ='Bewertung durch Anwender'!N192 -> 0 | L192: ='BNB-System'!H188 -> 0
C193: ='BNB-System'!C189 -> Qualifikation des Projektteams | D193: ='BNB-System'!D189 -> 20 | F193: ='Bewertung durch Anwender'!G193 -> 0 | G193: ='Bewertung durch Anwender'!N193 -> 0 | L193: ='BNB-System'!H189 -> 0
C194: ='BNB-System'!C190 -> Integraler Planungsprozess | D194: ='BNB-System'!D190 -> 20 | F194: ='Bewertung durch Anwender'!G194 -> 0 | G194: ='Bewertung durch Anwender'!N194 -> 0 | L194: ='BNB-System'!H190 -> 0
C195: ='BNB-System'!C191 -> Nutzerbeteiligung | D195: ='BNB-System'!D191 -> 20 | F195: ='Bewertung durch Anwender'!G195 -> 0 | G195: ='Bewertung durch Anwender'!N195 -> 0 | L195: ='BNB-System'!H191 -> 0
C196: ='BNB-System'!C192 -> Öffentlichkeitsbeteiligung | D196: ='BNB-System'!D192 -> 10 | F196: ='Bewertung durch Anwender'!G196 -> 0 | G196: ='Bewertung durch Anwender'!N196 -> 0 | L196: ='BNB-System'!H192 -> 0
B197: ='BNB-System'!B193 -> 5.1.3 | C197: ='BNB-System'!C193 -> Komplexität und Optimierung der Planung | D197: ='BNB-System'!D193 -> 100 | E197: ='BNB-System'!G193 -> 0.01428571429 | F197: ='Bewertung durch Anwender'!G197 -> 0 | G197: ='Bewertung durch Anwender'!N197 -> 0 | H197: =IF(SUM(H198:H212)>100,100,SUM(H198:H212)) -> 0 | L197: ='BNB-System'!H193 -> 300 | M197: =IF(ISNUMBER(G197*E197/100),G197*E197/100,0) -> 0 | N197: =IF(ISNUMBER(H197*E197/100),H197*E197/100,0) -> 0
C198: ='BNB-System'!C194 -> SiGe-Plan | D198: ='BNB-System'!D194 -> 10 | F198: ='Bewertung durch Anwender'!G198 -> 0 | G198: ='Bewertung durch Anwender'!N198 -> 0 | L198: ='BNB-System'!H194 -> 0
C199: ='BNB-System'!C195 -> Ver- und Entsiegelungskonzept | D199: ='BNB-System'!D195 -> 10 | F199: ='Bewertung durch Anwender'!G199 -> 0 | G199: ='Bewertung durch Anwender'!N199 -> 0 | L199: ='BNB-System'!H195 -> 0
C200: ='BNB-System'!C196 -> Energiekonzept | D200: ='BNB-System'!D196 -> 15 | F200: ='Bewertung durch Anwender'!G200 -> 0 | G200: ='Bewertung durch Anwender'!N200 -> 0 | L200: ='BNB-System'!H196 -> 0
C201: ='BNB-System'!C197 -> Mess- und Monitoringkonzept | D201: ='BNB-System'!D197 -> 15 | F201: ='Bewertung durch Anwender'!G201 -> 0 | G201: ='Bewertung durch Anwender'!N201 -> 0 | L201: ='BNB-System'!H197 -> 0
C202: ='BNB-System'!C198 -> Wasserkonzept | D202: ='BNB-System'!D198 -> 20 | F202: ='Bewertung durch Anwender'!G202 -> 0 | G202: ='Bewertung durch Anwender'!N202 -> 0 | L202: ='BNB-System'!H198 -> 0
... 69 more rows

Sheet BNB-System (hidden)
B1: Projekt:
B2: Bewertungssystem Nachhaltiges Bauen (BNB)
B3: Systemvariante Laborgebäude, Modul Neubau (BNB_LN) - Version 2020
C4: Nachhaltigkeitskriterien | D4: Zielwert max. Punktzahl | E4: Punktzahl | F4: Bedeutungs-faktor | G4: Gewichtung Gesamt-bewertung | H4: Zielwert
B6: Ökologische Qualität | G6: 0.225 | H6: =SUM(H9:H22) -> 1600
C8: Wirkungen auf die globale und lokale Umwelt
B9: 1.1.1 | C9: Treibhauspotenzial (GWP) | D9: 100 | F9: 3 | G9: =H9/$H6*G6 -> 0.0421875 | H9: =D9*F9 -> 300
B10: 1.1.2 | C10: Ozonschichtabbaupotenzial (ODP) | D10: 100 | F10: 1 | G10: =H10/H6*G6 -> 0.0140625 | H10: 100
B11: 1.1.3 | C11: Ozonbildungspotenzial (POCP) | D11: 100 | F11: 1 | G11: =H11/H6*G6 -> 0.0140625 | H11: 100
B12: 1.1.4 | C12: Versauerungspotenzial (AP) | D12: 100 | F12: 1 | G12: =H12/H6*G6 -> 0.0140625 | H12: 100
B13: 1.1.5 | C13: Überdüngungspotenzial (EP) | D13: 100 | F13: 1 | G13: =H13/H6*G6 -> 0.0140625 | H13: 100
B14: 1.1.6 | C14: Risiken für die lokale Umwelt | D14: 100 | F14: 3 | G14: =H14/H6*G6 -> 0.0421875 | H14: 300
B15: 1.1.7 | C15: Nachhaltige Materialgewinnung / Biodiversität | D15: 100 | F15: 1 | G15: =H15/H6*G6 -> 0.0140625 | H15: 100
C16: Ressourceninanspruchnahme
B17: 1.2.1 | C17: Primärenergiebedarf | D17: 100 | E17: =IF(SUM(E18:E20)>100,100,SUM(E18:E20)) -> 0 | F17: 3 | G17: =H17/$H6*G6 -> 0.0421875 | H17: =D17*F17 -> 300
C18: Primärenergiebedarf nicht erneuerbar (PEne) | D18: 60
C19: Gesamtprimärenergiebedarf (PEges) | D19: 40
C20: Anteil erneuerbarer Primärenergie | D20: 20
B21: 1.2.3 | C21: Trinkwasserbedarf und Abwasseraufkommen | D21: 100 | F21: 1 | G21: =H21/$H$6*$G$6 -> 0.0140625 | H21: =D21*F21 -> 100
B22: 1.2.4 | C22: Flächeninanspruchnahme | D22: 100 | F22: 1 | G22: =H22/$H$6*$G$6 -> 0.0140625 | H22: =D22*F22 -> 100
B24: Ökonomische Qualität | G24: 0.225 | H24: =SUM(H27:H42) -> 600
C26: Lebenszykluskosten
B27: 2.1.1 | C27: Gebäudebezogene Kosten im Lebenszyklus | D27: 100 | F27: 3 | G27: =H27/$H24*G24 -> 0.1125 | H27: =D27*F27 -> 300
C28: Wirtschaftlichkeit und Wertstabilität
B29: 2.2.1 | C29: Flächeneffizienz | D29: 100 | F29: 1 | G29: =H29/$H$24*$G$24 -> 0.0375 | H29: =D29*F29 -> 100
B30: 2.2.2 | C30: Anpassungsfähigkeit | D30: 100 | E30: =IF(SUM(E31:E42)>100,100,SUM(E31:E42)) -> 0 | F30: 2 | G30: =H30/$H$24*$G$24 -> 0.075 | H30: =D30*F30 -> 200
C31: Raumhöhe | D31: 8
C32: Grundrissorganisation
C33: Positionierung der Erschließung | D33: 5
C34: Rettungswege | D34: 2
C35: sanitäre Anlagen | D35: 2
C36: Konstruktion
C37: Anteil nicht tragender Innenwände | D37: 5
C38: Anschluss von Trennwänden an der Fassadenachse | D38: 1
C39: kein Eingriff von Trennwänden in Fußboden, Decke, Abhangdecke | D39: 1
C40: zulässige Nutzlasten | D40: 1
C41: Technische Ausstattung
C42: Technische Ausstattung | D42: 75
B44: Soziokulturelle und funktionale Qualität | G44: 0.225 | H44: =SUM(H47:H148) -> 1800
C46: Gesundheit, Behaglichkeit und Nutzerzufriedenheit
B47: 3.1.1 | C47: Thermischer Komfort | D47: 100 | E47: =IF(SUM(E49:E57)>100,100,SUM(E49:E57)) -> 0 | F47: 2 | G47: =H47/$H$44*$G$44 -> 0.025 | H47: =D47*F47 -> 200
C48: Winter
C49: Operative Temperatur | D49: 10
C50: Zugluft | D50: 10
C51: Stahlungstemperaturasymmetrie und Fußbodentemperatur | D51: 10
C52: Luftfeuchte | D52: 10
C53: Sommer
C54: Operative Temperatur | D54: 30
C55: Zugluft | D55: 10
C56: Stahlungstemperaturasymmetrie und Fußbodentemperatur | D56: 10
C57: Luftfeuchte | D57: 10
B58: 3.1.3 | C58: Innenraumlufthygiene | D58: 100 | E58: =IF(SUM(E59:E60)>100,100,SUM(E59:E60)) -> 0 | F58: 2 | G58: =H58/$H$44*$G$44 -> 0.025 | H58: =D58*F58 -> 200
C59: Flüchtige organische Stoffe (VOC) und Formaldehyd | D59: 50
C60: Kohlendioxidgehalt | D60: 50
B61: 3.1.4 | C61: Akustischer Komfort | D61: 100 | E61: =IF(IF(ISNUMBER(ROUND(E63/(E63+E65+E67+#REF!)*E62+E65/(E63+E65+E67+#REF!)*E64+E67/(E63+E65+E67+#REF!)*E66+#REF!/(E63+E65+E67+#REF!)*#REF!,1)),ROUND(E63/(E63+E65+E67+#REF!)*E62+E65/(E63+E65+E67+#REF!)*E64+E67/(E63+E65+E67+#REF!)*E66+#REF!/(E63+E65+E67+#REF!)*#REF!,1),0)>100,100,IF(ISNUMBER(ROUND(E63/(E63+E65+E67+#REF!)*E62+E65/(E63+E65+E67+#REF!)*E64+E67/(E63+E65+E67+#REF!)*E66+#REF!/(E63+E65+E67+#REF!)*#REF!,1)),ROUND(E63/(E63+E65+E67+#REF!)*E62+E65/(E63+E65+E67+#REF!)*E64+E67/(E63+E65+E67+#REF!)*E66+#REF!/(E63+E65+E67+#REF!)*#REF!,1),0)) -> 0 | F61: 1 | G61: =H61/$H$44*$G$44 -> 0.0125 | H61: =D61*F61 -> 100
C62: Einzel- und Mehrpersonenbüros bis 100 m² | D62: 100
C63: NF Einzel- und Mehrpersonenbüros bis 100 m²
C64: Mehrpersonenbüros über 100 m² | D64: 100
C65: NF Mehrpersonenbüros über 100m²
C66: Weitere Räume über geringere (Gesprächs-)Entfernung (außer Büros) | D66: 100
C67: NF weiterer Räume
C68: Punktabzug
B69: 3.1.5 | C69: Visueller Komfort | D69: 100 | E69: =IF(SUM(E70:E76)>100,100,SUM(E70:E76)) -> 0 | F69: 2 | G69: =H69/$H$44*$G$44 -> 0.025 | H69: =D69*F69 -> 200
C70: Tageslichtverfügbarkeit Gesamtgebäude | D70: 15
C71: Tageslichtverfügbarkeit ständige Arbeitsplätze | D71: 15
C72: Nachweis der Sichtverbindung nach außen | D72: 25
C73: Blendfreiheit Tageslicht | D73: 12
C74: Blendfreiheit Kunstlicht | D74: 9
C75: Lichtverteilung | D75: 12
C76: Farbwiedergabe | D76: 12
B77: 3.1.6 | C77: Einflussnahmemöglichkeiten durch Nutzer | D77: 100 | E77: =IF(SUM(E78:E85)>100,100,SUM(E78:E85)) -> 0 | F77: 1 | G77: =H77/$H$44*$G$44 -> 0.0125 | H77: =D77*F77 -> 100
C78: Lüftung | D78: 10
C79: Sonnenschutz | D79: 10
C80: Blendschutz | D80: 10
C81: Temperaturen während der Heizperiode | D81: 10
C82: Temperaturen außerhalb der Heizperiode | D82: 15
C83: Steuerung von Tageslicht | D83: 15
C84: Steuerung von Kunstlicht | D84: 15
C85: Bedienfreundlichkeit | D85: 15
B86: 3.1.7 | C86: Aufenthaltsqualitäten | D86: 100 | E86: =IF(SUM(E87:E99)>100,100,SUM(E87:E99)) -> 0 | F86: 1 | G86: =H86/$H$44*$G$44 -> 0.0125 | H86: =D86*F86 -> 100
C87: Anzahl der Aufenthaltsbereiche im Gebäude | D87: 10
C88: Anzahl der Aufenthaltsbereiche im Außenraum | D88: 10
C89: Anzahl der Sitzmöglichkeiten in diesen Bereichen | D89: 40
C90: uneingeschränkte Nutzbarkeit der Erschließungsflächen als Aufenthaltsflächen | D90: 10
C91: Sichtbeziehungen | D91: 10
C92: Außenbezug | D92: 10
C93: Ausstattungsqualität der Aufenthaltsbereiche im Außenraum
C94: Beleuchtung | D94: 2
C95: Windschutz | D95: 2
C96: Überdachung / Regenschutz | D96: 2
C97: Sonnenschutz | D97: 2
C98: Stromversorgung für Außenarbeitsplätze | D98: 1
C99: Bepflanzung / Begrünung | D99: 1
B100: 3.1.8 | C100: Sicherheit | D100: 100 | E100: =IF(SUM(E101:E108)>100,100,SUM(E101:E108)) -> 0 | F100: 2 | G100: =H100/$H$44*$G$44 -> 0.025 | H100: =D100*F100 -> 200
C101: Übersichtliche Wegführungen | D101: 40
C102: Stellplätze | D102: 8
C103: Sicherheitsbereiche | D103: 8
C104: Beleuchtung Wege | D104: 12
C105: Beleuchtung Stellplätze | D105: 8
C106: Beleuchtung Sicherheits- und Gefahrenbereiche | D106: 8
C107: Technische Sicherheitseinrichtungen | D107: 8
C108: Reduktion von Brandgasrisiken | D108: 8
C109: Funktionalität
B110: 3.2.1 | C110: Barrierefreiheit | D110: 100 | F110: 2 | G110: =H110/$H$44*$G$44 -> 0.025 | H110: =D110*F110 -> 200
B111: 3.2.4 | C111: Zugänglichkeit | D111: =IF(SUM(D112:D114)>100,100,SUM(D112:D114)) -> 100 | E111: =IF(SUM(E112:E114)>100,100,SUM(E112:E114)) -> 0 | F111: 1 | G111: =H111/$H$44*$G$44 -> 0.0125 | H111: =D111*F111 -> 100
C112: Grundsätzliche Zugänglichkeit des Gebäudes | D112: 35
C113: Öffnung der Außenanlagen für die Öffentlichkeit | D113: 35
C114: Öffnung gebäudeinterner Einrichtungen für die Öffentlichkeit | D114: 30
B115: 3.2.5 | C115: Mobilitätsinfrastruktur | D115: =IF(SUM(D116:D134)>100,100,SUM(D116:D134)) -> 100 | E115: =IF(SUM(E116:E134)>100,100,SUM(E116:E134)) -> 0 | F115: 1 | G115: =H115/$H$44*$G$44 -> 0.0125 | H115: =D115*F115 -> 100
C116: Anzahl der Fahrradstellplätze
C117: 1 Fahrradstellplatz / 40 m²NF oder 1 Fahrradstellplatz / 3 Nutzer | D117: 40
C118: 1 Fahrradstellplatz / 80m²NF oder 1 Fahrradstellplatz / 6 Nutzer | D118: 30
C119: 1 Fahrradstellplatz / 120m²NF oder 1 Fahrradstellplatz / 9 Nutzer | D119: 20
C120: 1 Fahrradstellplatz / 160m²NF oder 1 Fahrradstellplatz / 12 Nutzer | D120: 10
C121: Anzahl der Lademöglichkeiten und Carsharing-Stellplätze
C122: Lademögl. für E-Räder für 10 % der Rad-Stellplätze (mind. 2) vorhanden | D122: 10
C123: Lademögl. für E-Pkw für 5 % der Pkw-Stellplätze (mind. 1) vorhanden | D123: 5
C124: Carsharing-Stellplatz ist öffentlich zugänglich auf Grundstück vorhanden | D124: 5
C125: Qualitative Anforderungen an Fahrradstellplätze
C126: Anordnungsprinzipien und Abstände | D126: 10
C127: Position der Fahrradstellplätze für Besucher | D127: 5
C128: Position der Fahrradstellplätze für Nutzer | D128: 5
C129: Witterungsgeschutz | D129: 10
C130: Beleuchtung | D130: 10
C131: Diebstahlgesicherter Bereich | D131: 5
C132: Fläche mit Ausstattung für Wartungsarbeiten | D132: 5
C133: Duschen und Umkleiden | D133: 5
C134: Trocknungsmöglichkeiten | D134: 5
C135: Sicherung der Gestaltungsqualität
B136: 3.3.1 | C136: Gestalterische und städtebauliche Qualität | D136: =IF(SUM(D137:D143)>100,100,SUM(D137:D143)) -> 100 | E136: =IF(AND(E137>0,E141<=E142),SUM(E137:E140),IF(AND(E137>0,E142<=E141),SUM(E137:E140),IF(E141>0,E141,IF(E142>0,E142,E143)))) -> 0 | F136: 2 | G136: =H136/$H$44*$G$44 -> 0.025 | H136: =D136*F136 -> 200
C137: Durchführung von Planungswettbewerben | D137: 20
C138: Wettbewerbsverfahren | D138: 40
C139: Ausführung des Entwurfs eines der Preisträger | D139: 30
C140: Beauftragung des Planungsteams | D140: 10
C141: Auszeichnung mit einem Architekturpreis | D141: 60
C142: Unabhängiges Expertengremium | D142: 40
C143: Sonderfall Mindestanforderung | D143: 10
B144: 3.3.2 | C144: Kunst am Bau | D144: =IF(SUM(D145:D148)>100,100,SUM(D145:D148)) -> 100 | E144: =IF(SUM(E145:E148)>100,100,SUM(E145:E148)) -> 0 | F144: 1 | G144: =H144/$H$44*$G$44 -> 0.0125 | H144: =D144*F144 -> 100
C145: Mindestanforderung | D145: 10
C146: Bereitstellung von Mitteln im Rahmen der Bauaufgabe | D146: 30
C147: Umsetzung des BMVBS-Leitfadens Kunst am Bau | D147: 40
C148: Öffentlichkeitsarbeit, Rezeption der Kunst am Bau | D148: 20
B150: Technische Qualität | G150: 0.225 | H150: =SUM(H153:H178) -> 1100
C152: technische Ausführung
B153: 4.1.1 | C153: Schallschutz | D153: =IF(SUM(D154:D157)>100,100,SUM(D154:D157)) -> 100 | E153: =IF(SUM(E154:E157)>100,100,SUM(E154:E157)) -> 0 | F153: 1 | G153: =H153/$H$150*$G$150 -> 0.02045454545 | H153: =D153*F153 -> 100
C154: Luftschallschutz gegen Außenlärm | D154: 20
C155: Luftschallschutz im Gebäudeinneren | D155: 30
C156: Trittschallschutz gegenüber fremden und eigenen Arbeitsbereichen | D156: 30
C157: Schallschutz gegenüber haustechnischen Anlagen | D157: 20
B158: 4.1.2 | C158: Wärme- und Tauwasserschutz | D158: =IF(SUM(D159:D164)>100,100,SUM(D159:D164)) -> 100 | E158: =IF(SUM(E159:E160)>100,100,SUM(E159:E160)) -> 0 | F158: 1 | G158: =H158/$H$150*$G$150 -> 0.02045454545 | H158: =D158*F158 -> 100
C159: Mittlere Wärmeduchgangskoeffizienten | D159: 30
C160: Wärmebrückenzuschlag | D160: 15
C161: Klassen der Luftdurchlässigkeit (Fugendurchlässigkeit) | D161: 15
C162: Tauwasserbildung | D162: 10
C163: Luftwechsel | D163: 15
C164: Sonneneintragswert | D164: 15
B165: 4.1.3 | C165: Reinigungs- und Instandhaltungsfreundlichkeit | D165: =IF(SUM(D166:D174)>100,100,SUM(D166:D174)) -> 100 | E165: =IF(SUM(E166:E174)>100,100,SUM(E166:E174)) -> 0 | F165: 2 | G165: =H165/$H$150*$G$150 -> 0.04090909091 | H165: =D165*F165 -> 200
C166: Tragkonstruktion | D166: 15
C167: Zugänglichkeit der Außenglasflächen | D167: 15
C168: Außenbauteile | D168: 9
C169: Bodenbelag | D169: 9
C170: Schmutzfangzone | D170: 9
C171: Fußbodenleisten | D171: 9
C172: Hindernisfreie Grundrissgestaltung | D172: 9
C173: Einbauten | D173: 10
C174: Zugänglichkeit der Innenglasflächen | D174: 15
B175: 4.1.4 | C175: Rückbau, Trennung und Verwertung | D175: 100 | F175: 1 | G175: =H175/$H$150*$G$150 -> 0.02045454545 | H175: =D175*F175 -> 100
B176: 4.1.5 | C176: Widerstandsfähigkeit gegen Naturgefahren | D176: 100 | F176: 1 | G176: =H176/$H$150*$G$150 -> 0.02045454545 | H176: =D176*F176 -> 100
B177: 4.1.6 | C177: Bedienungs- und Instandhaltungsfreundlichkeit der TGA | D177: 100 | F177: 2 | G177: =H177/$H$150*$G$150 -> 0.04090909091 | H177: =D177*F177 -> 200
B178: 4.1.7 | C178: Systemqualität der TGA | D178: 100 | F178: 3 | G178: =H178/$H$150*$G$150 -> 0.06136363636 | H178: =D178*F178 -> 300
B180: Prozessqualität | G180: 0.1 | H180: =SUM(H183:H225) -> 2100
C182: Planung
B183: 5.1.1 | C183: Projektvorbereitung | D183: =IF(SUM(D184:D186)>100,100,SUM(D184:D186)) -> 100 | E183: =IF(SUM(E184:E186)>100,100,SUM(E184:E186)) -> 0 | F183: 3 | G183: =H183/$H$180*$G$180 -> 0.01428571429 | H183: =D183*F183 -> 300
C184: Bedarfsplanung oder vergleichbare Planung | D184: 35
C185: Zielvereinbarung | D185: 35
C186: Architektenwettbewerb | D186: 30
B187: 5.1.2 | C187: Integrale Planung | D187: =IF(SUM(D188:D192)>100,100,SUM(D188:D192)) -> 100 | E187: =IF(SUM(E188:E192)>100,100,SUM(E188:E192)) -> 0 | F187: 3 | G187: =H187/$H$180*$G$180 -> 0.01428571429 | H187: =D187*F187 -> 300
C188: Interdisziplinäres Projektteam | D188: 30
C189: Qualifikation des Projektteams | D189: 20
C190: Integraler Planungsprozess | D190: 20
C191: Nutzerbeteiligung | D191: 20
C192: Öffentlichkeitsbeteiligung | D192: 10
B193: 5.1.3 | C193: Komplexität und Optimierung der Planung | D193: =IF(SUM(D194:D208)>100,100,SUM(D194:D208)) -> 100 | E193: =IF(SUM(E194:E208)>100,100,SUM(E194:E208)) -> 0 | F193: 3 | G193: =H193/$H$180*$G$180 -> 0.01428571429 | H193: =D193*F193 -> 300
C194: SiGe-Plan | D194: 10
C195: Ver- und Entsiegelungskonzept | D195: 10
C196: Energiekonzept | D196: 15
C197: Mess- und Monitoringkonzept | D197: 15
C198: Wasserkonzept | D198: 20
C199: Konzept zur Vermeid. von Umwelt- & Gesundheitsrisiken aus Bauprod. | D199: 10
C200: Lüftungskonzept | D200: 10
C201: Abfallkonzept / Wertstoffkonzept | D201: 5
C202: Tages- / Kunstlichtoptimierung | D202: 10
C203: Konzept zur Sicherung der Reinigungs- & Instandhaltungsfreundlichk. | D203: 10
C204: Anpassbarkeits-, Rückbau- und Recyclingkonzept | D204: 10
C205: Konzept zur Vermeidung und Beherrschung von Risiken | D205: 10
C206: Sonstige Konzepte zum Nachhaltigen Bauen | D206: 10
C207: Prüfung der Planungsunterlagen durch unabhängige Dritte | D207: 5
C208: Durchführung von Variantenvergleichen | D208: 10
B209: 5.1.4 | C209: Ausschreibung und Vergabe | D209: 100 | F209: 2 | G209: =H209/$H$180*$G$180 -> 0.009523809524 | H209: =D209*F209 -> 200
B210: 5.1.5 | C210: Voraussetzungen für eine optimale Bewirtschaftung | D210: =IF(SUM(D211:D215)>100,100,SUM(D211:D215)) -> 100 | E210: =IF(SUM(E211:E215)>100,100,SUM(E211:E215)) -> 0 | F210: 2 | G210: =H210/$H$180*$G$180 -> 0.009523809524 | H210: =D210*F210 -> 200
... 54 more rows

Sheet Gültigkeitsliste (hidden)
A1: Erfüllt / nicht erfüllt
A2: o
A3: x

Sheet hilfstabelle (hidden)
A4: Eingereichte Endbewertung | C4: Bemerkung Konformitätsprüfung Prüfung vom: | D4: Bearbeiter
A5: Anwender | B5: Konformitätsprüfung | C5: =TODAY() -> 2021-01-14
A7: =Konformitätsprüfung!$G7 -> 0 | B7: =B10+B28+B48+B154+B184 -> 0
A10: =Konformitätsprüfung!$G10 -> 0 | B10: =B13*($E$13/100)+B14*($E$14/100)+B15*($E$15/100)+B16*($E$16/100)+B17*($E$17/100)+B18*($E$18/100)+B19*($E$19/100)+B21*($E$21/100)+B25*($E$25/100)+B26*($E$26/100) -> 0
A13: =Konformitätsprüfung!$G13 -> 0 | B13: =Konformitätsprüfung!$H13 -> 0
A14: =Konformitätsprüfung!$G14 -> 0 | B14: =Konformitätsprüfung!$H14 -> 0
A15: =Konformitätsprüfung!$G15 -> 0 | B15: =Konformitätsprüfung!$H15 -> 0
A16: =Konformitätsprüfung!$G16 -> 0 | B16: =Konformitätsprüfung!$H16 -> 0
A17: =Konformitätsprüfung!$G17 -> 0 | B17: =Konformitätsprüfung!$H17 -> 0
A18: =Konformitätsprüfung!$G18 -> 0 | B18: =Konformitätsprüfung!$H18 -> 0
A19: =Konformitätsprüfung!$G19 -> 0 | B19: =Konformitätsprüfung!$H19 -> 0
A21: =Konformitätsprüfung!$G21 -> 0 | B21: =IF(SUM(B22:B24)>100,100,SUM(B22:B24)) -> 0
A22: =Konformitätsprüfung!$G22 -> 0 | B22: =Konformitätsprüfung!$H22 -> 0
A23: =Konformitätsprüfung!$G23 -> 0 | B23: =Konformitätsprüfung!$H23 -> 0
A24: =Konformitätsprüfung!$G24 -> 0 | B24: =Konformitätsprüfung!$H24 -> 0
A25: =Konformitätsprüfung!$G25 -> 0 | B25: =Konformitätsprüfung!$H25 -> 0
A26: =Konformitätsprüfung!$G26 -> 0 | B26: =Konformitätsprüfung!$H26 -> 0
A28: =Konformitätsprüfung!$G28 -> 0 | B28: =B31*($E$31/100)+B33*($E$33/100)+B34*($E$34/100) -> 0
A31: =Konformitätsprüfung!$G31 -> 0 | B31: =Konformitätsprüfung!$H31 -> 0
A33: =Konformitätsprüfung!$G33 -> 0 | B33: =Konformitätsprüfung!$H33 -> 0
A34: =Konformitätsprüfung!$G34 -> 0 | B34: =SUM(B35:B46) -> 0
A35: =Konformitätsprüfung!$G35 -> 0 | B35: =Konformitätsprüfung!$H35 -> 0
A36: =Konformitätsprüfung!$G36 -> 0 | B36: =Konformitätsprüfung!$H36 -> 0
A37: =Konformitätsprüfung!$G37 -> 0 | B37: =Konformitätsprüfung!$H37 -> 0
A38: =Konformitätsprüfung!$G38 -> 0 | B38: =Konformitätsprüfung!$H38 -> 0
A39: =Konformitätsprüfung!$G39 -> 0 | B39: =Konformitätsprüfung!$H39 -> 0
A40: =Konformitätsprüfung!$G40 -> 0 | B40: =Konformitätsprüfung!$H40 -> 0
A41: =Konformitätsprüfung!$G41 -> 0 | B41: =Konformitätsprüfung!$H41 -> 0
A42: =Konformitätsprüfung!$G42 -> 0 | B42: =Konformitätsprüfung!$H42 -> 0
A43: =Konformitätsprüfung!$G43 -> 0 | B43: =Konformitätsprüfung!$H43 -> 0
A44: =Konformitätsprüfung!$G44 -> 0 | B44: =Konformitätsprüfung!$H44 -> 0
A45: =Konformitätsprüfung!$G45 -> 0 | B45: =Konformitätsprüfung!$H45 -> 0
A46: =Konformitätsprüfung!$G46 -> 0 | B46: =Konformitätsprüfung!$H46 -> 0
A48: =Konformitätsprüfung!$G48 -> 0 | B48: =B51*($E$51/100)+B62*($E$62/100)+B65*($E$65/100)+B73*($E$73/100)+B81*($E$81/100)+B90*($E$90/100)+B104*($E$104/100)+B114*($E$114/100)+B115*($E$115/100)+B119*($E$119/100)+B140*($E$140/100)+B148*($E$148/100) -> 0
A51: =Konformitätsprüfung!$G51 -> 0 | B51: =SUM(B52:B61) -> 0
A52: =Konformitätsprüfung!$G52 -> 0 | B52: =Konformitätsprüfung!$H52 -> 0
A53: =Konformitätsprüfung!$G53 -> 0 | B53: =Konformitätsprüfung!$H53 -> 0
A54: =Konformitätsprüfung!$G54 -> 0 | B54: =Konformitätsprüfung!$H54 -> 0
A55: =Konformitätsprüfung!$G55 -> 0 | B55: =Konformitätsprüfung!$H55 -> 0
A56: =Konformitätsprüfung!$G56 -> 0 | B56: =Konformitätsprüfung!$H56 -> 0
A57: =Konformitätsprüfung!$G57 -> 0 | B57: =Konformitätsprüfung!$H57 -> 0
A58: =Konformitätsprüfung!$G58 -> 0 | B58: =Konformitätsprüfung!$H58 -> 0
A59: =Konformitätsprüfung!$G59 -> 0 | B59: =Konformitätsprüfung!$H59 -> 0
A60: =Konformitätsprüfung!$G60 -> 0 | B60: =Konformitätsprüfung!$H60 -> 0
A61: =Konformitätsprüfung!$G61 -> 0 | B61: =Konformitätsprüfung!$H61 -> 0
A62: =Konformitätsprüfung!$G62 -> 0 | B62: =IF(SUM(B63:B64)>100,100,SUM(B63:B65)) -> 0
A63: =Konformitätsprüfung!$G63 -> 0 | B63: =Konformitätsprüfung!$H63 -> 0
A64: =Konformitätsprüfung!$G64 -> 0 | B64: =Konformitätsprüfung!$H64 -> 0
A65: =Konformitätsprüfung!$G65 -> 0 | B65: =SUM(B66:B72) -> 0
A66: =Konformitätsprüfung!$G66 -> 0 | B66: =Konformitätsprüfung!$H66 -> 0
A67: =Konformitätsprüfung!$G67 -> 0 | B67: =Konformitätsprüfung!$H67 -> 0
A68: =Konformitätsprüfung!$G68 -> 0 | B68: =Konformitätsprüfung!$H68 -> 0
A69: =Konformitätsprüfung!$G69 -> 0 | B69: =Konformitätsprüfung!$H69 -> 0
A70: =Konformitätsprüfung!$G70 -> 0 | B70: =Konformitätsprüfung!$H70 -> 0
A71: =Konformitätsprüfung!$G71 -> 0 | B71: =Konformitätsprüfung!$H71 -> 0
A72: =Konformitätsprüfung!$G72 -> 0 | B72: =Konformitätsprüfung!$H72 -> 0
A73: =Konformitätsprüfung!$G73 -> 0 | B73: =SUM(B74:B80) -> 0
A74: =Konformitätsprüfung!$G74 -> 0 | B74: =Konformitätsprüfung!$H74 -> 0
A75: =Konformitätsprüfung!$G75 -> 0 | B75: =Konformitätsprüfung!$H75 -> 0
A76: =Konformitätsprüfung!$G76 -> 0 | B76: =Konformitätsprüfung!$H76 -> 0
A77: =Konformitätsprüfung!$G77 -> 0 | B77: =Konformitätsprüfung!$H77 -> 0
A78: =Konformitätsprüfung!$G78 -> 0 | B78: =Konformitätsprüfung!$H78 -> 0
A79: =Konformitätsprüfung!$G79 -> 0 | B79: =Konformitätsprüfung!$H79 -> 0
A80: =Konformitätsprüfung!$G80 -> 0 | B80: =Konformitätsprüfung!$H80 -> 0
A81: =Konformitätsprüfung!$G81 -> 0 | B81: =SUM(B82:B89) -> 0
A82: =Konformitätsprüfung!$G82 -> 0 | B82: =Konformitätsprüfung!$H82 -> 0
A83: =Konformitätsprüfung!$G83 -> 0 | B83: =Konformitätsprüfung!$H83 -> 0
A84: =Konformitätsprüfung!$G84 -> 0 | B84: =Konformitätsprüfung!$H84 -> 0
A85: =Konformitätsprüfung!$G85 -> 0 | B85: =Konformitätsprüfung!$H85 -> 0
A86: =Konformitätsprüfung!$G86 -> 0 | B86: =Konformitätsprüfung!$H86 -> 0
A87: =Konformitätsprüfung!$G87 -> 0 | B87: =Konformitätsprüfung!$H87 -> 0
A88: =Konformitätsprüfung!$G88 -> 0 | B88: =Konformitätsprüfung!$H88 -> 0
A89: =Konformitätsprüfung!$G89 -> 0 | B89: =Konformitätsprüfung!$H89 -> 0
A90: =Konformitätsprüfung!$G90 -> 0 | B90: =SUM(B91:B103) -> 0
A91: =Konformitätsprüfung!$G91 -> 0 | B91: =Konformitätsprüfung!$H91 -> 0
A92: =Konformitätsprüfung!$G92 -> 0 | B92: =Konformitätsprüfung!$H92 -> 0
A93: =Konformitätsprüfung!$G93 -> 0 | B93: =Konformitätsprüfung!$H93 -> 0
A94: =Konformitätsprüfung!$G94 -> 0 | B94: =Konformitätsprüfung!$H94 -> 0
A95: =Konformitätsprüfung!$G95 -> 0 | B95: =Konformitätsprüfung!$H95 -> 0
A96: =Konformitätsprüfung!$G96 -> 0 | B96: =Konformitätsprüfung!$H96 -> 0
A97: =Konformitätsprüfung!$G97 -> 0 | B97: =Konformitätsprüfung!$H97 -> 0
A98: =Konformitätsprüfung!$G98 -> 0 | B98: =Konformitätsprüfung!$H98 -> 0
A99: =Konformitätsprüfung!$G99 -> 0 | B99: =Konformitätsprüfung!$H99 -> 0
A100: =Konformitätsprüfung!$G100 -> 0 | B100: =Konformitätsprüfung!$H100 -> 0
A101: =Konformitätsprüfung!$G101 -> 0 | B101: =Konformitätsprüfung!$H101 -> 0
A102: =Konformitätsprüfung!$G102 -> 0 | B102: =Konformitätsprüfung!$H102 -> 0
A103: =Konformitätsprüfung!$G103 -> 0 | B103: =Konformitätsprüfung!$H103 -> 0
A104: =Konformitätsprüfung!$G104 -> 0 | B104: =SUM(B105:B112) -> 0
A105: =Konformitätsprüfung!$G105 -> 0 | B105: =Konformitätsprüfung!$H105 -> 0
A106: =Konformitätsprüfung!$G106 -> 0 | B106: =Konformitätsprüfung!$H106 -> 0
A107: =Konformitätsprüfung!$G107 -> 0 | B107: =Konformitätsprüfung!$H107 -> 0
A108: =Konformitätsprüfung!$G108 -> 0 | B108: =Konformitätsprüfung!$H108 -> 0
A109: =Konformitätsprüfung!$G109 -> 0 | B109: =Konformitätsprüfung!$H109 -> 0
A110: =Konformitätsprüfung!$G110 -> 0 | B110: =Konformitätsprüfung!$H110 -> 0
A111: =Konformitätsprüfung!$G111 -> 0 | B111: =Konformitätsprüfung!$H111 -> 0
A112: =Konformitätsprüfung!$G112 -> 0 | B112: =Konformitätsprüfung!$H112 -> 0
A114: =Konformitätsprüfung!$G114 -> 0 | B114: =Konformitätsprüfung!$H114 -> 0
A115: =Konformitätsprüfung!$G115 -> 0 | B115: =SUM(B116:B127) -> 0
A116: =Konformitätsprüfung!$G116 -> 0 | B116: =Konformitätsprüfung!$H116 -> 0
A117: =Konformitätsprüfung!$G117 -> 0 | B117: =Konformitätsprüfung!$H117 -> 0
A118: =Konformitätsprüfung!$G118 -> 0 | B118: =Konformitätsprüfung!$H118 -> 0
A119: =Konformitätsprüfung!$G119 -> 0 | B119: =SUM(B120:B138) -> 0
A120: =Konformitätsprüfung!$G120 -> 0 | B120: =Konformitätsprüfung!$H120 -> 0
A121: =Konformitätsprüfung!$G121 -> 0 | B121: =Konformitätsprüfung!$H121 -> 0
A122: =Konformitätsprüfung!$G122 -> 0 | B122: =Konformitätsprüfung!$H122 -> 0
A123: =Konformitätsprüfung!$G123 -> 0 | B123: =Konformitätsprüfung!$H123 -> 0
A124: =Konformitätsprüfung!$G124 -> 0 | B124: =Konformitätsprüfung!$H124 -> 0
A125: =Konformitätsprüfung!$G125 -> 0 | B125: =Konformitätsprüfung!$H125 -> 0
A126: =Konformitätsprüfung!$G126 -> 0 | B126: =Konformitätsprüfung!$H126 -> 0
A127: =Konformitätsprüfung!$G127 -> 0 | B127: =Konformitätsprüfung!$H127 -> 0
A128: =Konformitätsprüfung!$G128 -> 0 | B128: =Konformitätsprüfung!$H128 -> 0
A129: =Konformitätsprüfung!$G129 -> 0 | B129: =Konformitätsprüfung!$H129 -> 0
A130: =Konformitätsprüfung!$G130 -> 0 | B130: =Konformitätsprüfung!$H130 -> 0
A131: =Konformitätsprüfung!$G131 -> 0 | B131: =Konformitätsprüfung!$H131 -> 0
A132: =Konformitätsprüfung!$G132 -> 0 | B132: =Konformitätsprüfung!$H132 -> 0
A133: =Konformitätsprüfung!$G133 -> 0 | B133: =Konformitätsprüfung!$H133 -> 0
A134: =Konformitätsprüfung!$G134 -> 0 | B134: =Konformitätsprüfung!$H134 -> 0
A135: =Konformitätsprüfung!$G135 -> 0 | B135: =Konformitätsprüfung!$H135 -> 0
A136: =Konformitätsprüfung!$G136 -> 0 | B136: =Konformitätsprüfung!$H136 -> 0
A137: =Konformitätsprüfung!$G137 -> 0 | B137: =Konformitätsprüfung!$H137 -> 0
A138: =Konformitätsprüfung!$G138 -> 0 | B138: =Konformitätsprüfung!$H138 -> 0
A140: =Konformitätsprüfung!$G140 -> 0 | B140: =IF(AND(B141>0,B145<=B146),SUM(B141:B144),IF(AND(B141>0,B146<=B145),SUM(B141:B144),IF(B145>0,B145,IF(B146>0,B146,B147)))) -> 0
A141: =Konformitätsprüfung!$G141 -> 0 | B141: =Konformitätsprüfung!$H141 -> 0
A142: =Konformitätsprüfung!$G142 -> 0 | B142: =Konformitätsprüfung!$H142 -> 0
A143: =Konformitätsprüfung!$G143 -> 0 | B143: =Konformitätsprüfung!$H143 -> 0
A144: =Konformitätsprüfung!$G144 -> 0 | B144: =Konformitätsprüfung!$H144 -> 0
A145: =Konformitätsprüfung!$G145 -> 0 | B145: =Konformitätsprüfung!$H145 -> 0
A146: =Konformitätsprüfung!$G146 -> 0 | B146: =Konformitätsprüfung!$H146 -> 0
A147: =Konformitätsprüfung!$G147 -> 0 | B147: =Konformitätsprüfung!$H147 -> 0
A148: =Konformitätsprüfung!$G148 -> 0 | B148: =SUM(B149:B152) -> 0
A149: =Konformitätsprüfung!$G149 -> 0 | B149: =Konformitätsprüfung!$H149 -> 0
A150: =Konformitätsprüfung!$G150 -> 0 | B150: =Konformitätsprüfung!$H150 -> 0
A151: =Konformitätsprüfung!$G151 -> 0 | B151: =Konformitätsprüfung!$H151 -> 0
A152: =Konformitätsprüfung!$G152 -> 0 | B152: =Konformitätsprüfung!$H152 -> 0
A154: =Konformitätsprüfung!$G154 -> 0 | B154: =Konformitätsprüfung!$H154 -> 0
A157: =Konformitätsprüfung!$G157 -> 0 | B157: =SUM(B158:B161) -> 0
A158: =Konformitätsprüfung!$G158 -> 0 | B158: =Konformitätsprüfung!$H158 -> 0
A159: =Konformitätsprüfung!$G159 -> 0 | B159: =Konformitätsprüfung!$H159 -> 0
A160: =Konformitätsprüfung!$G160 -> 0 | B160: =Konformitätsprüfung!$H160 -> 0
A161: =Konformitätsprüfung!$G161 -> 0 | B161: =Konformitätsprüfung!$H161 -> 0
A162: =Konformitätsprüfung!$G162 -> 0 | B162: =SUM(B163:B168) -> 0
A163: =Konformitätsprüfung!$G163 -> 0 | B163: =Konformitätsprüfung!$H163 -> 0
A164: =Konformitätsprüfung!$G164 -> 0 | B164: =Konformitätsprüfung!$H164 -> 0
A165: =Konformitätsprüfung!$G165 -> 0 | B165: =Konformitätsprüfung!$H165 -> 0
A166: =Konformitätsprüfung!$G166 -> 0 | B166: =Konformitätsprüfung!$H166 -> 0
A167: =Konformitätsprüfung!$G167 -> 0 | B167: =Konformitätsprüfung!$H167 -> 0
A168: =Konformitätsprüfung!$G168 -> 0 | B168: =Konformitätsprüfung!$H168 -> 0
A169: =Konformitätsprüfung!$G169 -> 0 | B169: =SUM(B170:B178) -> 0
A170: =Konformitätsprüfung!$G170 -> 0 | B170: =Konformitätsprüfung!$H170 -> 0
A171: =Konformitätsprüfung!$G171 -> 0 | B171: =Konformitätsprüfung!$H171 -> 0
A172: =Konformitätsprüfung!$G172 -> 0 | B172: =Konformitätsprüfung!$H172 -> 0
A173: =Konformitätsprüfung!$G173 -> 0 | B173: =Konformitätsprüfung!$H173 -> 0
A174: =Konformitätsprüfung!$G174 -> 0 | B174: =Konformitätsprüfung!$H174 -> 0
A175: =Konformitätsprüfung!$G175 -> 0 | B175: =Konformitätsprüfung!$H175 -> 0
A176: =Konformitätsprüfung!$G176 -> 0 | B176: =Konformitätsprüfung!$H176 -> 0
A177: =Konformitätsprüfung!$G177 -> 0 | B177: =Konformitätsprüfung!$H177 -> 0
A178: =Konformitätsprüfung!$G178 -> 0 | B178: =Konformitätsprüfung!$H178 -> 0
A179: =Konformitätsprüfung!$G179 -> 0 | B179: =Konformitätsprüfung!$H179 -> 0
A180: =Konformitätsprüfung!$G180 -> 0 | B180: =Konformitätsprüfung!$H180 -> 0
A181: =Konformitätsprüfung!$G181 -> 0 | B181: =Konformitätsprüfung!$H181 -> 0
A182: =Konformitätsprüfung!$G182 -> 0 | B182: =Konformitätsprüfung!$H182 -> 0
A184: =Konformitätsprüfung!$G184 -> 0 | B184: =Konformitätsprüfung!$H184 -> 0
A187: =Konformitätsprüfung!$G187 -> 0 | B187: =SUM(B188:B190) -> 0
A188: =Konformitätsprüfung!$G188 -> 0 | B188: =Konformitätsprüfung!$H188 -> 0
A189: =Konformitätsprüfung!$G189 -> 0 | B189: =Konformitätsprüfung!$H189 -> 0
A190: =Konformitätsprüfung!$G190 -> 0 | B190: =Konformitätsprüfung!$H190 -> 0
A191: =Konformitätsprüfung!$G191 -> 0 | B191: =SUM(B192:B196) -> 0
A192: =Konformitätsprüfung!$G192 -> 0 | B192: =Konformitätsprüfung!$H192 -> 0
A193: =Konformitätsprüfung!$G193 -> 0 | B193: =Konformitätsprüfung!$H193 -> 0
A194: =Konformitätsprüfung!$G194 -> 0 | B194: =Konformitätsprüfung!$H194 -> 0
A195: =Konformitätsprüfung!$G195 -> 0 | B195: =Konformitätsprüfung!$H195 -> 0
A196: =Konformitätsprüfung!$G196 -> 0 | B196: =Konformitätsprüfung!$H196 -> 0
A197: =Konformitätsprüfung!$G197 -> 0 | B197: =SUM(B198:B212) -> 0
A198: =Konformitätsprüfung!$G198 -> 0 | B198: =Konformitätsprüfung!$H198 -> 0
A199: =Konformitätsprüfung!$G199 -> 0 | B199: =Konformitätsprüfung!$H199 -> 0
A200: =Konformitätsprüfung!$G200 -> 0 | B200: =Konformitätsprüfung!$H200 -> 0
A201: =Konformitätsprüfung!$G201 -> 0 | B201: =Konformitätsprüfung!$H201 -> 0
A202: =Konformitätsprüfung!$G202 -> 0 | B202: =Konformitätsprüfung!$H202 -> 0
A203: =Konformitätsprüfung!$G203 -> 0 | B203: =Konformitätsprüfung!$H203 -> 0
A204: =Konformitätsprüfung!$G204 -> 0 | B204: =Konformitätsprüfung!$H204 -> 0
A205: =Konformitätsprüfung!$G205 -> 0 | B205: =Konformitätsprüfung!$H205 -> 0
A206: =Konformitätsprüfung!$G206 -> 0 | B206: =Konformitätsprüfung!$H206 -> 0
A207: =Konformitätsprüfung!$G207 -> 0 | B207: =Konformitätsprüfung!$H207 -> 0
A208: =Konformitätsprüfung!$G208 -> 0 | B208: =Konformitätsprüfung!$H208 -> 0
A209: =Konformitätsprüfung!$G209 -> 0 | B209: =Konformitätsprüfung!$H209 -> 0
A210: =Konformitätsprüfung!$G210 -> 0 | B210: =Konformitätsprüfung!$H210 -> 0
A211: =Konformitätsprüfung!$G211 -> 0 | B211: =Konformitätsprüfung!$H211 -> 0
A212: =Konformitätsprüfung!$G212 -> 0 | B212: =Konformitätsprüfung!$H212 -> 0
A213: =Konformitätsprüfung!$G213 -> 0 | B213: =Konformitätsprüfung!$H213 -> 0
A214: =Konformitätsprüfung!$G214 -> 0 | B214: =SUM(B215:B219) -> 0
A215: =Konformitätsprüfung!$G215 -> 0 | B215: =Konformitätsprüfung!$H215 -> 0
A216: =Konformitätsprüfung!$G216 -> 0 | B216: =Konformitätsprüfung!$H216 -> 0
A217: =Konformitätsprüfung!$G217 -> 0 | B217: =Konformitätsprüfung!$H217 -> 0
A218: =Konformitätsprüfung!$G218 -> 0 | B218: =Konformitätsprüfung!$H218 -> 0
A219: =Konformitätsprüfung!$G219 -> 0 | B219: =Konformitätsprüfung!$H219 -> 0
A221: =Konformitätsprüfung!$G221 -> 0 | B221: =SUM(B222:B225) -> 0
A222: =Konformitätsprüfung!$G222 -> 0 | B222: =Konformitätsprüfung!$H222 -> 0
A223: =Konformitätsprüfung!$G223 -> 0 | B223: =Konformitätsprüfung!$H223 -> 0
A224: =Konformitätsprüfung!$G224 -> 0 | B224: =Konformitätsprüfung!$H224 -> 0
A225: =Konformitätsprüfung!$G225 -> 0 | B225: =Konformitätsprüfung!$H225 -> 0
... 42 more rows
